Body,Body Name,Date,Transaction Number,Amount,Supplier Name,Vendor Number,Service Area Categorization,Expenses Type,DIR,SERV
http://www.havering.gov.uk,London Borough of Havering,02/12/2010,56542882,43024.48,Pickenham (Romford) Limited ,Not applicable,REGENERATION & STRATEGIC PLANNING,Capital Expenditure,CULTURE & COMMUNITY,REGENERATION & STRATEGIC PLANNING
http://www.havering.gov.uk,London Borough of Havering,02/12/2010,56542882,43024.48,Pickenham (Romford) Limited ,Not applicable,ASSET MANAGEMENT,Capital Expenditure,FINANCE & COMMERCE,ASSET MANAGEMENT
http://www.havering.gov.uk,London Borough of Havering,02/12/2010,56542882,43024.48,Pickenham (Romford) Limited ,Not applicable,CONTROL & SUSPENSE,Non-Controllable,No Heirarchy,No Heirarchy
http://www.havering.gov.uk,London Borough of Havering,03/12/2010,56663884,26819.8,Bank of Scotland Equipment Finance ,Not applicable,CONTROL & SUSPENSE,Non-Controllable,No Heirarchy,No Heirarchy
http://www.havering.gov.uk,London Borough of Havering,01/12/2010,56674208,125000,Zurich,Not applicable,CORPORATE FINANCE MANAGER,Non-Controllable,No Heirarchy,No Heirarchy
http://www.havering.gov.uk,London Borough of Havering,01/12/2010,56675210,2003521.88,HiH Management Fees ,Not applicable,HOUSING (HRA),Support Services,BBBB CULTURE & COMMUNITY,BBB8 HOUSING (HRA)
http://www.havering.gov.uk,London Borough of Havering,01/12/2010,56677963,22650.49,Computer Share Vouchers ,Not applicable,EXCHEQUER SERVICES,Supplies and Services,FFFF FINANCE & COMMERCE,FFF2 EXCHEQUER SERVICES
http://www.havering.gov.uk,London Borough of Havering,06/12/2010,57003925,5470.06,Citibank prepaid account ,Not applicable,CHILDREN & YOUNG PEOPLE,Transfer Payments,EEEE SOCIAL CARE & LEARNING,EEE3 CHILDREN & YOUNG PEOPLE
http://www.havering.gov.uk,London Borough of Havering,06/12/2010,57003925,5470.06,Citibank prepaid account ,Not applicable,ADULT SOCIAL CARE,Transfer Payments,EEEE SOCIAL CARE & LEARNING,EEE6 ADULT SOCIAL CARE
http://www.havering.gov.uk,London Borough of Havering,06/12/2010,57003925,5470.06,Citibank prepaid account ,Not applicable,ADULT SOCIAL CARE,Transfer Payments,EEEE SOCIAL CARE & LEARNING,EEE6 ADULT SOCIAL CARE
http://www.havering.gov.uk,London Borough of Havering,06/12/2010,57003925,5470.06,Citibank prepaid account ,Not applicable,ADULT SOCIAL CARE,Transfer Payments,EEEE SOCIAL CARE & LEARNING,EEE6 ADULT SOCIAL CARE
http://www.havering.gov.uk,London Borough of Havering,06/12/2010,57003925,5470.06,Citibank prepaid account ,Not applicable,ADULT SOCIAL CARE,Transfer Payments,EEEE SOCIAL CARE & LEARNING,EEE6 ADULT SOCIAL CARE
http://www.havering.gov.uk,London Borough of Havering,09/12/2010,57083857,1688428,London Councils - Concessionary Fares ,Not applicable,CORPORATE FINANCIAL MATTERS,Supplies and Services,FFFF FINANCE & COMMERCE,FFF4 CORPORATE FINANCIAL MATTERS
http://www.havering.gov.uk,London Borough of Havering,15/12/2010,57594288,105774.16,Onel Community Servces ,Not applicable,COMMISSIONING,Supplies and Services,EEEE SOCIAL CARE & LEARNING,EEE4 COMMISSIONING
http://www.havering.gov.uk,London Borough of Havering,15/12/2010,57594742,18463.8,Havering PCT Commissioing ,Not applicable,COMMISSIONING,Third Party Payments,EEEE SOCIAL CARE & LEARNING,EEE4 COMMISSIONING
http://www.havering.gov.uk,London Borough of Havering,21/12/2010,58342220,8905.53,Phoenix Preschool ,Not applicable,LEARNING & ACHIEVEMENT,Supplies and Services,EEEE SOCIAL CARE & LEARNING,EEE2 LEARNING & ACHIEVEMENT
http://www.havering.gov.uk,London Borough of Havering,24/12/2010,58580338,22675.75,LVRP,Not applicable,FINANCIAL SERVICES,Supplies and Services,FFFF FINANCE & COMMERCE,EXTF EXTERNAL FINANCE
http://www.havering.gov.uk,London Borough of Havering,24/12/2010,58580761,907906.12,BIFFA ,Not applicable,STREETCARE,Supplies and Services,BBBB CULTURE & COMMUNITY,BBB5 STREETCARE
http://www.havering.gov.uk,London Borough of Havering,24/12/2010,58580761,907906.12,BIFFA ,Not applicable,STREETCARE,Supplies and Services,BBBB CULTURE & COMMUNITY,BBB5 STREETCARE
http://www.havering.gov.uk,London Borough of Havering,24/12/2010,58580761,907906.12,BIFFA ,Not applicable,STREETCARE,Supplies and Services,BBBB CULTURE & COMMUNITY,BBB5 STREETCARE
http://www.havering.gov.uk,London Borough of Havering,24/12/2010,58580761,907906.12,BIFFA ,Not applicable,STREETCARE,Supplies and Services,BBBB CULTURE & COMMUNITY,BBB5 STREETCARE
http://www.havering.gov.uk,London Borough of Havering,29/12/2010,58660791,3957.28,Key Finance Group ,Not applicable,CONTROL & SUSPENSE,Non-Controllable,No Heirarchy,No Heirarchy
http://www.havering.gov.uk,London Borough of Havering,29/12/2010,58661075,38766.81,Key Finance Group ,Not applicable,CONTROL & SUSPENSE,Non-Controllable,No Heirarchy,No Heirarchy
http://www.havering.gov.uk,London Borough of Havering,29/12/2010,58661356,881.25,Lombard Asset Management ,Not applicable,CONTROL & SUSPENSE,Non-Controllable,No Heirarchy,No Heirarchy
http://www.havering.gov.uk,London Borough of Havering,29/12/2010,58661476,540.5,Lombard Asset Management ,Not applicable,CONTROL & SUSPENSE,Non-Controllable,No Heirarchy,No Heirarchy
http://www.havering.gov.uk,London Borough of Havering,29/12/2010,58661779,1762.5,CSA Financial ,Not applicable,CONTROL & SUSPENSE,Non-Controllable,No Heirarchy,No Heirarchy
http://www.havering.gov.uk,London Borough of Havering,29/12/2010,58661948,1431.84,CSA Financial ,Not applicable,CONTROL & SUSPENSE,Non-Controllable,No Heirarchy,No Heirarchy
http://www.havering.gov.uk,London Borough of Havering,29/12/2010,58662302,4993.75,Bank of Scotland Equipment Finance ,Not applicable,CONTROL & SUSPENSE,Non-Controllable,No Heirarchy,No Heirarchy
http://www.havering.gov.uk,London Borough of Havering,23/12/2010,58726739,268386.41,Ringway Infastructure Services Ltd ,Not applicable,REGENERATION & STRATEGIC PLANNING,Capital Expenditure,CULTURE & COMMUNITY,REGENERATION & STRATEGIC PLANNING
http://www.havering.gov.uk,London Borough of Havering,31/12/2010,58810025,117575,Havering Theatre Trust - LBH Grant ,Not applicable,CULTURE & LEISURE,Premises-Related Expenditure,BBBB CULTURE & COMMUNITY,BBB1 CULTURE & LEISURE
http://www.havering.gov.uk,London Borough of Havering,31/12/2010,58810025,117575,Havering Theatre Trust - LBH Grant ,Not applicable,CULTURE & LEISURE,Premises-Related Expenditure,BBBB CULTURE & COMMUNITY,BBB1 CULTURE & LEISURE
http://www.havering.gov.uk,London Borough of Havering,31/12/2010,58810738,2003521.88,HiH Management Fees ,Not applicable,HOUSING (HRA),Support Services,BBBB CULTURE & COMMUNITY,BBB8 HOUSING (HRA)
http://www.havering.gov.uk,London Borough of Havering,24/12/2010,58811177,5573.7,Citibank prepaid account ,Not applicable,CHILDREN & YOUNG PEOPLE,Transfer Payments,EEEE SOCIAL CARE & LEARNING,EEE3 CHILDREN & YOUNG PEOPLE
http://www.havering.gov.uk,London Borough of Havering,24/12/2010,58811177,5573.7,Citibank prepaid account ,Not applicable,ADULT SOCIAL CARE,Transfer Payments,EEEE SOCIAL CARE & LEARNING,EEE6 ADULT SOCIAL CARE
http://www.havering.gov.uk,London Borough of Havering,24/12/2010,58811177,5573.7,Citibank prepaid account ,Not applicable,ADULT SOCIAL CARE,Transfer Payments,EEEE SOCIAL CARE & LEARNING,EEE6 ADULT SOCIAL CARE
http://www.havering.gov.uk,London Borough of Havering,24/12/2010,58811177,5573.7,Citibank prepaid account ,Not applicable,ADULT SOCIAL CARE,Transfer Payments,EEEE SOCIAL CARE & LEARNING,EEE6 ADULT SOCIAL CARE
http://www.havering.gov.uk,London Borough of Havering,24/12/2010,58811177,5573.7,Citibank prepaid account ,Not applicable,ADULT SOCIAL CARE,Transfer Payments,EEEE SOCIAL CARE & LEARNING,EEE6 ADULT SOCIAL CARE
http://www.havering.gov.uk,London Borough of Havering,31/12/2010,58812165,66093.75,NI Properties - Rent,Not applicable,ASSET MANAGEMENT,Premises-Related Expenditure,FFFF FINANCE & COMMERCE,FFF7 ASSET MANAGEMENT
http://www.havering.gov.uk,London Borough of Havering,31/12/2010,58812420,125000,Zurich,Not applicable,CORPORATE FINANCE MANAGER,Non-Controllable,No Heirarchy,No Heirarchy
http://www.havering.gov.uk,London Borough of Havering,30/12/2010,58813509,182001,Crossrail BRS ,Not applicable,CONTROL & SUSPENSE,Non-Controllable,No Heirarchy,No Heirarchy
http://www.havering.gov.uk,London Borough of Havering,31/12/2010,58815606,4045,Environment Agecy - Anglian ,Not applicable,FINANCIAL SERVICES,Supplies and Services,FFFF FINANCE & COMMERCE,EXTF EXTERNAL FINANCE
http://www.havering.gov.uk,London Borough of Havering,31/12/2010,58815687,41248.75,Environment Agecy - Thames ,Not applicable,FINANCIAL SERVICES,Supplies and Services,FFFF FINANCE & COMMERCE,EXTF EXTERNAL FINANCE
http://www.havering.gov.uk,London Borough of Havering,31/12/2010,59016510,325751.79,Comensura,Not applicable,CONTROL & SUSPENSE,Non-Controllable,No Heirarchy,No Heirarchy
http://www.havering.gov.uk,London Borough of Havering,04/05/2010,723718002,1320,FOREST FREIGHT LTD,220706,CHILDREN & YOUNG PEOPLE,Supplies and Services,EEEE SOCIAL CARE & LEARNING,EEE3 CHILDREN & YOUNG PEOPLE
http://www.havering.gov.uk,London Borough of Havering,04/05/2010,723718003,-1320,FOREST FREIGHT LTD,220706,CHILDREN & YOUNG PEOPLE,Supplies and Services,EEEE SOCIAL CARE & LEARNING,EEE3 CHILDREN & YOUNG PEOPLE
http://www.havering.gov.uk,London Borough of Havering,04/05/2010,723718004,1320,FOREST FREIGHT LTD,220706,CHILDREN & YOUNG PEOPLE,Supplies and Services,EEEE SOCIAL CARE & LEARNING,EEE3 CHILDREN & YOUNG PEOPLE
http://www.havering.gov.uk,London Borough of Havering,31/08/2010,758024004,3876.83,ONEL COMMUNITY SERVICES ,145807,ADULT SOCIAL CARE,Employees,EEEE SOCIAL CARE & LEARNING,EEE6 ADULT SOCIAL CARE
http://www.havering.gov.uk,London Borough of Havering,31/08/2010,758025004,23770.37,ONEL COMMUNITY SERVICES ,145807,ADULT SOCIAL CARE,Employees,EEEE SOCIAL CARE & LEARNING,EEE6 ADULT SOCIAL CARE
http://www.havering.gov.uk,London Borough of Havering,01/09/2010,758438004,19384.14,ONEL COMMUNITY SERVICES ,145807,ADULT SOCIAL CARE,Employees,EEEE SOCIAL CARE & LEARNING,EEE6 ADULT SOCIAL CARE
http://www.havering.gov.uk,London Borough of Havering,01/09/2010,758441004,7753.5,ONEL COMMUNITY SERVICES ,145807,ADULT SOCIAL CARE,Employees,EEEE SOCIAL CARE & LEARNING,EEE6 ADULT SOCIAL CARE
http://www.havering.gov.uk,London Borough of Havering,01/09/2010,758443004,3876.83,ONEL COMMUNITY SERVICES ,145807,ADULT SOCIAL CARE,Employees,EEEE SOCIAL CARE & LEARNING,EEE6 ADULT SOCIAL CARE
http://www.havering.gov.uk,London Borough of Havering,08/10/2010,767993004,-11672.13,PRUDENTIAL CORPORATE PENSIONS ,136247,CONTROL & SUSPENSE,Non-Controllable,No Heirarchy,No Heirarchy
http://www.havering.gov.uk,London Borough of Havering,12/11/2010,779207004,-10868,ARBORICULTURAL ASSOCIATION ,137343,CULTURE & LEISURE,Supplies and Services,BBBB CULTURE & COMMUNITY,BBB1 CULTURE & LEISURE
http://www.havering.gov.uk,London Borough of Havering,23/11/2010,782262002,1340,THOMPSON HEATING (2000) LTD  ,5259,ASSET MANAGEMENT,Supplies and Services,FFFF FINANCE & COMMERCE,FFF7 ASSET MANAGEMENT
http://www.havering.gov.uk,London Borough of Havering,23/11/2010,782264002,680,THOMPSON HEATING (2000) LTD  ,5259,ASSET MANAGEMENT,Supplies and Services,FFFF FINANCE & COMMERCE,FFF7 ASSET MANAGEMENT
http://www.havering.gov.uk,London Borough of Havering,23/11/2010,782266002,4326.4,EMSS LTD ,160907,ASSET MANAGEMENT,Supplies and Services,FFFF FINANCE & COMMERCE,FFF7 ASSET MANAGEMENT
http://www.havering.gov.uk,London Borough of Havering,23/11/2010,782267002,2974.4,EMSS LTD ,160907,ASSET MANAGEMENT,Supplies and Services,FFFF FINANCE & COMMERCE,FFF7 ASSET MANAGEMENT
http://www.havering.gov.uk,London Borough of Havering,23/11/2010,782270002,540.8,EMSS LTD ,160907,ASSET MANAGEMENT,Supplies and Services,FFFF FINANCE & COMMERCE,FFF7 ASSET MANAGEMENT
http://www.havering.gov.uk,London Borough of Havering,23/11/2010,782272002,540.8,EMSS LTD ,160907,ASSET MANAGEMENT,Supplies and Services,FFFF FINANCE & COMMERCE,FFF7 ASSET MANAGEMENT
http://www.havering.gov.uk,London Borough of Havering,24/11/2010,783859002,500,ALBANY SCHOOL ,6974,EDUCATION GRANT FUNDING,Supplies and Services,EEEE SOCIAL CARE & LEARNING,EEE5 EDUCATION GRANT FUNDING
http://www.havering.gov.uk,London Borough of Havering,24/11/2010,783860002,497,ARCHANT LONDON ,2239,REGENERATION & STRATEGIC PLANNING,Supplies and Services,BBBB CULTURE & COMMUNITY,BBB7 REGENERATION & STRATEGIC PLANNING
http://www.havering.gov.uk,London Borough of Havering,24/11/2010,783861002,1925,**REDACTED PERSONAL DATA**,233187,LEARNING & ACHIEVEMENT,Supplies and Services,EEEE SOCIAL CARE & LEARNING,EEE2 LEARNING & ACHIEVEMENT
http://www.havering.gov.uk,London Borough of Havering,24/11/2010,783862002,500,CAMPION SCHOOL LBH  ,6975,EDUCATION GRANT FUNDING,Supplies and Services,EEEE SOCIAL CARE & LEARNING,EEE5 EDUCATION GRANT FUNDING
http://www.havering.gov.uk,London Borough of Havering,24/11/2010,783864002,591.03,C&SCS LTD,235387,ASSET MANAGEMENT,Supplies and Services,FFFF FINANCE & COMMERCE,FFF7 ASSET MANAGEMENT
http://www.havering.gov.uk,London Borough of Havering,24/11/2010,783866002,529.56,CORBETS TEY SCHOOL ,7046,CHILDREN & YOUNG PEOPLE,Employees,EEEE SOCIAL CARE & LEARNING,EEE3 CHILDREN & YOUNG PEOPLE
http://www.havering.gov.uk,London Borough of Havering,24/11/2010,783871002,10000,"FAMILY INFORMATION GROUP, THE",38549,CHILDREN & YOUNG PEOPLE,Supplies and Services,EEEE SOCIAL CARE & LEARNING,EEE3 CHILDREN & YOUNG PEOPLE
http://www.havering.gov.uk,London Borough of Havering,24/11/2010,783874002,2160,HARRIS ELECTRICAL CONTRACTORS LTD ,200270,ASSET MANAGEMENT,Premises-Related Expenditure,FFFF FINANCE & COMMERCE,FFF7 ASSET MANAGEMENT
http://www.havering.gov.uk,London Borough of Havering,24/11/2010,783878002,950,INTERNATIONAL TEACHERS NETWORK LTD,234436,LEARNING & ACHIEVEMENT,Employees,EEEE SOCIAL CARE & LEARNING,EEE2 LEARNING & ACHIEVEMENT
http://www.havering.gov.uk,London Borough of Havering,24/11/2010,783881002,1250,KINGSTON UNIVERSITY,233794,CHILDREN & YOUNG PEOPLE,Employees,EEEE SOCIAL CARE & LEARNING,EEE3 CHILDREN & YOUNG PEOPLE
http://www.havering.gov.uk,London Borough of Havering,24/11/2010,783922002,15000,LONDON FIRE AND EMERGENCY PLANNING AUTH,23550,LEGAL & DEMOCRATIC SVS,Supplies and Services,GGGG LEGAL & DEMOCRATIC SERVICES,GGG1 LEGAL & DEMOCRATIC SVS
http://www.havering.gov.uk,London Borough of Havering,24/11/2010,783942002,584,MIX-N-LAY CONCRETE SUPPLIES (SOUTHERN) LTD ,3617,HOUSING & PUBLIC PROTECTION,Premises-Related Expenditure,BBBB CULTURE & COMMUNITY,BBB3 HOUSING & PUBLIC PROTECTION
http://www.havering.gov.uk,London Borough of Havering,24/11/2010,783943002,960,NORTHGATE INFORMATION SOLUTIONS UK LTD ,229442,BUSINESS SYSTEMS,Supplies and Services,FFFF FINANCE & COMMERCE,FFF6 BUSINESS SYSTEMS
http://www.havering.gov.uk,London Borough of Havering,24/11/2010,783944002,6500,QUEEN MARY AND WESTFIELD COLLEGE,225739,EDUCATION GRANT FUNDING,Supplies and Services,EEEE SOCIAL CARE & LEARNING,EEE5 EDUCATION GRANT FUNDING
http://www.havering.gov.uk,London Borough of Havering,24/11/2010,783945002,4545,R B SOLUTIONS LTD,232156,EXCHEQUER SERVICES,Supplies and Services,FFFF FINANCE & COMMERCE,FFF2 EXCHEQUER SERVICES
http://www.havering.gov.uk,London Borough of Havering,24/11/2010,783945003,765,R B SOLUTIONS LTD,232156,EXCHEQUER SERVICES,Supplies and Services,FFFF FINANCE & COMMERCE,FFF2 EXCHEQUER SERVICES
http://www.havering.gov.uk,London Borough of Havering,24/11/2010,783949002,500,R O Y A L S ,133015,LEGAL & DEMOCRATIC SVS,Supplies and Services,GGGG LEGAL & DEMOCRATIC SERVICES,GGG1 LEGAL & DEMOCRATIC SVS
http://www.havering.gov.uk,London Borough of Havering,24/11/2010,783950002,1299,SP LITHO LTD ,231948,COMMUNICATIONS,Supplies and Services,BBBB CULTURE & COMMUNITY,BBB6 COMMUNICATIONS
http://www.havering.gov.uk,London Borough of Havering,24/11/2010,783956002,3025,TOPLEVEL COMPUTING LTD,237023,BUSINESS SYSTEMS,Transport-Related Expenditure,FFFF FINANCE & COMMERCE,FFF6 BUSINESS SYSTEMS
http://www.havering.gov.uk,London Borough of Havering,24/11/2010,783961002,3750,R M COMPLETE SERVICES LTD ,101651,HOUSING (HRA),Capital Expenditure,CULTURE & COMMUNITY,HOUSING (HRA)
http://www.havering.gov.uk,London Borough of Havering,24/11/2010,783962002,3750,R M COMPLETE SERVICES LTD ,101651,HOUSING (HRA),Capital Expenditure,CULTURE & COMMUNITY,HOUSING (HRA)
http://www.havering.gov.uk,London Borough of Havering,24/11/2010,783963002,3750,R M COMPLETE SERVICES LTD ,101651,HOUSING (HRA),Capital Expenditure,CULTURE & COMMUNITY,HOUSING (HRA)
http://www.havering.gov.uk,London Borough of Havering,24/11/2010,783964002,3750,R M COMPLETE SERVICES LTD ,101651,HOUSING (HRA),Capital Expenditure,CULTURE & COMMUNITY,HOUSING (HRA)
http://www.havering.gov.uk,London Borough of Havering,24/11/2010,783965002,3750,R M COMPLETE SERVICES LTD ,101651,HOUSING (HRA),Capital Expenditure,CULTURE & COMMUNITY,HOUSING (HRA)
http://www.havering.gov.uk,London Borough of Havering,24/11/2010,783966002,3750,R M COMPLETE SERVICES LTD ,101651,HOUSING (HRA),Capital Expenditure,CULTURE & COMMUNITY,HOUSING (HRA)
http://www.havering.gov.uk,London Borough of Havering,24/11/2010,783967002,3750,R M COMPLETE SERVICES LTD ,101651,HOUSING (HRA),Capital Expenditure,CULTURE & COMMUNITY,HOUSING (HRA)
http://www.havering.gov.uk,London Borough of Havering,24/11/2010,783968002,3750,R M COMPLETE SERVICES LTD ,101651,HOUSING (HRA),Capital Expenditure,CULTURE & COMMUNITY,HOUSING (HRA)
http://www.havering.gov.uk,London Borough of Havering,24/11/2010,783969002,3750,R M COMPLETE SERVICES LTD ,101651,HOUSING (HRA),Capital Expenditure,CULTURE & COMMUNITY,HOUSING (HRA)
http://www.havering.gov.uk,London Borough of Havering,25/11/2010,784100002,1400,INTERACTIVE CONSULTANCY ,224518,TRANSFORMATION AGENDA,Employees,GGGG LEGAL & DEMOCRATIC SERVICES,GGG2 TRANSFORMATION AGENDA
http://www.havering.gov.uk,London Borough of Havering,25/11/2010,784105002,650,BIDWELLS ,228567,ASSET MANAGEMENT,Capital Expenditure,FINANCE & COMMERCE,ASSET MANAGEMENT
http://www.havering.gov.uk,London Borough of Havering,25/11/2010,784107002,1460,ESSEX & EAST LONDON TREE SERVICES,140566,CULTURE & LEISURE,Premises-Related Expenditure,BBBB CULTURE & COMMUNITY,BBB1 CULTURE & LEISURE
http://www.havering.gov.uk,London Borough of Havering,25/11/2010,784114002,5250,ESPRIT LTD ,226649,CHILDREN & YOUNG PEOPLE,Supplies and Services,EEEE SOCIAL CARE & LEARNING,EEE3 CHILDREN & YOUNG PEOPLE
http://www.havering.gov.uk,London Borough of Havering,25/11/2010,784118002,571.82,FALON NAMEPLATES LIMITED ,1859,HOUSING & PUBLIC PROTECTION,Supplies and Services,BBBB CULTURE & COMMUNITY,BBB3 HOUSING & PUBLIC PROTECTION
http://www.havering.gov.uk,London Borough of Havering,25/11/2010,784121002,1512.5,HARRIS CUFFARO & NICHOLS SOLICITORS ,155769,EXCHEQUER SERVICES,Supplies and Services,FFFF FINANCE & COMMERCE,FFF2 EXCHEQUER SERVICES
http://www.havering.gov.uk,London Borough of Havering,25/11/2010,784124002,1250,HILBERY CHAPLIN ,2574,HOUSING (HRA),Support Services,BBBB CULTURE & COMMUNITY,BBB8 HOUSING (HRA)
http://www.havering.gov.uk,London Borough of Havering,25/11/2010,784126002,2980,HOPEWELL SCHOOL,234355,CHILDREN & YOUNG PEOPLE,Supplies and Services,EEEE SOCIAL CARE & LEARNING,EEE3 CHILDREN & YOUNG PEOPLE
http://www.havering.gov.uk,London Borough of Havering,25/11/2010,784127002,2980,HOPEWELL SCHOOL,234355,CHILDREN & YOUNG PEOPLE,Supplies and Services,EEEE SOCIAL CARE & LEARNING,EEE3 CHILDREN & YOUNG PEOPLE
http://www.havering.gov.uk,London Borough of Havering,25/11/2010,784128002,2980,HOPEWELL SCHOOL,234355,CHILDREN & YOUNG PEOPLE,Supplies and Services,EEEE SOCIAL CARE & LEARNING,EEE3 CHILDREN & YOUNG PEOPLE
http://www.havering.gov.uk,London Borough of Havering,25/11/2010,784141002,21074.05,MORRISON FACILITIES SERVICES LTD,204074,ASSET MANAGEMENT,Supplies and Services,FFFF FINANCE & COMMERCE,FFF7 ASSET MANAGEMENT
http://www.havering.gov.uk,London Borough of Havering,25/11/2010,784147002,2108.06,HYTHE HOUSE SUPPORT LTD ,160996,CHILDREN & YOUNG PEOPLE,Supplies and Services,EEEE SOCIAL CARE & LEARNING,EEE3 CHILDREN & YOUNG PEOPLE
http://www.havering.gov.uk,London Borough of Havering,25/11/2010,784147003,4010.35,HYTHE HOUSE SUPPORT LTD ,160996,CHILDREN & YOUNG PEOPLE,Supplies and Services,EEEE SOCIAL CARE & LEARNING,EEE3 CHILDREN & YOUNG PEOPLE
http://www.havering.gov.uk,London Borough of Havering,25/11/2010,784150002,8193.29,LDA DESIGN CONSULTING LLP,234951,REGENERATION & STRATEGIC PLANNING,Supplies and Services,BBBB CULTURE & COMMUNITY,BBB7 REGENERATION & STRATEGIC PLANNING
http://www.havering.gov.uk,London Borough of Havering,25/11/2010,784151002,8118.77,LDA DESIGN CONSULTING LLP,234951,REGENERATION & STRATEGIC PLANNING,Supplies and Services,BBBB CULTURE & COMMUNITY,BBB7 REGENERATION & STRATEGIC PLANNING
http://www.havering.gov.uk,London Borough of Havering,25/11/2010,784152002,782,LDA DESIGN CONSULTING LLP,234951,REGENERATION & STRATEGIC PLANNING,Supplies and Services,BBBB CULTURE & COMMUNITY,BBB7 REGENERATION & STRATEGIC PLANNING
http://www.havering.gov.uk,London Borough of Havering,25/11/2010,784153002,1490.97,LONDON BOROUGH OF HARROW,160476,LEARNING & ACHIEVEMENT,Third Party Payments,EEEE SOCIAL CARE & LEARNING,EEE2 LEARNING & ACHIEVEMENT
http://www.havering.gov.uk,London Borough of Havering,25/11/2010,784154002,45600,HAVERING COLLEGE OF F&HE ,7902,LEARNING & ACHIEVEMENT,Supplies and Services,EEEE SOCIAL CARE & LEARNING,EEE2 LEARNING & ACHIEVEMENT
http://www.havering.gov.uk,London Borough of Havering,25/11/2010,784155002,1750,LONDON GRID FOR LEARNING TRUST,226622,LEARNING & ACHIEVEMENT,Supplies and Services,EEEE SOCIAL CARE & LEARNING,EEE2 LEARNING & ACHIEVEMENT
http://www.havering.gov.uk,London Borough of Havering,25/11/2010,784156002,-1750,LONDON GRID FOR LEARNING TRUST,226622,LEARNING & ACHIEVEMENT,Supplies and Services,EEEE SOCIAL CARE & LEARNING,EEE2 LEARNING & ACHIEVEMENT
http://www.havering.gov.uk,London Borough of Havering,25/11/2010,784157002,6900,LORENSBERGS LTD,215441,BUSINESS SYSTEMS,Capital Expenditure,FINANCE & COMMERCE,BUSINESS SYSTEMS
http://www.havering.gov.uk,London Borough of Havering,25/11/2010,784157003,1000,LORENSBERGS LTD,215441,BUSINESS SYSTEMS,Capital Expenditure,FINANCE & COMMERCE,BUSINESS SYSTEMS
http://www.havering.gov.uk,London Borough of Havering,25/11/2010,784164002,5444,NEWSFAX INTERNATIONAL LTD,232041,COMMUNICATIONS,Supplies and Services,BBBB CULTURE & COMMUNITY,BBB6 COMMUNICATIONS
http://www.havering.gov.uk,London Borough of Havering,25/11/2010,784169002,6326.9,PHILIP PRESTON ASSOCIATES ,233923,SCHOOLS FOR THE FUTURE,Employees,EEEE SOCIAL CARE & LEARNING,EEE7 SCHOOLS FOR THE FUTURE
http://www.havering.gov.uk,London Borough of Havering,25/11/2010,784170002,2997,PITNEY BOWES FINANCE PLC  ,22187,ASSET MANAGEMENT,Transport-Related Expenditure,FFFF FINANCE & COMMERCE,FFF7 ASSET MANAGEMENT
http://www.havering.gov.uk,London Borough of Havering,25/11/2010,784173002,141504.58,PROSPECTS  SERVICES LTD,225363,CHILDREN & YOUNG PEOPLE,Supplies and Services,EEEE SOCIAL CARE & LEARNING,EEE3 CHILDREN & YOUNG PEOPLE
http://www.havering.gov.uk,London Borough of Havering,25/11/2010,784177002,620,RAPIER SECURITY SERVICES LTD,208736,ASSET MANAGEMENT,Premises-Related Expenditure,FFFF FINANCE & COMMERCE,FFF7 ASSET MANAGEMENT
http://www.havering.gov.uk,London Borough of Havering,25/11/2010,784183002,2033.48,ROYAL MAIL GROUP PLC ,26087,EXCHEQUER SERVICES,Supplies and Services,FFFF FINANCE & COMMERCE,FFF2 EXCHEQUER SERVICES
http://www.havering.gov.uk,London Borough of Havering,25/11/2010,784184002,1942.88,ROYAL MAIL GROUP PLC ,26087,EXCHEQUER SERVICES,Supplies and Services,FFFF FINANCE & COMMERCE,FFF2 EXCHEQUER SERVICES
http://www.havering.gov.uk,London Borough of Havering,25/11/2010,784187002,154.5,ROYAL MAIL GROUP PLC ,26087,COMMUNICATIONS,Supplies and Services,BBBB CULTURE & COMMUNITY,BBB6 COMMUNICATIONS
http://www.havering.gov.uk,London Borough of Havering,25/11/2010,784187003,215.54,ROYAL MAIL GROUP PLC ,26087,EXCHEQUER SERVICES,Supplies and Services,FFFF FINANCE & COMMERCE,FFF2 EXCHEQUER SERVICES
http://www.havering.gov.uk,London Borough of Havering,25/11/2010,784187004,497.93,ROYAL MAIL GROUP PLC ,26087,EXCHEQUER SERVICES,Supplies and Services,FFFF FINANCE & COMMERCE,FFF2 EXCHEQUER SERVICES
http://www.havering.gov.uk,London Borough of Havering,25/11/2010,784187005,544.36,ROYAL MAIL GROUP PLC ,26087,FINANCIAL SERVICES,Supplies and Services,FFFF FINANCE & COMMERCE,FFF1 FINANCIAL SERVICES
http://www.havering.gov.uk,London Borough of Havering,25/11/2010,784187006,216,ROYAL MAIL GROUP PLC ,26087,COMMISSIONING,Supplies and Services,EEEE SOCIAL CARE & LEARNING,EEE4 COMMISSIONING
http://www.havering.gov.uk,London Borough of Havering,25/11/2010,784187007,45,ROYAL MAIL GROUP PLC ,26087,EXCHEQUER SERVICES,Supplies and Services,FFFF FINANCE & COMMERCE,FFF2 EXCHEQUER SERVICES
http://www.havering.gov.uk,London Borough of Havering,25/11/2010,784187008,18.25,ROYAL MAIL GROUP PLC ,26087,HOUSING & PUBLIC PROTECTION,Supplies and Services,BBBB CULTURE & COMMUNITY,BBB3 HOUSING & PUBLIC PROTECTION
http://www.havering.gov.uk,London Borough of Havering,25/11/2010,784187009,209,ROYAL MAIL GROUP PLC ,26087,EXCHEQUER SERVICES,Supplies and Services,FFFF FINANCE & COMMERCE,FFF2 EXCHEQUER SERVICES
http://www.havering.gov.uk,London Borough of Havering,25/11/2010,784187010,117.36,ROYAL MAIL GROUP PLC ,26087,STREETCARE,Supplies and Services,BBBB CULTURE & COMMUNITY,BBB5 STREETCARE
http://www.havering.gov.uk,London Borough of Havering,25/11/2010,784189002,34620.64,MAY GURNEY LTD ,200855,STREETCARE,Supplies and Services,BBBB CULTURE & COMMUNITY,BBB5 STREETCARE
http://www.havering.gov.uk,London Borough of Havering,25/11/2010,784189003,6346.59,MAY GURNEY LTD ,200855,STREETCARE,Supplies and Services,BBBB CULTURE & COMMUNITY,BBB5 STREETCARE
http://www.havering.gov.uk,London Borough of Havering,25/11/2010,784189004,1783.61,MAY GURNEY LTD ,200855,STREETCARE,Capital Expenditure,CULTURE & COMMUNITY,STREETCARE
http://www.havering.gov.uk,London Borough of Havering,25/11/2010,784189005,558.38,MAY GURNEY LTD ,200855,STREETCARE,Income,BBBB CULTURE & COMMUNITY,BBB5 STREETCARE
http://www.havering.gov.uk,London Borough of Havering,25/11/2010,784189006,2490.19,MAY GURNEY LTD ,200855,REGENERATION & STRATEGIC PLANNING,Capital Expenditure,CULTURE & COMMUNITY,REGENERATION & STRATEGIC PLANNING
http://www.havering.gov.uk,London Borough of Havering,25/11/2010,784189007,6800.44,MAY GURNEY LTD ,200855,STREETCARE,Capital Expenditure,CULTURE & COMMUNITY,STREETCARE
http://www.havering.gov.uk,London Borough of Havering,25/11/2010,784189008,12880.37,MAY GURNEY LTD ,200855,STREETCARE,Capital Expenditure,CULTURE & COMMUNITY,STREETCARE
http://www.havering.gov.uk,London Borough of Havering,25/11/2010,784189009,103.42,MAY GURNEY LTD ,200855,CULTURE & LEISURE,Premises-Related Expenditure,BBBB CULTURE & COMMUNITY,BBB1 CULTURE & LEISURE
http://www.havering.gov.uk,London Borough of Havering,25/11/2010,784189010,197.64,MAY GURNEY LTD ,200855,STREETCARE,Supplies and Services,BBBB CULTURE & COMMUNITY,BBB5 STREETCARE
http://www.havering.gov.uk,London Borough of Havering,25/11/2010,784189011,732.81,MAY GURNEY LTD ,200855,STREETCARE,Premises-Related Expenditure,BBBB CULTURE & COMMUNITY,BBB5 STREETCARE
http://www.havering.gov.uk,London Borough of Havering,25/11/2010,784190002,750,ROUNCY MEDIA LTD,234283,ASSET MANAGEMENT,Supplies and Services,FFFF FINANCE & COMMERCE,FFF7 ASSET MANAGEMENT
http://www.havering.gov.uk,London Borough of Havering,25/11/2010,784191002,3838,SP LITHO LTD ,231948,COMMUNICATIONS,Supplies and Services,BBBB CULTURE & COMMUNITY,BBB6 COMMUNICATIONS
http://www.havering.gov.uk,London Borough of Havering,25/11/2010,784194002,503.23,FREEDOM HEALTHCARE SERVICES LTD,217722,ADULT SOCIAL CARE,Supplies and Services,EEEE SOCIAL CARE & LEARNING,EEE6 ADULT SOCIAL CARE
http://www.havering.gov.uk,London Borough of Havering,25/11/2010,784200002,829.23,FREEDOM HEALTHCARE SERVICES LTD,217722,ADULT SOCIAL CARE,Supplies and Services,EEEE SOCIAL CARE & LEARNING,EEE6 ADULT SOCIAL CARE
http://www.havering.gov.uk,London Borough of Havering,25/11/2010,784201002,806.72,BRITISH GAS BUSINESS ,162807,ASSET MANAGEMENT,Premises-Related Expenditure,FFFF FINANCE & COMMERCE,FFF7 ASSET MANAGEMENT
http://www.havering.gov.uk,London Borough of Havering,25/11/2010,784205002,1600,RCL ELECTRICAL SERVICES LTD ,132317,CUSTOMER ACCESS,Non-Controllable,No Heirarchy,No Heirarchy
http://www.havering.gov.uk,London Borough of Havering,25/11/2010,784207002,32.58,MILLER BROS (ROMFORD) LTD  ,22651,STREETCARE,Supplies and Services,BBBB CULTURE & COMMUNITY,BBB5 STREETCARE
http://www.havering.gov.uk,London Borough of Havering,25/11/2010,784207003,273.22,MILLER BROS (ROMFORD) LTD  ,22651,STREETCARE,Supplies and Services,BBBB CULTURE & COMMUNITY,BBB5 STREETCARE
http://www.havering.gov.uk,London Borough of Havering,25/11/2010,784207004,71.7,MILLER BROS (ROMFORD) LTD  ,22651,STREETCARE,Supplies and Services,BBBB CULTURE & COMMUNITY,BBB5 STREETCARE
http://www.havering.gov.uk,London Borough of Havering,25/11/2010,784207005,1417.82,MILLER BROS (ROMFORD) LTD  ,22651,STREETCARE,Supplies and Services,BBBB CULTURE & COMMUNITY,BBB5 STREETCARE
http://www.havering.gov.uk,London Borough of Havering,25/11/2010,784207006,352.18,MILLER BROS (ROMFORD) LTD  ,22651,STREETCARE,Supplies and Services,BBBB CULTURE & COMMUNITY,BBB5 STREETCARE
http://www.havering.gov.uk,London Borough of Havering,25/11/2010,784207007,115.55,MILLER BROS (ROMFORD) LTD  ,22651,STREETCARE,Supplies and Services,BBBB CULTURE & COMMUNITY,BBB5 STREETCARE
http://www.havering.gov.uk,London Borough of Havering,25/11/2010,784207008,624.23,MILLER BROS (ROMFORD) LTD  ,22651,STREETCARE,Supplies and Services,BBBB CULTURE & COMMUNITY,BBB5 STREETCARE
http://www.havering.gov.uk,London Borough of Havering,25/11/2010,784207009,260.27,MILLER BROS (ROMFORD) LTD  ,22651,STREETCARE,Supplies and Services,BBBB CULTURE & COMMUNITY,BBB5 STREETCARE
http://www.havering.gov.uk,London Borough of Havering,25/11/2010,784210002,4888.35,LBH HACTON PRIMARY SCHOOL,140784,SCHOOLS FOR THE FUTURE,Capital Expenditure,SOCIAL CARE & LEARNING,SCHOOLS FOR THE FUTURE
http://www.havering.gov.uk,London Borough of Havering,26/11/2010,784301002,838.39,**REDACTED PERSONAL DATA**,237228,HOUSING,Non-Controllable,No Heirarchy,No Heirarchy
http://www.havering.gov.uk,London Borough of Havering,26/11/2010,784307002,6000,SANTANDER (REFERENCE 2010/93872),237223,HOUSING,Non-Controllable,No Heirarchy,No Heirarchy
http://www.havering.gov.uk,London Borough of Havering,26/11/2010,784375002,2966.24,G4S CASH SOLUTIONS (UK) LTD ,135419,COMMISSIONING,Supplies and Services,EEEE SOCIAL CARE & LEARNING,EEE4 COMMISSIONING
http://www.havering.gov.uk,London Borough of Havering,26/11/2010,784384002,818.73,**REDACTED PERSONAL DATA**,237236,HOUSING,Non-Controllable,No Heirarchy,No Heirarchy
http://www.havering.gov.uk,London Borough of Havering,26/11/2010,784386002,1500.48,**REDACTED PERSONAL DATA**,237234,HOUSING,Non-Controllable,No Heirarchy,No Heirarchy
http://www.havering.gov.uk,London Borough of Havering,26/11/2010,784401002,3500,IDC SERVICES LTD,236743,HOUSING & PUBLIC PROTECTION,Capital Expenditure,CULTURE & COMMUNITY,HOUSING & PUBLIC PROTECTION
http://www.havering.gov.uk,London Borough of Havering,26/11/2010,784403002,7400,WESTERN PROPERTY SERVICES LTD,210065,HOUSING & PUBLIC PROTECTION,Capital Expenditure,CULTURE & COMMUNITY,HOUSING & PUBLIC PROTECTION
http://www.havering.gov.uk,London Borough of Havering,26/11/2010,784404002,30000,WKD BUILDERS,237258,HOUSING & PUBLIC PROTECTION,Capital Expenditure,CULTURE & COMMUNITY,HOUSING & PUBLIC PROTECTION
http://www.havering.gov.uk,London Borough of Havering,26/11/2010,784407002,3500,HAVERING MAYESBROOK A C ,207506,CULTURE & LEISURE,Premises-Related Expenditure,BBBB CULTURE & COMMUNITY,BBB1 CULTURE & LEISURE
http://www.havering.gov.uk,London Borough of Havering,26/11/2010,784409002,600,DUNCAN WHITEHOUSE LTD ,222480,CULTURE & LEISURE,Supplies and Services,BBBB CULTURE & COMMUNITY,BBB1 CULTURE & LEISURE
http://www.havering.gov.uk,London Borough of Havering,26/11/2010,784410002,19570,HELLABYS LTD ,109369,SCHOOLS FOR THE FUTURE,Capital Expenditure,SOCIAL CARE & LEARNING,SCHOOLS FOR THE FUTURE
http://www.havering.gov.uk,London Borough of Havering,26/11/2010,784415002,11894.96,ACORN BUILDING CONTRACTORS LTD,227281,LEARNING & ACHIEVEMENT,Capital Expenditure,SOCIAL CARE & LEARNING,SCHOOLS FOR THE FUTURE
http://www.havering.gov.uk,London Borough of Havering,26/11/2010,784421002,631,CARETECH UK LTD ,122109,ADULT SOCIAL CARE,Supplies and Services,EEEE SOCIAL CARE & LEARNING,EEE6 ADULT SOCIAL CARE
http://www.havering.gov.uk,London Borough of Havering,26/11/2010,784440002,250,FREEDOM HEALTHCARE SERVICES LTD,217722,ADULT SOCIAL CARE,Supplies and Services,EEEE SOCIAL CARE & LEARNING,EEE6 ADULT SOCIAL CARE
http://www.havering.gov.uk,London Borough of Havering,26/11/2010,784440003,3598,FREEDOM HEALTHCARE SERVICES LTD,217722,ADULT SOCIAL CARE,Supplies and Services,EEEE SOCIAL CARE & LEARNING,EEE6 ADULT SOCIAL CARE
http://www.havering.gov.uk,London Borough of Havering,26/11/2010,784443002,23.5,A & B PLANT SERVICES LTD ,161791,STREETCARE,Transport-Related Expenditure,BBBB CULTURE & COMMUNITY,BBB5 STREETCARE
http://www.havering.gov.uk,London Borough of Havering,26/11/2010,784443003,33.58,A & B PLANT SERVICES LTD ,161791,STREETCARE,Transport-Related Expenditure,BBBB CULTURE & COMMUNITY,BBB5 STREETCARE
http://www.havering.gov.uk,London Borough of Havering,26/11/2010,784443004,33.57,A & B PLANT SERVICES LTD ,161791,STREETCARE,Transport-Related Expenditure,BBBB CULTURE & COMMUNITY,BBB5 STREETCARE
http://www.havering.gov.uk,London Borough of Havering,26/11/2010,784443005,26.11,A & B PLANT SERVICES LTD ,161791,STREETCARE,Transport-Related Expenditure,BBBB CULTURE & COMMUNITY,BBB5 STREETCARE
http://www.havering.gov.uk,London Borough of Havering,26/11/2010,784443006,18.08,A & B PLANT SERVICES LTD ,161791,STREETCARE,Transport-Related Expenditure,BBBB CULTURE & COMMUNITY,BBB5 STREETCARE
http://www.havering.gov.uk,London Borough of Havering,26/11/2010,784443007,23.5,A & B PLANT SERVICES LTD ,161791,STREETCARE,Transport-Related Expenditure,BBBB CULTURE & COMMUNITY,BBB5 STREETCARE
http://www.havering.gov.uk,London Borough of Havering,26/11/2010,784443008,23.5,A & B PLANT SERVICES LTD ,161791,STREETCARE,Transport-Related Expenditure,BBBB CULTURE & COMMUNITY,BBB5 STREETCARE
http://www.havering.gov.uk,London Borough of Havering,26/11/2010,784443009,23.5,A & B PLANT SERVICES LTD ,161791,STREETCARE,Transport-Related Expenditure,BBBB CULTURE & COMMUNITY,BBB5 STREETCARE
http://www.havering.gov.uk,London Borough of Havering,26/11/2010,784443010,23.5,A & B PLANT SERVICES LTD ,161791,STREETCARE,Transport-Related Expenditure,BBBB CULTURE & COMMUNITY,BBB5 STREETCARE
http://www.havering.gov.uk,London Borough of Havering,26/11/2010,784443011,23.5,A & B PLANT SERVICES LTD ,161791,STREETCARE,Transport-Related Expenditure,BBBB CULTURE & COMMUNITY,BBB5 STREETCARE
http://www.havering.gov.uk,London Borough of Havering,26/11/2010,784443012,18.08,A & B PLANT SERVICES LTD ,161791,STREETCARE,Transport-Related Expenditure,BBBB CULTURE & COMMUNITY,BBB5 STREETCARE
http://www.havering.gov.uk,London Borough of Havering,26/11/2010,784443013,23.5,A & B PLANT SERVICES LTD ,161791,STREETCARE,Transport-Related Expenditure,BBBB CULTURE & COMMUNITY,BBB5 STREETCARE
http://www.havering.gov.uk,London Borough of Havering,26/11/2010,784443014,23.5,A & B PLANT SERVICES LTD ,161791,STREETCARE,Transport-Related Expenditure,BBBB CULTURE & COMMUNITY,BBB5 STREETCARE
http://www.havering.gov.uk,London Borough of Havering,26/11/2010,784443015,18.08,A & B PLANT SERVICES LTD ,161791,STREETCARE,Transport-Related Expenditure,BBBB CULTURE & COMMUNITY,BBB5 STREETCARE
http://www.havering.gov.uk,London Borough of Havering,26/11/2010,784443016,23.5,A & B PLANT SERVICES LTD ,161791,STREETCARE,Transport-Related Expenditure,BBBB CULTURE & COMMUNITY,BBB5 STREETCARE
http://www.havering.gov.uk,London Borough of Havering,26/11/2010,784443017,18.08,A & B PLANT SERVICES LTD ,161791,STREETCARE,Transport-Related Expenditure,BBBB CULTURE & COMMUNITY,BBB5 STREETCARE
http://www.havering.gov.uk,London Borough of Havering,26/11/2010,784443018,18.08,A & B PLANT SERVICES LTD ,161791,STREETCARE,Transport-Related Expenditure,BBBB CULTURE & COMMUNITY,BBB5 STREETCARE
http://www.havering.gov.uk,London Borough of Havering,26/11/2010,784443019,33.57,A & B PLANT SERVICES LTD ,161791,STREETCARE,Transport-Related Expenditure,BBBB CULTURE & COMMUNITY,BBB5 STREETCARE
http://www.havering.gov.uk,London Borough of Havering,26/11/2010,784443020,33.57,A & B PLANT SERVICES LTD ,161791,STREETCARE,Transport-Related Expenditure,BBBB CULTURE & COMMUNITY,BBB5 STREETCARE
http://www.havering.gov.uk,London Borough of Havering,26/11/2010,784443021,23.5,A & B PLANT SERVICES LTD ,161791,STREETCARE,Transport-Related Expenditure,BBBB CULTURE & COMMUNITY,BBB5 STREETCARE
http://www.havering.gov.uk,London Borough of Havering,26/11/2010,784443022,18.08,A & B PLANT SERVICES LTD ,161791,STREETCARE,Transport-Related Expenditure,BBBB CULTURE & COMMUNITY,BBB5 STREETCARE
http://www.havering.gov.uk,London Borough of Havering,26/11/2010,784443023,59.68,A & B PLANT SERVICES LTD ,161791,STREETCARE,Transport-Related Expenditure,BBBB CULTURE & COMMUNITY,BBB5 STREETCARE
http://www.havering.gov.uk,London Borough of Havering,26/11/2010,784443024,33.57,A & B PLANT SERVICES LTD ,161791,STREETCARE,Transport-Related Expenditure,BBBB CULTURE & COMMUNITY,BBB5 STREETCARE
http://www.havering.gov.uk,London Borough of Havering,26/11/2010,784443025,33.57,A & B PLANT SERVICES LTD ,161791,STREETCARE,Transport-Related Expenditure,BBBB CULTURE & COMMUNITY,BBB5 STREETCARE
http://www.havering.gov.uk,London Borough of Havering,26/11/2010,784443026,18.08,A & B PLANT SERVICES LTD ,161791,STREETCARE,Transport-Related Expenditure,BBBB CULTURE & COMMUNITY,BBB5 STREETCARE
http://www.havering.gov.uk,London Borough of Havering,26/11/2010,784443027,26.11,A & B PLANT SERVICES LTD ,161791,STREETCARE,Transport-Related Expenditure,BBBB CULTURE & COMMUNITY,BBB5 STREETCARE
http://www.havering.gov.uk,London Borough of Havering,26/11/2010,784443028,18.08,A & B PLANT SERVICES LTD ,161791,STREETCARE,Transport-Related Expenditure,BBBB CULTURE & COMMUNITY,BBB5 STREETCARE
http://www.havering.gov.uk,London Borough of Havering,26/11/2010,784443029,26.11,A & B PLANT SERVICES LTD ,161791,STREETCARE,Transport-Related Expenditure,BBBB CULTURE & COMMUNITY,BBB5 STREETCARE
http://www.havering.gov.uk,London Borough of Havering,26/11/2010,784443030,18.08,A & B PLANT SERVICES LTD ,161791,STREETCARE,Transport-Related Expenditure,BBBB CULTURE & COMMUNITY,BBB5 STREETCARE
http://www.havering.gov.uk,London Borough of Havering,26/11/2010,784443031,18.08,A & B PLANT SERVICES LTD ,161791,STREETCARE,Transport-Related Expenditure,BBBB CULTURE & COMMUNITY,BBB5 STREETCARE
http://www.havering.gov.uk,London Borough of Havering,26/11/2010,784443032,18.08,A & B PLANT SERVICES LTD ,161791,STREETCARE,Transport-Related Expenditure,BBBB CULTURE & COMMUNITY,BBB5 STREETCARE
http://www.havering.gov.uk,London Borough of Havering,26/11/2010,784443033,18.04,A & B PLANT SERVICES LTD ,161791,STREETCARE,Transport-Related Expenditure,BBBB CULTURE & COMMUNITY,BBB5 STREETCARE
http://www.havering.gov.uk,London Borough of Havering,26/11/2010,784443034,26.11,A & B PLANT SERVICES LTD ,161791,STREETCARE,Transport-Related Expenditure,BBBB CULTURE & COMMUNITY,BBB5 STREETCARE
http://www.havering.gov.uk,London Borough of Havering,26/11/2010,784443035,26.11,A & B PLANT SERVICES LTD ,161791,STREETCARE,Transport-Related Expenditure,BBBB CULTURE & COMMUNITY,BBB5 STREETCARE
http://www.havering.gov.uk,London Borough of Havering,26/11/2010,784443036,18.08,A & B PLANT SERVICES LTD ,161791,STREETCARE,Transport-Related Expenditure,BBBB CULTURE & COMMUNITY,BBB5 STREETCARE
http://www.havering.gov.uk,London Borough of Havering,26/11/2010,784443037,26.11,A & B PLANT SERVICES LTD ,161791,STREETCARE,Transport-Related Expenditure,BBBB CULTURE & COMMUNITY,BBB5 STREETCARE
http://www.havering.gov.uk,London Borough of Havering,26/11/2010,784443038,26.11,A & B PLANT SERVICES LTD ,161791,STREETCARE,Transport-Related Expenditure,BBBB CULTURE & COMMUNITY,BBB5 STREETCARE
http://www.havering.gov.uk,London Borough of Havering,26/11/2010,784443039,26.12,A & B PLANT SERVICES LTD ,161791,STREETCARE,Employees,BBBB CULTURE & COMMUNITY,BBB5 STREETCARE
http://www.havering.gov.uk,London Borough of Havering,26/11/2010,784445002,16166.8,HOME-START HAVERING ,141640,CHILDREN & YOUNG PEOPLE,Transfer Payments,EEEE SOCIAL CARE & LEARNING,EEE3 CHILDREN & YOUNG PEOPLE
http://www.havering.gov.uk,London Borough of Havering,29/11/2010,784465001,517.31,"HOLT JACKSON BOOK CO LTD,THE ",2618,CULTURE & LEISURE,Supplies and Services,BBBB CULTURE & COMMUNITY,BBB1 CULTURE & LEISURE
http://www.havering.gov.uk,London Borough of Havering,29/11/2010,784466001,507.5,"HOLT JACKSON BOOK CO LTD,THE ",2618,CULTURE & LEISURE,Supplies and Services,BBBB CULTURE & COMMUNITY,BBB1 CULTURE & LEISURE
http://www.havering.gov.uk,London Borough of Havering,29/11/2010,784559001,14625,CAPGEMINI UK PLC ,234582,CONTROL & SUSPENSE,Non-Controllable,GGGG LEGAL & DEMOCRATIC SERVICES,GGG2 TRANSFORMATION AGENDA
http://www.havering.gov.uk,London Borough of Havering,29/11/2010,784560001,88.35,OFFICE DEPOT UK LTD ,220619,CONTROL & SUSPENSE,Non-Controllable,EEEE SOCIAL CARE & LEARNING,EEE2 LEARNING & ACHIEVEMENT
http://www.havering.gov.uk,London Borough of Havering,29/11/2010,784560002,131.08,OFFICE DEPOT UK LTD ,220619,CONTROL & SUSPENSE,Non-Controllable,EEEE SOCIAL CARE & LEARNING,EEE2 LEARNING & ACHIEVEMENT
http://www.havering.gov.uk,London Borough of Havering,29/11/2010,784560003,1.96,OFFICE DEPOT UK LTD ,220619,CONTROL & SUSPENSE,Non-Controllable,EEEE SOCIAL CARE & LEARNING,EEE2 LEARNING & ACHIEVEMENT
http://www.havering.gov.uk,London Borough of Havering,29/11/2010,784560004,1.7,OFFICE DEPOT UK LTD ,220619,CONTROL & SUSPENSE,Non-Controllable,EEEE SOCIAL CARE & LEARNING,EEE2 LEARNING & ACHIEVEMENT
http://www.havering.gov.uk,London Borough of Havering,29/11/2010,784560005,81.88,OFFICE DEPOT UK LTD ,220619,CONTROL & SUSPENSE,Non-Controllable,EEEE SOCIAL CARE & LEARNING,EEE2 LEARNING & ACHIEVEMENT
http://www.havering.gov.uk,London Borough of Havering,29/11/2010,784560006,55,OFFICE DEPOT UK LTD ,220619,CONTROL & SUSPENSE,Non-Controllable,EEEE SOCIAL CARE & LEARNING,EEE2 LEARNING & ACHIEVEMENT
http://www.havering.gov.uk,London Borough of Havering,29/11/2010,784560007,5.66,OFFICE DEPOT UK LTD ,220619,CONTROL & SUSPENSE,Non-Controllable,EEEE SOCIAL CARE & LEARNING,EEE2 LEARNING & ACHIEVEMENT
http://www.havering.gov.uk,London Borough of Havering,29/11/2010,784560008,121,OFFICE DEPOT UK LTD ,220619,CONTROL & SUSPENSE,Non-Controllable,EEEE SOCIAL CARE & LEARNING,EEE2 LEARNING & ACHIEVEMENT
http://www.havering.gov.uk,London Borough of Havering,29/11/2010,784560009,0.6,OFFICE DEPOT UK LTD ,220619,CONTROL & SUSPENSE,Non-Controllable,EEEE SOCIAL CARE & LEARNING,EEE2 LEARNING & ACHIEVEMENT
http://www.havering.gov.uk,London Borough of Havering,29/11/2010,784626002,1120,JOSEPH ROCHFORD GARDENS LTD ,226393,CULTURE & LEISURE,Capital Expenditure,CULTURE & COMMUNITY,STREETCARE
http://www.havering.gov.uk,London Borough of Havering,29/11/2010,784628002,25950,CHRIS BLANDFORD ASSOCIATES ,234735,CULTURE & LEISURE,Capital Expenditure,CULTURE & COMMUNITY,CULTURE & LEISURE
http://www.havering.gov.uk,London Borough of Havering,29/11/2010,784630002,2000,VILLAGE GARDENS (UK) ,236421,CULTURE & LEISURE,Capital Expenditure,CULTURE & COMMUNITY,STREETCARE
http://www.havering.gov.uk,London Borough of Havering,29/11/2010,784646001,751.95,PURFLEET COMMERCIALS LTD,220418,ASSET MANAGEMENT,Supplies and Services,FFFF FINANCE & COMMERCE,FFF7 ASSET MANAGEMENT
http://www.havering.gov.uk,London Borough of Havering,29/11/2010,784652001,666.37,SCARAB SWEEPERS LIMITED ,116771,ASSET MANAGEMENT,Supplies and Services,FFFF FINANCE & COMMERCE,FFF7 ASSET MANAGEMENT
http://www.havering.gov.uk,London Borough of Havering,29/11/2010,784665001,2280,FUEL OILS (HOLDINGS) LTD ,114451,ASSET MANAGEMENT,Supplies and Services,FFFF FINANCE & COMMERCE,FFF7 ASSET MANAGEMENT
http://www.havering.gov.uk,London Borough of Havering,29/11/2010,784685002,1150,**REDACTED PERSONAL DATA**,235860,HOUSING & PUBLIC PROTECTION,Premises-Related Expenditure,BBBB CULTURE & COMMUNITY,BBB3 HOUSING & PUBLIC PROTECTION
http://www.havering.gov.uk,London Borough of Havering,29/11/2010,784688002,2280,EAGLE ASBESTOS MULTISERVICES LTD,236855,HOUSING (HRA),Capital Expenditure,CULTURE & COMMUNITY,HOUSING (HRA)
http://www.havering.gov.uk,London Borough of Havering,29/11/2010,784689002,9037.4,MORRISON FACILITIES SERVICES LTD,204074,HOUSING (HRA),Capital Expenditure,CULTURE & COMMUNITY,HOUSING (HRA)
http://www.havering.gov.uk,London Borough of Havering,29/11/2010,784692002,2687.04,MORRISON FACILITIES SERVICES LTD,204074,HOUSING (HRA),Capital Expenditure,CULTURE & COMMUNITY,HOUSING (HRA)
http://www.havering.gov.uk,London Borough of Havering,29/11/2010,784693002,1267.88,MORRISON FACILITIES SERVICES LTD,204074,HOUSING (HRA),Capital Expenditure,CULTURE & COMMUNITY,HOUSING (HRA)
http://www.havering.gov.uk,London Borough of Havering,29/11/2010,784694002,10805.01,MORRISON FACILITIES SERVICES LTD,204074,HOUSING (HRA),Capital Expenditure,CULTURE & COMMUNITY,HOUSING (HRA)
http://www.havering.gov.uk,London Borough of Havering,29/11/2010,784695002,29377.94,MORRISON FACILITIES SERVICES LTD,204074,HOUSING (HRA),Capital Expenditure,CULTURE & COMMUNITY,HOUSING (HRA)
http://www.havering.gov.uk,London Borough of Havering,29/11/2010,784698002,11422.15,INTERSERVE TECHNICAL SERVICES LTD ,125741,HOUSING (HRA),Capital Expenditure,CULTURE & COMMUNITY,HOUSING (HRA)
http://www.havering.gov.uk,London Borough of Havering,29/11/2010,784699002,610,ACADEMY CATERING EQUIPMENT LTD,211479,COMMISSIONING,Supplies and Services,EEEE SOCIAL CARE & LEARNING,EEE4 COMMISSIONING
http://www.havering.gov.uk,London Borough of Havering,29/11/2010,784700002,24635.54,INTERSERVE TECHNICAL SERVICES LTD ,125741,HOUSING (HRA),Capital Expenditure,CULTURE & COMMUNITY,HOUSING (HRA)
http://www.havering.gov.uk,London Borough of Havering,29/11/2010,784702002,28222.67,INTERSERVE TECHNICAL SERVICES LTD ,125741,HOUSING (HRA),Capital Expenditure,CULTURE & COMMUNITY,HOUSING (HRA)
http://www.havering.gov.uk,London Borough of Havering,29/11/2010,784704002,1579.8,CASTLE POINT GAS & HEATING CO LTD  ,952,HOUSING (HRA),Capital Expenditure,CULTURE & COMMUNITY,HOUSING (HRA)
http://www.havering.gov.uk,London Borough of Havering,29/11/2010,784715002,17028.99,CASTLE POINT GAS & HEATING CO LTD  ,952,HOUSING (HRA),Capital Expenditure,CULTURE & COMMUNITY,HOUSING (HRA)
http://www.havering.gov.uk,London Borough of Havering,29/11/2010,784729002,500,ST EDWARDS CATHOLIC PRIMARY SCHOOL ,235001,LEARNING & ACHIEVEMENT,Supplies and Services,EEEE SOCIAL CARE & LEARNING,EEE2 LEARNING & ACHIEVEMENT
http://www.havering.gov.uk,London Borough of Havering,29/11/2010,784732002,1000,POSTAGE BY PHONE-PITNEY BOWES PLC,4215,ASSET MANAGEMENT,Supplies and Services,FFFF FINANCE & COMMERCE,FFF7 ASSET MANAGEMENT
http://www.havering.gov.uk,London Borough of Havering,29/11/2010,784735002,535.42,NEOPOST FINANCE LIMITED  ,25952,ASSET MANAGEMENT,Supplies and Services,FFFF FINANCE & COMMERCE,FFF7 ASSET MANAGEMENT
http://www.havering.gov.uk,London Borough of Havering,29/11/2010,784737002,780,HEMPSALL CONSULTANCIES LTD ,217666,LEARNING & ACHIEVEMENT,Employees,EEEE SOCIAL CARE & LEARNING,EEE2 LEARNING & ACHIEVEMENT
http://www.havering.gov.uk,London Borough of Havering,29/11/2010,784742002,7391.12,ENVIRONMENTAL RESOURCES MANAGEMENT,231149,REGENERATION & STRATEGIC PLANNING,Supplies and Services,BBBB CULTURE & COMMUNITY,BBB7 REGENERATION & STRATEGIC PLANNING
http://www.havering.gov.uk,London Borough of Havering,29/11/2010,784748002,527.77,WILLIAM WHITE MEATS LTD,228083,COMMISSIONING,Supplies and Services,EEEE SOCIAL CARE & LEARNING,EEE4 COMMISSIONING
http://www.havering.gov.uk,London Borough of Havering,29/11/2010,784752002,836,GROUP 4 TECHNOLOGY LTD ,210379,ASSET MANAGEMENT,Premises-Related Expenditure,FFFF FINANCE & COMMERCE,FFF7 ASSET MANAGEMENT
http://www.havering.gov.uk,London Borough of Havering,29/11/2010,784756002,560,HELLABYS LTD ,109369,ASSET MANAGEMENT,Supplies and Services,FFFF FINANCE & COMMERCE,FFF7 ASSET MANAGEMENT
http://www.havering.gov.uk,London Borough of Havering,29/11/2010,784759002,829,GARVIN MARR LTD,233337,REGENERATION & STRATEGIC PLANNING,Supplies and Services,BBBB CULTURE & COMMUNITY,BBB7 REGENERATION & STRATEGIC PLANNING
http://www.havering.gov.uk,London Borough of Havering,29/11/2010,784767002,560,HELLABYS LTD ,109369,ASSET MANAGEMENT,Supplies and Services,FFFF FINANCE & COMMERCE,FFF7 ASSET MANAGEMENT
http://www.havering.gov.uk,London Borough of Havering,29/11/2010,784771002,541.95,BRITISH GAS BUSINESS ,162807,ASSET MANAGEMENT,Premises-Related Expenditure,FFFF FINANCE & COMMERCE,FFF7 ASSET MANAGEMENT
http://www.havering.gov.uk,London Borough of Havering,29/11/2010,784772002,718,JOHNSON CONTROLS  LTD ,21379,ASSET MANAGEMENT,Premises-Related Expenditure,FFFF FINANCE & COMMERCE,FFF7 ASSET MANAGEMENT
http://www.havering.gov.uk,London Borough of Havering,29/11/2010,784773002,1978,JOHNSON CONTROLS  LTD ,21379,ASSET MANAGEMENT,Premises-Related Expenditure,FFFF FINANCE & COMMERCE,FFF7 ASSET MANAGEMENT
http://www.havering.gov.uk,London Borough of Havering,29/11/2010,784777002,6000,SACRED HEART OF MARY GIRLS SCHOOL ,125699,LEARNING & ACHIEVEMENT,Supplies and Services,EEEE SOCIAL CARE & LEARNING,EEE2 LEARNING & ACHIEVEMENT
http://www.havering.gov.uk,London Borough of Havering,29/11/2010,784778002,1890,ISO COVERS LTD,235674,SCHOOLS FOR THE FUTURE,Capital Expenditure,SOCIAL CARE & LEARNING,SCHOOLS FOR THE FUTURE
http://www.havering.gov.uk,London Borough of Havering,29/11/2010,784779002,1040,ISO COVERS LTD,235674,SCHOOLS FOR THE FUTURE,Capital Expenditure,SOCIAL CARE & LEARNING,SCHOOLS FOR THE FUTURE
http://www.havering.gov.uk,London Borough of Havering,29/11/2010,784780002,2880,LONDON BOROUGH OF WALTHAM FOREST ,104234,LEARNING & ACHIEVEMENT,Third Party Payments,EEEE SOCIAL CARE & LEARNING,EEE2 LEARNING & ACHIEVEMENT
http://www.havering.gov.uk,London Borough of Havering,29/11/2010,784781002,1992,HARRIS ELECTRICAL CONTRACTORS LTD ,200270,CHILDREN & YOUNG PEOPLES SERVICES,Capital Expenditure,SOCIAL CARE & LEARNING,CHILDREN & YOUNG PEOPLES SERVICES
http://www.havering.gov.uk,London Borough of Havering,29/11/2010,784782002,965.94,**REDACTED PERSONAL DATA**,210689,LEARNING & ACHIEVEMENT,Supplies and Services,EEEE SOCIAL CARE & LEARNING,EEE2 LEARNING & ACHIEVEMENT
http://www.havering.gov.uk,London Borough of Havering,29/11/2010,784783002,8153.08,PARKLANDS INFANT SCHOOL ,125810,SCHOOLS FOR THE FUTURE,Capital Expenditure,SOCIAL CARE & LEARNING,LEARNING & ACHIEVEMENT
http://www.havering.gov.uk,London Borough of Havering,29/11/2010,784787002,9960.39,MORRISON FACILITIES SERVICES LTD,204074,ASSET MANAGEMENT,Supplies and Services,FFFF FINANCE & COMMERCE,FFF7 ASSET MANAGEMENT
http://www.havering.gov.uk,London Borough of Havering,29/11/2010,784814002,721.67,**REDACTED PERSONAL DATA**,223886,CHILDREN & YOUNG PEOPLE,Supplies and Services,EEEE SOCIAL CARE & LEARNING,EEE3 CHILDREN & YOUNG PEOPLE
http://www.havering.gov.uk,London Borough of Havering,30/11/2010,784820002,1555.8,NSAVE SOCIALCARE 1 LTD ,236308,COMMISSIONING,Supplies and Services,EEEE SOCIAL CARE & LEARNING,EEE4 COMMISSIONING
http://www.havering.gov.uk,London Borough of Havering,30/11/2010,784828002,26,"LEAVING CARE TEAM PETTY CASH,LBH",222465,CHILDREN & YOUNG PEOPLE,Supplies and Services,EEEE SOCIAL CARE & LEARNING,EEE3 CHILDREN & YOUNG PEOPLE
http://www.havering.gov.uk,London Borough of Havering,30/11/2010,784828003,98.43,"LEAVING CARE TEAM PETTY CASH,LBH",222465,CHILDREN & YOUNG PEOPLE,Supplies and Services,EEEE SOCIAL CARE & LEARNING,EEE3 CHILDREN & YOUNG PEOPLE
http://www.havering.gov.uk,London Borough of Havering,30/11/2010,784828004,50,"LEAVING CARE TEAM PETTY CASH,LBH",222465,CHILDREN & YOUNG PEOPLE,Supplies and Services,EEEE SOCIAL CARE & LEARNING,EEE3 CHILDREN & YOUNG PEOPLE
http://www.havering.gov.uk,London Borough of Havering,30/11/2010,784828005,16.6,"LEAVING CARE TEAM PETTY CASH,LBH",222465,CHILDREN & YOUNG PEOPLE,Supplies and Services,EEEE SOCIAL CARE & LEARNING,EEE3 CHILDREN & YOUNG PEOPLE
http://www.havering.gov.uk,London Borough of Havering,30/11/2010,784828006,26,"LEAVING CARE TEAM PETTY CASH,LBH",222465,CHILDREN & YOUNG PEOPLE,Supplies and Services,EEEE SOCIAL CARE & LEARNING,EEE3 CHILDREN & YOUNG PEOPLE
http://www.havering.gov.uk,London Borough of Havering,30/11/2010,784828007,10,"LEAVING CARE TEAM PETTY CASH,LBH",222465,CHILDREN & YOUNG PEOPLE,Supplies and Services,EEEE SOCIAL CARE & LEARNING,EEE3 CHILDREN & YOUNG PEOPLE
http://www.havering.gov.uk,London Borough of Havering,30/11/2010,784828008,5.99,"LEAVING CARE TEAM PETTY CASH,LBH",222465,CHILDREN & YOUNG PEOPLE,Supplies and Services,EEEE SOCIAL CARE & LEARNING,EEE3 CHILDREN & YOUNG PEOPLE
http://www.havering.gov.uk,London Borough of Havering,30/11/2010,784828009,20,"LEAVING CARE TEAM PETTY CASH,LBH",222465,CHILDREN & YOUNG PEOPLE,Supplies and Services,EEEE SOCIAL CARE & LEARNING,EEE3 CHILDREN & YOUNG PEOPLE
http://www.havering.gov.uk,London Borough of Havering,30/11/2010,784828010,-10,"LEAVING CARE TEAM PETTY CASH,LBH",222465,CHILDREN & YOUNG PEOPLE,Supplies and Services,EEEE SOCIAL CARE & LEARNING,EEE3 CHILDREN & YOUNG PEOPLE
http://www.havering.gov.uk,London Borough of Havering,30/11/2010,784828011,26,"LEAVING CARE TEAM PETTY CASH,LBH",222465,CHILDREN & YOUNG PEOPLE,Supplies and Services,EEEE SOCIAL CARE & LEARNING,EEE3 CHILDREN & YOUNG PEOPLE
http://www.havering.gov.uk,London Borough of Havering,30/11/2010,784828012,25,"LEAVING CARE TEAM PETTY CASH,LBH",222465,CHILDREN & YOUNG PEOPLE,Premises-Related Expenditure,EEEE SOCIAL CARE & LEARNING,EEE3 CHILDREN & YOUNG PEOPLE
http://www.havering.gov.uk,London Borough of Havering,30/11/2010,784828013,25,"LEAVING CARE TEAM PETTY CASH,LBH",222465,CHILDREN & YOUNG PEOPLE,Transfer Payments,EEEE SOCIAL CARE & LEARNING,EEE3 CHILDREN & YOUNG PEOPLE
http://www.havering.gov.uk,London Borough of Havering,30/11/2010,784828014,24,"LEAVING CARE TEAM PETTY CASH,LBH",222465,CHILDREN & YOUNG PEOPLE,Supplies and Services,EEEE SOCIAL CARE & LEARNING,EEE3 CHILDREN & YOUNG PEOPLE
http://www.havering.gov.uk,London Borough of Havering,30/11/2010,784828015,25,"LEAVING CARE TEAM PETTY CASH,LBH",222465,CHILDREN & YOUNG PEOPLE,Supplies and Services,EEEE SOCIAL CARE & LEARNING,EEE3 CHILDREN & YOUNG PEOPLE
http://www.havering.gov.uk,London Borough of Havering,30/11/2010,784828016,30,"LEAVING CARE TEAM PETTY CASH,LBH",222465,CHILDREN & YOUNG PEOPLE,Supplies and Services,EEEE SOCIAL CARE & LEARNING,EEE3 CHILDREN & YOUNG PEOPLE
http://www.havering.gov.uk,London Borough of Havering,30/11/2010,784828017,49.5,"LEAVING CARE TEAM PETTY CASH,LBH",222465,CHILDREN & YOUNG PEOPLE,Supplies and Services,EEEE SOCIAL CARE & LEARNING,EEE3 CHILDREN & YOUNG PEOPLE
http://www.havering.gov.uk,London Borough of Havering,30/11/2010,784828018,50,"LEAVING CARE TEAM PETTY CASH,LBH",222465,CHILDREN & YOUNG PEOPLE,Supplies and Services,EEEE SOCIAL CARE & LEARNING,EEE3 CHILDREN & YOUNG PEOPLE
http://www.havering.gov.uk,London Borough of Havering,30/11/2010,784828019,50,"LEAVING CARE TEAM PETTY CASH,LBH",222465,CHILDREN & YOUNG PEOPLE,Supplies and Services,EEEE SOCIAL CARE & LEARNING,EEE3 CHILDREN & YOUNG PEOPLE
http://www.havering.gov.uk,London Borough of Havering,30/11/2010,784828020,26,"LEAVING CARE TEAM PETTY CASH,LBH",222465,CHILDREN & YOUNG PEOPLE,Supplies and Services,EEEE SOCIAL CARE & LEARNING,EEE3 CHILDREN & YOUNG PEOPLE
http://www.havering.gov.uk,London Borough of Havering,30/11/2010,784828021,26,"LEAVING CARE TEAM PETTY CASH,LBH",222465,CHILDREN & YOUNG PEOPLE,Supplies and Services,EEEE SOCIAL CARE & LEARNING,EEE3 CHILDREN & YOUNG PEOPLE
http://www.havering.gov.uk,London Borough of Havering,30/11/2010,784828022,16.6,"LEAVING CARE TEAM PETTY CASH,LBH",222465,CHILDREN & YOUNG PEOPLE,Supplies and Services,EEEE SOCIAL CARE & LEARNING,EEE3 CHILDREN & YOUNG PEOPLE
http://www.havering.gov.uk,London Borough of Havering,30/11/2010,784828023,17.5,"LEAVING CARE TEAM PETTY CASH,LBH",222465,CHILDREN & YOUNG PEOPLE,Supplies and Services,EEEE SOCIAL CARE & LEARNING,EEE3 CHILDREN & YOUNG PEOPLE
http://www.havering.gov.uk,London Borough of Havering,30/11/2010,784828024,52,"LEAVING CARE TEAM PETTY CASH,LBH",222465,CHILDREN & YOUNG PEOPLE,Supplies and Services,EEEE SOCIAL CARE & LEARNING,EEE3 CHILDREN & YOUNG PEOPLE
http://www.havering.gov.uk,London Borough of Havering,30/11/2010,784828025,50,"LEAVING CARE TEAM PETTY CASH,LBH",222465,CHILDREN & YOUNG PEOPLE,Supplies and Services,EEEE SOCIAL CARE & LEARNING,EEE3 CHILDREN & YOUNG PEOPLE
http://www.havering.gov.uk,London Borough of Havering,30/11/2010,784828026,2,"LEAVING CARE TEAM PETTY CASH,LBH",222465,CHILDREN & YOUNG PEOPLE,Supplies and Services,EEEE SOCIAL CARE & LEARNING,EEE3 CHILDREN & YOUNG PEOPLE
http://www.havering.gov.uk,London Borough of Havering,30/11/2010,784828027,26,"LEAVING CARE TEAM PETTY CASH,LBH",222465,CHILDREN & YOUNG PEOPLE,Supplies and Services,EEEE SOCIAL CARE & LEARNING,EEE3 CHILDREN & YOUNG PEOPLE
http://www.havering.gov.uk,London Borough of Havering,30/11/2010,784844002,359.92,NEIL SULLIVAN & SONS ,225267,STREETCARE,Supplies and Services,BBBB CULTURE & COMMUNITY,BBB5 STREETCARE
http://www.havering.gov.uk,London Borough of Havering,30/11/2010,784844003,65.44,NEIL SULLIVAN & SONS ,225267,STREETCARE,Supplies and Services,BBBB CULTURE & COMMUNITY,BBB5 STREETCARE
http://www.havering.gov.uk,London Borough of Havering,30/11/2010,784844004,65.44,NEIL SULLIVAN & SONS ,225267,STREETCARE,Supplies and Services,BBBB CULTURE & COMMUNITY,BBB5 STREETCARE
http://www.havering.gov.uk,London Borough of Havering,30/11/2010,784847002,140,**REDACTED PERSONAL DATA**,134987,STREETCARE,Transport-Related Expenditure,BBBB CULTURE & COMMUNITY,BBB5 STREETCARE
http://www.havering.gov.uk,London Borough of Havering,30/11/2010,784847003,217.5,**REDACTED PERSONAL DATA**,134987,STREETCARE,Transport-Related Expenditure,BBBB CULTURE & COMMUNITY,BBB5 STREETCARE
http://www.havering.gov.uk,London Borough of Havering,30/11/2010,784847004,112.5,**REDACTED PERSONAL DATA**,134987,STREETCARE,Transport-Related Expenditure,BBBB CULTURE & COMMUNITY,BBB5 STREETCARE
http://www.havering.gov.uk,London Borough of Havering,30/11/2010,784847005,40,**REDACTED PERSONAL DATA**,134987,STREETCARE,Transport-Related Expenditure,BBBB CULTURE & COMMUNITY,BBB5 STREETCARE
http://www.havering.gov.uk,London Borough of Havering,30/11/2010,784847006,140,**REDACTED PERSONAL DATA**,134987,STREETCARE,Transport-Related Expenditure,BBBB CULTURE & COMMUNITY,BBB5 STREETCARE
http://www.havering.gov.uk,London Borough of Havering,30/11/2010,784854002,72.38,HANSON AGGREGATES,133189,STREETCARE,Supplies and Services,BBBB CULTURE & COMMUNITY,BBB5 STREETCARE
http://www.havering.gov.uk,London Borough of Havering,30/11/2010,784854003,219.21,HANSON AGGREGATES,133189,STREETCARE,Supplies and Services,BBBB CULTURE & COMMUNITY,BBB5 STREETCARE
http://www.havering.gov.uk,London Borough of Havering,30/11/2010,784854004,397.06,HANSON AGGREGATES,133189,STREETCARE,Supplies and Services,BBBB CULTURE & COMMUNITY,BBB5 STREETCARE
http://www.havering.gov.uk,London Borough of Havering,30/11/2010,784858002,55.84,HANSON AGGREGATES,133189,STREETCARE,Supplies and Services,BBBB CULTURE & COMMUNITY,BBB5 STREETCARE
http://www.havering.gov.uk,London Borough of Havering,30/11/2010,784858003,452.89,HANSON AGGREGATES,133189,STREETCARE,Supplies and Services,BBBB CULTURE & COMMUNITY,BBB5 STREETCARE
http://www.havering.gov.uk,London Borough of Havering,30/11/2010,784863002,185.8,MIX-N-LAY CONCRETE SUPPLIES (SOUTHERN) LTD ,3617,STREETCARE,Supplies and Services,BBBB CULTURE & COMMUNITY,BBB5 STREETCARE
http://www.havering.gov.uk,London Borough of Havering,30/11/2010,784863003,154.7,MIX-N-LAY CONCRETE SUPPLIES (SOUTHERN) LTD ,3617,STREETCARE,Supplies and Services,BBBB CULTURE & COMMUNITY,BBB5 STREETCARE
http://www.havering.gov.uk,London Borough of Havering,30/11/2010,784863004,110.5,MIX-N-LAY CONCRETE SUPPLIES (SOUTHERN) LTD ,3617,STREETCARE,Supplies and Services,BBBB CULTURE & COMMUNITY,BBB5 STREETCARE
http://www.havering.gov.uk,London Borough of Havering,30/11/2010,784863005,210.8,MIX-N-LAY CONCRETE SUPPLIES (SOUTHERN) LTD ,3617,STREETCARE,Supplies and Services,BBBB CULTURE & COMMUNITY,BBB5 STREETCARE
http://www.havering.gov.uk,London Borough of Havering,30/11/2010,784863006,192.8,MIX-N-LAY CONCRETE SUPPLIES (SOUTHERN) LTD ,3617,STREETCARE,Supplies and Services,BBBB CULTURE & COMMUNITY,BBB5 STREETCARE
http://www.havering.gov.uk,London Borough of Havering,30/11/2010,784876002,22445.71,COMPUTERSHARE VOUCHER SERVICES ,220170,EXCHEQUER SERVICES,Supplies and Services,FFFF FINANCE & COMMERCE,FFF2 EXCHEQUER SERVICES
http://www.havering.gov.uk,London Borough of Havering,30/11/2010,784879002,1000,COOPERS CO & COBURN SCHOOL ,125697,LEARNING & ACHIEVEMENT,Supplies and Services,EEEE SOCIAL CARE & LEARNING,EEE2 LEARNING & ACHIEVEMENT
http://www.havering.gov.uk,London Borough of Havering,30/11/2010,784881002,1000,CHAFFORD SCHOOL ,125820,LEARNING & ACHIEVEMENT,Supplies and Services,EEEE SOCIAL CARE & LEARNING,EEE2 LEARNING & ACHIEVEMENT
http://www.havering.gov.uk,London Borough of Havering,30/11/2010,784882002,1540,HANDICARE ACCESSIBILITY LTD,237076,HOUSING (HRA),Capital Expenditure,CULTURE & COMMUNITY,HOUSING (HRA)
http://www.havering.gov.uk,London Borough of Havering,30/11/2010,784884002,369536.3,CRISPIN & BORST LTD ,1331,CULTURE & LEISURE,Capital Expenditure,BBBB CULTURE & COMMUNITY,BBB1 CULTURE & LEISURE
http://www.havering.gov.uk,London Borough of Havering,30/11/2010,784887002,400,GUARDIAN SECURITY FENCING  ,22172,CULTURE & LEISURE,Premises-Related Expenditure,BBBB CULTURE & COMMUNITY,BBB1 CULTURE & LEISURE
http://www.havering.gov.uk,London Borough of Havering,30/11/2010,784887003,954,GUARDIAN SECURITY FENCING  ,22172,CULTURE & LEISURE,Premises-Related Expenditure,BBBB CULTURE & COMMUNITY,BBB1 CULTURE & LEISURE
http://www.havering.gov.uk,London Borough of Havering,30/11/2010,784888002,16500,MORGAN LAW PARTNERS LLP ,205740,TRANSFORMATION AGENDA,Supplies and Services,GGGG LEGAL & DEMOCRATIC SERVICES,GGG2 TRANSFORMATION AGENDA
http://www.havering.gov.uk,London Borough of Havering,30/11/2010,784894002,3106.24,JACOBS ENGINEERING UK LTD,227455,SCHOOLS FOR THE FUTURE,Capital Expenditure,SOCIAL CARE & LEARNING,SCHOOLS FOR THE FUTURE
http://www.havering.gov.uk,London Borough of Havering,30/11/2010,784897002,867.44,ORANGE TREE PLAYGROUP,110665,SCHOOLS FOR THE FUTURE,Capital Expenditure,SOCIAL CARE & LEARNING,LEARNING & ACHIEVEMENT
http://www.havering.gov.uk,London Borough of Havering,30/11/2010,784898002,1164.84,TODDLE INN ,231440,LEARNING & ACHIEVEMENT,Supplies and Services,EEEE SOCIAL CARE & LEARNING,EEE2 LEARNING & ACHIEVEMENT
http://www.havering.gov.uk,London Borough of Havering,30/11/2010,784899002,668.54,**REDACTED PERSONAL DATA**,222345,LEARNING & ACHIEVEMENT,Supplies and Services,EEEE SOCIAL CARE & LEARNING,EEE2 LEARNING & ACHIEVEMENT
http://www.havering.gov.uk,London Borough of Havering,30/11/2010,784901002,700,**REDACTED PERSONAL DATA**,237269,HOUSING & PUBLIC PROTECTION,Supplies and Services,BBBB CULTURE & COMMUNITY,BBB3 HOUSING & PUBLIC PROTECTION
http://www.havering.gov.uk,London Borough of Havering,30/11/2010,784940002,551.87,**REDACTED PERSONAL DATA**,230664,CHILDREN & YOUNG PEOPLE,Supplies and Services,EEEE SOCIAL CARE & LEARNING,EEE3 CHILDREN & YOUNG PEOPLE
http://www.havering.gov.uk,London Borough of Havering,01/12/2010,784966002,539.2,TUKE & BELL LTD,227337,STREETCARE,Supplies and Services,BBBB CULTURE & COMMUNITY,BBB5 STREETCARE
http://www.havering.gov.uk,London Borough of Havering,01/12/2010,784967002,615,STRAIGHT PLC,217365,STREETCARE,Supplies and Services,BBBB CULTURE & COMMUNITY,BBB5 STREETCARE
http://www.havering.gov.uk,London Borough of Havering,01/12/2010,784968002,12100,JACOBS CONSULTANCY UK LTD,227471,STREETCARE,Capital Expenditure,CULTURE & COMMUNITY,STREETCARE
http://www.havering.gov.uk,London Borough of Havering,01/12/2010,784969002,2833.41,COREHARD LIMITED ,205356,STREETCARE,Employees,BBBB CULTURE & COMMUNITY,BBB5 STREETCARE
http://www.havering.gov.uk,London Borough of Havering,01/12/2010,784974002,951.3,COREHARD LIMITED ,205356,STREETCARE,Employees,BBBB CULTURE & COMMUNITY,BBB5 STREETCARE
http://www.havering.gov.uk,London Borough of Havering,01/12/2010,784977002,7050.24,S H GOSS AND CO LTD  ,2192,STREETCARE,Premises-Related Expenditure,BBBB CULTURE & COMMUNITY,BBB5 STREETCARE
http://www.havering.gov.uk,London Borough of Havering,01/12/2010,784978002,11592,AMEY LG LTD,230673,STREETCARE,Supplies and Services,BBBB CULTURE & COMMUNITY,BBB5 STREETCARE
http://www.havering.gov.uk,London Borough of Havering,01/12/2010,784981002,870,DIRECT SURVEILLANCE SOLUTIONS LTD,226520,STREETCARE,Premises-Related Expenditure,BBBB CULTURE & COMMUNITY,BBB5 STREETCARE
http://www.havering.gov.uk,London Borough of Havering,01/12/2010,784983002,571.9,BARCHAM TREES LTD  ,42054,STREETCARE,Supplies and Services,BBBB CULTURE & COMMUNITY,BBB5 STREETCARE
http://www.havering.gov.uk,London Borough of Havering,01/12/2010,784984002,525,TIM MOYA ASSOCIATIES,234662,STREETCARE,Premises-Related Expenditure,BBBB CULTURE & COMMUNITY,BBB5 STREETCARE
http://www.havering.gov.uk,London Borough of Havering,01/12/2010,784990002,536.25,POWERWASH SOLUTIONS LTD,155422,ASSET MANAGEMENT,Transport-Related Expenditure,FFFF FINANCE & COMMERCE,FFF7 ASSET MANAGEMENT
http://www.havering.gov.uk,London Borough of Havering,01/12/2010,784990003,20,POWERWASH SOLUTIONS LTD,155422,CULTURE & LEISURE,Supplies and Services,BBBB CULTURE & COMMUNITY,BBB1 CULTURE & LEISURE
http://www.havering.gov.uk,London Borough of Havering,01/12/2010,784997002,11549,CITY SUBURBAN TREE SURGEONS,232635,STREETCARE,Premises-Related Expenditure,BBBB CULTURE & COMMUNITY,BBB5 STREETCARE
http://www.havering.gov.uk,London Borough of Havering,01/12/2010,784997003,194,CITY SUBURBAN TREE SURGEONS,232635,STREETCARE,Capital Expenditure,CULTURE & COMMUNITY,STREETCARE
http://www.havering.gov.uk,London Borough of Havering,01/12/2010,784997004,112,CITY SUBURBAN TREE SURGEONS,232635,STREETCARE,Supplies and Services,BBBB CULTURE & COMMUNITY,BBB5 STREETCARE
http://www.havering.gov.uk,London Borough of Havering,01/12/2010,784998002,3178,CITY SUBURBAN TREE SURGEONS,232635,STREETCARE,Premises-Related Expenditure,BBBB CULTURE & COMMUNITY,BBB5 STREETCARE
http://www.havering.gov.uk,London Borough of Havering,01/12/2010,784998003,1198,CITY SUBURBAN TREE SURGEONS,232635,STREETCARE,Capital Expenditure,CULTURE & COMMUNITY,STREETCARE
http://www.havering.gov.uk,London Borough of Havering,01/12/2010,785006002,477.75,POWERWASH SOLUTIONS LTD,155422,ASSET MANAGEMENT,Transport-Related Expenditure,FFFF FINANCE & COMMERCE,FFF7 ASSET MANAGEMENT
http://www.havering.gov.uk,London Borough of Havering,01/12/2010,785006003,20,POWERWASH SOLUTIONS LTD,155422,CULTURE & LEISURE,Supplies and Services,BBBB CULTURE & COMMUNITY,BBB1 CULTURE & LEISURE
http://www.havering.gov.uk,London Borough of Havering,01/12/2010,785007002,507.2,W F HOWES LTD ,128724,CULTURE & LEISURE,Supplies and Services,BBBB CULTURE & COMMUNITY,BBB1 CULTURE & LEISURE
http://www.havering.gov.uk,London Borough of Havering,01/12/2010,785019002,287532.01,COMENSURA LTD,224737,CONTROL & SUSPENSE,Non-Controllable,No Heirarchy,No Heirarchy
http://www.havering.gov.uk,London Borough of Havering,01/12/2010,785019003,-13791.28,COMENSURA LTD,224737,BUSINESS EFFICIENCY,Employees,FFFF FINANCE & COMMERCE,FFF3 BUSINESS EFFICIENCY
http://www.havering.gov.uk,London Borough of Havering,01/12/2010,785020002,426,UK POWER NETWORKS (OPERATIONS) LTD,237178,STREETCARE,Supplies and Services,BBBB CULTURE & COMMUNITY,BBB5 STREETCARE
http://www.havering.gov.uk,London Borough of Havering,01/12/2010,785021002,426,UK POWER NETWORKS (OPERATIONS) LTD,237178,STREETCARE,Supplies and Services,BBBB CULTURE & COMMUNITY,BBB5 STREETCARE
http://www.havering.gov.uk,London Borough of Havering,01/12/2010,785022002,7169,UK POWER NETWORKS (OPERATIONS) LTD,237178,STREETCARE,Capital Expenditure,CULTURE & COMMUNITY,STREETCARE
http://www.havering.gov.uk,London Borough of Havering,01/12/2010,785023002,1035,UK POWER NETWORKS (OPERATIONS) LTD,237178,STREETCARE,Supplies and Services,BBBB CULTURE & COMMUNITY,BBB5 STREETCARE
http://www.havering.gov.uk,London Borough of Havering,01/12/2010,785024002,5356,UK POWER NETWORKS (OPERATIONS) LTD,237178,STREETCARE,Capital Expenditure,CULTURE & COMMUNITY,STREETCARE
http://www.havering.gov.uk,London Borough of Havering,01/12/2010,785025002,852,UK POWER NETWORKS (OPERATIONS) LTD,237178,STREETCARE,Capital Expenditure,CULTURE & COMMUNITY,STREETCARE
http://www.havering.gov.uk,London Borough of Havering,01/12/2010,785026002,628,UK POWER NETWORKS (OPERATIONS) LTD,237178,STREETCARE,Supplies and Services,BBBB CULTURE & COMMUNITY,BBB5 STREETCARE
http://www.havering.gov.uk,London Borough of Havering,01/12/2010,785027002,426,UK POWER NETWORKS (OPERATIONS) LTD,237178,STREETCARE,Supplies and Services,BBBB CULTURE & COMMUNITY,BBB5 STREETCARE
http://www.havering.gov.uk,London Borough of Havering,01/12/2010,785028002,628,UK POWER NETWORKS (OPERATIONS) LTD,237178,STREETCARE,Supplies and Services,BBBB CULTURE & COMMUNITY,BBB5 STREETCARE
http://www.havering.gov.uk,London Borough of Havering,01/12/2010,785029002,852,UK POWER NETWORKS (OPERATIONS) LTD,237178,STREETCARE,Capital Expenditure,CULTURE & COMMUNITY,STREETCARE
http://www.havering.gov.uk,London Borough of Havering,01/12/2010,785030002,426,UK POWER NETWORKS (OPERATIONS) LTD,237178,STREETCARE,Supplies and Services,BBBB CULTURE & COMMUNITY,BBB5 STREETCARE
http://www.havering.gov.uk,London Borough of Havering,01/12/2010,785031002,628,UK POWER NETWORKS (OPERATIONS) LTD,237178,STREETCARE,Supplies and Services,BBBB CULTURE & COMMUNITY,BBB5 STREETCARE
http://www.havering.gov.uk,London Borough of Havering,01/12/2010,785032002,2400,**REDACTED PERSONAL DATA**,233485,CHILDREN & YOUNG PEOPLE,Supplies and Services,EEEE SOCIAL CARE & LEARNING,EEE3 CHILDREN & YOUNG PEOPLE
http://www.havering.gov.uk,London Borough of Havering,01/12/2010,785034003,675.95,E.ON POWERGEN ,137957,CHILDREN & YOUNG PEOPLE,Premises-Related Expenditure,EEEE SOCIAL CARE & LEARNING,EEE3 CHILDREN & YOUNG PEOPLE
http://www.havering.gov.uk,London Borough of Havering,01/12/2010,785037002,1470,SUCCESS BUSINESS VENTURE LTD ,235733,COMMISSIONING,Employees,EEEE SOCIAL CARE & LEARNING,EEE4 COMMISSIONING
http://www.havering.gov.uk,London Borough of Havering,01/12/2010,785059002,3000,GT STEWART SOLICITORS,237270,HOUSING & PUBLIC PROTECTION,Supplies and Services,BBBB CULTURE & COMMUNITY,BBB3 HOUSING & PUBLIC PROTECTION
http://www.havering.gov.uk,London Borough of Havering,01/12/2010,785064002,247.89,LEXISNEXIS ,161439,LEGAL & DEMOCRATIC SVS,Supplies and Services,GGGG LEGAL & DEMOCRATIC SERVICES,GGG1 LEGAL & DEMOCRATIC SVS
http://www.havering.gov.uk,London Borough of Havering,01/12/2010,785064003,239.56,LEXISNEXIS ,161439,LEGAL & DEMOCRATIC SVS,Supplies and Services,GGGG LEGAL & DEMOCRATIC SERVICES,GGG1 LEGAL & DEMOCRATIC SVS
http://www.havering.gov.uk,London Borough of Havering,01/12/2010,785070001,-239.56,LEXISNEXIS ,161439,LEGAL & DEMOCRATIC SVS,Supplies and Services,GGGG LEGAL & DEMOCRATIC SERVICES,GGG1 LEGAL & DEMOCRATIC SVS
http://www.havering.gov.uk,London Borough of Havering,01/12/2010,785070002,-247.89,LEXISNEXIS ,161439,LEGAL & DEMOCRATIC SVS,Supplies and Services,GGGG LEGAL & DEMOCRATIC SERVICES,GGG1 LEGAL & DEMOCRATIC SVS
http://www.havering.gov.uk,London Borough of Havering,01/12/2010,785071002,3500,PUBLIC-i GROUP LTD,233265,LEGAL & DEMOCRATIC SVS,Supplies and Services,GGGG LEGAL & DEMOCRATIC SERVICES,GGG1 LEGAL & DEMOCRATIC SVS
http://www.havering.gov.uk,London Borough of Havering,01/12/2010,785077002,2539.35,CPL PETROLEUM LTD ,222769,CHILDREN & YOUNG PEOPLE,Premises-Related Expenditure,EEEE SOCIAL CARE & LEARNING,EEE3 CHILDREN & YOUNG PEOPLE
http://www.havering.gov.uk,London Borough of Havering,01/12/2010,785078002,2070,SLM ,230425,CHILDREN & YOUNG PEOPLE,Supplies and Services,EEEE SOCIAL CARE & LEARNING,EEE3 CHILDREN & YOUNG PEOPLE
http://www.havering.gov.uk,London Borough of Havering,01/12/2010,785079002,2215,CIPFA,1062,FINANCIAL SERVICES,Employees,FFFF FINANCE & COMMERCE,FFF1 FINANCIAL SERVICES
http://www.havering.gov.uk,London Borough of Havering,01/12/2010,785080002,2938,POTTON HOMES LTD ,236818,CHILDREN & YOUNG PEOPLE,Third Party Payments,EEEE SOCIAL CARE & LEARNING,EEE3 CHILDREN & YOUNG PEOPLE
http://www.havering.gov.uk,London Borough of Havering,01/12/2010,785081002,3710,COHEN COUNSELLING PSYCHOLOGY ,224143,LEARNING & ACHIEVEMENT,Employees,EEEE SOCIAL CARE & LEARNING,EEE2 LEARNING & ACHIEVEMENT
http://www.havering.gov.uk,London Borough of Havering,01/12/2010,785091002,10016.04,MORRISON FACILITIES SERVICES LTD,204074,ASSET MANAGEMENT,Supplies and Services,FFFF FINANCE & COMMERCE,FFF7 ASSET MANAGEMENT
http://www.havering.gov.uk,London Borough of Havering,01/12/2010,785092002,3640.59,MORRISON FACILITIES SERVICES LTD,204074,ASSET MANAGEMENT,Supplies and Services,FFFF FINANCE & COMMERCE,FFF7 ASSET MANAGEMENT
http://www.havering.gov.uk,London Borough of Havering,01/12/2010,785097002,450,**REDACTED PERSONAL DATA**,206931,CHILDREN & YOUNG PEOPLE,Supplies and Services,EEEE SOCIAL CARE & LEARNING,EEE3 CHILDREN & YOUNG PEOPLE
http://www.havering.gov.uk,London Borough of Havering,01/12/2010,785098002,575,**REDACTED PERSONAL DATA**,232336,CHILDREN & YOUNG PEOPLE,Supplies and Services,EEEE SOCIAL CARE & LEARNING,EEE3 CHILDREN & YOUNG PEOPLE
http://www.havering.gov.uk,London Borough of Havering,01/12/2010,785099002,840,HAROLD COURT SCHOOL,39924,LEARNING & ACHIEVEMENT,Employees,EEEE SOCIAL CARE & LEARNING,EEE2 LEARNING & ACHIEVEMENT
http://www.havering.gov.uk,London Borough of Havering,01/12/2010,785101002,740.11,NEWTONS PRIMARY SCHOOL ,32406,LEARNING & ACHIEVEMENT,Employees,EEEE SOCIAL CARE & LEARNING,EEE2 LEARNING & ACHIEVEMENT
http://www.havering.gov.uk,London Borough of Havering,01/12/2010,785103002,816,"ST JOSEPHS RC PRIMARY SCH,LBH ",134228,LEARNING & ACHIEVEMENT,Employees,EEEE SOCIAL CARE & LEARNING,EEE2 LEARNING & ACHIEVEMENT
http://www.havering.gov.uk,London Borough of Havering,01/12/2010,785105002,1015.44,LBH SQUIRRELS HEATH JUNIOR SCHOOL,108380,LEARNING & ACHIEVEMENT,Employees,EEEE SOCIAL CARE & LEARNING,EEE2 LEARNING & ACHIEVEMENT
http://www.havering.gov.uk,London Borough of Havering,01/12/2010,785108002,950,**REDACTED PERSONAL DATA**,206931,CHILDREN & YOUNG PEOPLE,Supplies and Services,EEEE SOCIAL CARE & LEARNING,EEE3 CHILDREN & YOUNG PEOPLE
http://www.havering.gov.uk,London Borough of Havering,01/12/2010,785109002,1260,PARKLANDS JUNIOR SCHOOL ,125811,LEARNING & ACHIEVEMENT,Employees,EEEE SOCIAL CARE & LEARNING,EEE2 LEARNING & ACHIEVEMENT
http://www.havering.gov.uk,London Borough of Havering,01/12/2010,785110002,1119.89,"ST MARYS RC PRIMARY SCH,LBH ",116279,LEARNING & ACHIEVEMENT,Employees,EEEE SOCIAL CARE & LEARNING,EEE2 LEARNING & ACHIEVEMENT
http://www.havering.gov.uk,London Borough of Havering,01/12/2010,785111002,1260,"R J MITCHELL PRIMARY SCHOOL,THE",140794,LEARNING & ACHIEVEMENT,Employees,EEEE SOCIAL CARE & LEARNING,EEE2 LEARNING & ACHIEVEMENT
http://www.havering.gov.uk,London Borough of Havering,01/12/2010,785112002,450,**REDACTED PERSONAL DATA**,157812,CHILDREN & YOUNG PEOPLE,Supplies and Services,EEEE SOCIAL CARE & LEARNING,EEE3 CHILDREN & YOUNG PEOPLE
http://www.havering.gov.uk,London Borough of Havering,01/12/2010,785113002,1083.36,LBH RAVENSBOURNE SCHOOL,16375,LEARNING & ACHIEVEMENT,Employees,EEEE SOCIAL CARE & LEARNING,EEE2 LEARNING & ACHIEVEMENT
http://www.havering.gov.uk,London Borough of Havering,01/12/2010,785116002,450,**REDACTED PERSONAL DATA**,158866,CHILDREN & YOUNG PEOPLE,Supplies and Services,EEEE SOCIAL CARE & LEARNING,EEE3 CHILDREN & YOUNG PEOPLE
http://www.havering.gov.uk,London Borough of Havering,01/12/2010,785117002,11920,MEDIC2 UK LTD ,233389,ADULT SOCIAL CARE,Supplies and Services,EEEE SOCIAL CARE & LEARNING,EEE6 ADULT SOCIAL CARE
http://www.havering.gov.uk,London Borough of Havering,01/12/2010,785118002,7280,MEDIC2 UK LTD ,233389,ADULT SOCIAL CARE,Supplies and Services,EEEE SOCIAL CARE & LEARNING,EEE6 ADULT SOCIAL CARE
http://www.havering.gov.uk,London Borough of Havering,01/12/2010,785119003,576.42,E.ON POWERGEN ,137957,CHILDREN & YOUNG PEOPLE,Premises-Related Expenditure,EEEE SOCIAL CARE & LEARNING,EEE3 CHILDREN & YOUNG PEOPLE
http://www.havering.gov.uk,London Borough of Havering,01/12/2010,785120002,4160,GOLDEN ACRES DAYCARE & RESPITE SERVICES LTD ,232342,ADULT SOCIAL CARE,Supplies and Services,EEEE SOCIAL CARE & LEARNING,EEE6 ADULT SOCIAL CARE
http://www.havering.gov.uk,London Borough of Havering,01/12/2010,785121002,9360,GOLDEN ACRES DAYCARE & RESPITE SERVICES LTD ,232342,ADULT SOCIAL CARE,Supplies and Services,EEEE SOCIAL CARE & LEARNING,EEE6 ADULT SOCIAL CARE
http://www.havering.gov.uk,London Borough of Havering,01/12/2010,785122002,1000,CARESOURCE LTD ,235443,CHILDREN & YOUNG PEOPLE,Supplies and Services,EEEE SOCIAL CARE & LEARNING,EEE3 CHILDREN & YOUNG PEOPLE
http://www.havering.gov.uk,London Borough of Havering,01/12/2010,785123002,1000,CARESOURCE LTD ,235443,CHILDREN & YOUNG PEOPLE,Supplies and Services,EEEE SOCIAL CARE & LEARNING,EEE3 CHILDREN & YOUNG PEOPLE
http://www.havering.gov.uk,London Borough of Havering,01/12/2010,785125001,4511.71,21ST CENTURY KIDS CARE LTD ,202341,LEARNING & ACHIEVEMENT,Supplies and Services,EEEE SOCIAL CARE & LEARNING,EEE2 LEARNING & ACHIEVEMENT
http://www.havering.gov.uk,London Borough of Havering,01/12/2010,785126001,5806.65,AARDVARK PRE SCHOOL,229320,LEARNING & ACHIEVEMENT,Supplies and Services,EEEE SOCIAL CARE & LEARNING,EEE2 LEARNING & ACHIEVEMENT
http://www.havering.gov.uk,London Borough of Havering,01/12/2010,785127001,3071.59,ABBS CROSS DAY NURSERY COLLIER ROW 3,223142,LEARNING & ACHIEVEMENT,Supplies and Services,EEEE SOCIAL CARE & LEARNING,EEE2 LEARNING & ACHIEVEMENT
http://www.havering.gov.uk,London Borough of Havering,01/12/2010,785128001,3417.33,ABBS CROSS DAY NURSERY 1,110569,LEARNING & ACHIEVEMENT,Supplies and Services,EEEE SOCIAL CARE & LEARNING,EEE2 LEARNING & ACHIEVEMENT
http://www.havering.gov.uk,London Borough of Havering,01/12/2010,785129001,3628.32,ABBS CROSS DAY NURSERY MARDYKE 4,222484,LEARNING & ACHIEVEMENT,Supplies and Services,EEEE SOCIAL CARE & LEARNING,EEE2 LEARNING & ACHIEVEMENT
http://www.havering.gov.uk,London Borough of Havering,01/12/2010,785130001,1970.28,ALLSORTS DAY NURSERY NO.15 ,112887,LEARNING & ACHIEVEMENT,Supplies and Services,EEEE SOCIAL CARE & LEARNING,EEE2 LEARNING & ACHIEVEMENT
http://www.havering.gov.uk,London Borough of Havering,01/12/2010,785132001,5354.67,ARNAUD LODGE PLAYGROUP,110572,LEARNING & ACHIEVEMENT,Supplies and Services,EEEE SOCIAL CARE & LEARNING,EEE2 LEARNING & ACHIEVEMENT
http://www.havering.gov.uk,London Borough of Havering,01/12/2010,785133001,3720.6,BRITTONS BABES PRE-SCHOOL PLAYGROUP,110576,LEARNING & ACHIEVEMENT,Supplies and Services,EEEE SOCIAL CARE & LEARNING,EEE2 LEARNING & ACHIEVEMENT
http://www.havering.gov.uk,London Borough of Havering,01/12/2010,785134001,3824.32,BUDDIES PRE SCHOOL ,209812,LEARNING & ACHIEVEMENT,Supplies and Services,EEEE SOCIAL CARE & LEARNING,EEE2 LEARNING & ACHIEVEMENT
http://www.havering.gov.uk,London Borough of Havering,01/12/2010,785135001,4970.27,BRIGHT HORIZONS FAMILY SOLUTION ,202273,LEARNING & ACHIEVEMENT,Supplies and Services,EEEE SOCIAL CARE & LEARNING,EEE2 LEARNING & ACHIEVEMENT
http://www.havering.gov.uk,London Borough of Havering,01/12/2010,785136001,2019.23,BUMBLES PLAYGROUP ,233967,LEARNING & ACHIEVEMENT,Supplies and Services,EEEE SOCIAL CARE & LEARNING,EEE2 LEARNING & ACHIEVEMENT
http://www.havering.gov.uk,London Borough of Havering,01/12/2010,785137001,4665.89,CHANDLERS CHATTERS PRE-SCHOOL PLAYGROUP,110577,LEARNING & ACHIEVEMENT,Supplies and Services,EEEE SOCIAL CARE & LEARNING,EEE2 LEARNING & ACHIEVEMENT
http://www.havering.gov.uk,London Borough of Havering,01/12/2010,785139001,3796.87,CHASE CROSS BAPTIST PLAYGROUP,126092,LEARNING & ACHIEVEMENT,Supplies and Services,EEEE SOCIAL CARE & LEARNING,EEE2 LEARNING & ACHIEVEMENT
http://www.havering.gov.uk,London Borough of Havering,01/12/2010,785140001,3622.88,CHERUBS PRE-SCHOOL (CRANHAM),122445,LEARNING & ACHIEVEMENT,Supplies and Services,EEEE SOCIAL CARE & LEARNING,EEE2 LEARNING & ACHIEVEMENT
http://www.havering.gov.uk,London Borough of Havering,01/12/2010,785141001,5165.72,CHERUBS PRE-SCHOOL 2,110643,LEARNING & ACHIEVEMENT,Supplies and Services,EEEE SOCIAL CARE & LEARNING,EEE2 LEARNING & ACHIEVEMENT
http://www.havering.gov.uk,London Borough of Havering,01/12/2010,785142001,3323.58,CHERUBS PRE-SCHOOL (FRIENDS MEETING HOUSE),110615,LEARNING & ACHIEVEMENT,Supplies and Services,EEEE SOCIAL CARE & LEARNING,EEE2 LEARNING & ACHIEVEMENT
http://www.havering.gov.uk,London Borough of Havering,01/12/2010,785143001,8473.73,CHERUBS 4 ,210576,LEARNING & ACHIEVEMENT,Supplies and Services,EEEE SOCIAL CARE & LEARNING,EEE2 LEARNING & ACHIEVEMENT
http://www.havering.gov.uk,London Borough of Havering,01/12/2010,785144001,1518.61,CLOCKHOUSE PLAYGROUP ,108319,LEARNING & ACHIEVEMENT,Supplies and Services,EEEE SOCIAL CARE & LEARNING,EEE2 LEARNING & ACHIEVEMENT
http://www.havering.gov.uk,London Borough of Havering,01/12/2010,785145001,809.71,CORNERSTONE ACADEMY LTD,225513,LEARNING & ACHIEVEMENT,Supplies and Services,EEEE SOCIAL CARE & LEARNING,EEE2 LEARNING & ACHIEVEMENT
http://www.havering.gov.uk,London Borough of Havering,01/12/2010,785146001,5929.96,CORPUS CHRISTI PRE-SCHOOL,110578,LEARNING & ACHIEVEMENT,Supplies and Services,EEEE SOCIAL CARE & LEARNING,EEE2 LEARNING & ACHIEVEMENT
http://www.havering.gov.uk,London Borough of Havering,01/12/2010,785147001,3325.61,COTTONS PARK PLAYGROUP,110580,LEARNING & ACHIEVEMENT,Supplies and Services,EEEE SOCIAL CARE & LEARNING,EEE2 LEARNING & ACHIEVEMENT
http://www.havering.gov.uk,London Borough of Havering,01/12/2010,785148001,7769.31,CREATIVE KIDS ,206263,LEARNING & ACHIEVEMENT,Supplies and Services,EEEE SOCIAL CARE & LEARNING,EEE2 LEARNING & ACHIEVEMENT
http://www.havering.gov.uk,London Borough of Havering,01/12/2010,785149001,6684.48,CREATIVE KIDS,110592,LEARNING & ACHIEVEMENT,Supplies and Services,EEEE SOCIAL CARE & LEARNING,EEE2 LEARNING & ACHIEVEMENT
http://www.havering.gov.uk,London Borough of Havering,01/12/2010,785150001,11721.33,CROWNFIELD PRE-SCHOOL,236630,LEARNING & ACHIEVEMENT,Supplies and Services,EEEE SOCIAL CARE & LEARNING,EEE2 LEARNING & ACHIEVEMENT
http://www.havering.gov.uk,London Borough of Havering,01/12/2010,785151001,5637.94,ELM PARK BAPTIST CHURCH PLAYGROUP ,236645,LEARNING & ACHIEVEMENT,Supplies and Services,EEEE SOCIAL CARE & LEARNING,EEE2 LEARNING & ACHIEVEMENT
http://www.havering.gov.uk,London Borough of Havering,01/12/2010,785152001,3495.82,FAIRY TALES PLAYGROUP,225514,LEARNING & ACHIEVEMENT,Supplies and Services,EEEE SOCIAL CARE & LEARNING,EEE2 LEARNING & ACHIEVEMENT
http://www.havering.gov.uk,London Borough of Havering,01/12/2010,785154001,2936.85,PLAYHOUSE OPPORTUNITY PLAYGROUP (FIG) ,110667,LEARNING & ACHIEVEMENT,Supplies and Services,EEEE SOCIAL CARE & LEARNING,EEE2 LEARNING & ACHIEVEMENT
http://www.havering.gov.uk,London Borough of Havering,01/12/2010,785155001,3723.14,KID EASE LTD ,206282,LEARNING & ACHIEVEMENT,Supplies and Services,EEEE SOCIAL CARE & LEARNING,EEE2 LEARNING & ACHIEVEMENT
http://www.havering.gov.uk,London Borough of Havering,01/12/2010,785158001,4280.6,FLEDGELINGS DAY NURSERY (ROMFORD),110612,LEARNING & ACHIEVEMENT,Supplies and Services,EEEE SOCIAL CARE & LEARNING,EEE2 LEARNING & ACHIEVEMENT
http://www.havering.gov.uk,London Borough of Havering,01/12/2010,785160001,4988.54,"GAYNES PARK NURSERY LTD,THE",110713,LEARNING & ACHIEVEMENT,Supplies and Services,EEEE SOCIAL CARE & LEARNING,EEE2 LEARNING & ACHIEVEMENT
http://www.havering.gov.uk,London Borough of Havering,01/12/2010,785161001,5727.31,GIDEA PARK COLLEGE LTD ,110619,LEARNING & ACHIEVEMENT,Supplies and Services,EEEE SOCIAL CARE & LEARNING,EEE2 LEARNING & ACHIEVEMENT
http://www.havering.gov.uk,London Borough of Havering,01/12/2010,785162001,5612.14,GIDEA PARK METHODIST PLAYGROUP ,110621,LEARNING & ACHIEVEMENT,Supplies and Services,EEEE SOCIAL CARE & LEARNING,EEE2 LEARNING & ACHIEVEMENT
http://www.havering.gov.uk,London Borough of Havering,01/12/2010,785163001,3926.81,GOODRINGTON SCHOOL,110623,LEARNING & ACHIEVEMENT,Supplies and Services,EEEE SOCIAL CARE & LEARNING,EEE2 LEARNING & ACHIEVEMENT
http://www.havering.gov.uk,London Borough of Havering,01/12/2010,785164001,5019.4,GROWING PAINS,110630,LEARNING & ACHIEVEMENT,Supplies and Services,EEEE SOCIAL CARE & LEARNING,EEE2 LEARNING & ACHIEVEMENT
http://www.havering.gov.uk,London Borough of Havering,01/12/2010,785165001,4902.37,HAROLD WOOD METHODIST CHURCH PLAYGROUP ,110636,LEARNING & ACHIEVEMENT,Supplies and Services,EEEE SOCIAL CARE & LEARNING,EEE2 LEARNING & ACHIEVEMENT
http://www.havering.gov.uk,London Borough of Havering,01/12/2010,785166001,5309.11,HUNNYPOT CORNER DAY NURSERY ,214317,LEARNING & ACHIEVEMENT,Supplies and Services,EEEE SOCIAL CARE & LEARNING,EEE2 LEARNING & ACHIEVEMENT
http://www.havering.gov.uk,London Borough of Havering,01/12/2010,785167001,6494.21,INGREBOURNE DAY NURSERY ,160027,LEARNING & ACHIEVEMENT,Supplies and Services,EEEE SOCIAL CARE & LEARNING,EEE2 LEARNING & ACHIEVEMENT
http://www.havering.gov.uk,London Borough of Havering,01/12/2010,785168001,7801.99,JAMES OGLETHORPE PRE SCHOOL,110648,LEARNING & ACHIEVEMENT,Supplies and Services,EEEE SOCIAL CARE & LEARNING,EEE2 LEARNING & ACHIEVEMENT
http://www.havering.gov.uk,London Borough of Havering,01/12/2010,785169001,2950.44,LADYBIRD NURSERY SCHOOL,237222,LEARNING & ACHIEVEMENT,Supplies and Services,EEEE SOCIAL CARE & LEARNING,EEE2 LEARNING & ACHIEVEMENT
http://www.havering.gov.uk,London Borough of Havering,01/12/2010,785170001,7977.56,LAWNS PRE SCHOOL ,110650,LEARNING & ACHIEVEMENT,Supplies and Services,EEEE SOCIAL CARE & LEARNING,EEE2 LEARNING & ACHIEVEMENT
http://www.havering.gov.uk,London Borough of Havering,01/12/2010,785171001,3675.72,LITTLE POPPETS PRESCHOOL,231712,LEARNING & ACHIEVEMENT,Supplies and Services,EEEE SOCIAL CARE & LEARNING,EEE2 LEARNING & ACHIEVEMENT
http://www.havering.gov.uk,London Borough of Havering,01/12/2010,785172001,6646.16,LITTLE RASCALS PRE-SCHOOLS,218722,LEARNING & ACHIEVEMENT,Supplies and Services,EEEE SOCIAL CARE & LEARNING,EEE2 LEARNING & ACHIEVEMENT
http://www.havering.gov.uk,London Borough of Havering,01/12/2010,785173001,4462.98,MARLBOROUGH PRE-SCHOOL,110654,LEARNING & ACHIEVEMENT,Supplies and Services,EEEE SOCIAL CARE & LEARNING,EEE2 LEARNING & ACHIEVEMENT
http://www.havering.gov.uk,London Borough of Havering,01/12/2010,785174001,3597.29,MARY POPPINS DAY NURSERY,136629,LEARNING & ACHIEVEMENT,Supplies and Services,EEEE SOCIAL CARE & LEARNING,EEE2 LEARNING & ACHIEVEMENT
http://www.havering.gov.uk,London Borough of Havering,01/12/2010,785176001,3081,MOOR LANE CHURCH PLAYGROUP,110656,LEARNING & ACHIEVEMENT,Supplies and Services,EEEE SOCIAL CARE & LEARNING,EEE2 LEARNING & ACHIEVEMENT
http://www.havering.gov.uk,London Borough of Havering,01/12/2010,785177001,1892.31,MY LITTLE ANGELS DAY NURSERY,144243,LEARNING & ACHIEVEMENT,Supplies and Services,EEEE SOCIAL CARE & LEARNING,EEE2 LEARNING & ACHIEVEMENT
http://www.havering.gov.uk,London Borough of Havering,01/12/2010,785178001,6081.24,NELMES NURSERY SCHOOL,110658,LEARNING & ACHIEVEMENT,Supplies and Services,EEEE SOCIAL CARE & LEARNING,EEE2 LEARNING & ACHIEVEMENT
http://www.havering.gov.uk,London Borough of Havering,01/12/2010,785179001,2214.33,NEW BEGINNINGS NURSERIES LTD,138716,LEARNING & ACHIEVEMENT,Supplies and Services,EEEE SOCIAL CARE & LEARNING,EEE2 LEARNING & ACHIEVEMENT
http://www.havering.gov.uk,London Borough of Havering,01/12/2010,785180001,1379.3,NORTH ROMFORD COMMUNITY CENTRE PLAYGROUP ,110659,LEARNING & ACHIEVEMENT,Supplies and Services,EEEE SOCIAL CARE & LEARNING,EEE2 LEARNING & ACHIEVEMENT
http://www.havering.gov.uk,London Borough of Havering,01/12/2010,785181001,4293.1,OAKFIELDS MONTESSORI NURSERY,110662,LEARNING & ACHIEVEMENT,Supplies and Services,EEEE SOCIAL CARE & LEARNING,EEE2 LEARNING & ACHIEVEMENT
http://www.havering.gov.uk,London Borough of Havering,01/12/2010,785182001,6505.02,COGNITA SCH LTD T/A OAKFIELDS MONTESSORI SCH,110664,LEARNING & ACHIEVEMENT,Supplies and Services,EEEE SOCIAL CARE & LEARNING,EEE2 LEARNING & ACHIEVEMENT
http://www.havering.gov.uk,London Borough of Havering,01/12/2010,785183001,5004.18,ORANGE TREE PLAYGROUP,110665,LEARNING & ACHIEVEMENT,Supplies and Services,EEEE SOCIAL CARE & LEARNING,EEE2 LEARNING & ACHIEVEMENT
http://www.havering.gov.uk,London Borough of Havering,01/12/2010,785184001,5036.65,ORCHID MONTESSORI NURSERY SCHOOL,222485,LEARNING & ACHIEVEMENT,Supplies and Services,EEEE SOCIAL CARE & LEARNING,EEE2 LEARNING & ACHIEVEMENT
http://www.havering.gov.uk,London Borough of Havering,01/12/2010,785185001,6799.39,PARKLANES WYKEHAM PRE-SCHOOL ,206265,LEARNING & ACHIEVEMENT,Supplies and Services,EEEE SOCIAL CARE & LEARNING,EEE2 LEARNING & ACHIEVEMENT
http://www.havering.gov.uk,London Borough of Havering,01/12/2010,785186001,2743.69,PARKLANE PRE- SCHOOL ,21796,LEARNING & ACHIEVEMENT,Supplies and Services,EEEE SOCIAL CARE & LEARNING,EEE2 LEARNING & ACHIEVEMENT
http://www.havering.gov.uk,London Borough of Havering,01/12/2010,785187001,5434.42,PHOENIX PRE-SCHOOL ,224004,LEARNING & ACHIEVEMENT,Supplies and Services,EEEE SOCIAL CARE & LEARNING,EEE2 LEARNING & ACHIEVEMENT
http://www.havering.gov.uk,London Borough of Havering,01/12/2010,785188001,517.7,**REDACTED PERSONAL DATA**,235263,LEARNING & ACHIEVEMENT,Supplies and Services,EEEE SOCIAL CARE & LEARNING,EEE2 LEARNING & ACHIEVEMENT
http://www.havering.gov.uk,London Borough of Havering,01/12/2010,785189001,4198.33,PLAYDAYS PRESCHOOL,236144,LEARNING & ACHIEVEMENT,Supplies and Services,EEEE SOCIAL CARE & LEARNING,EEE2 LEARNING & ACHIEVEMENT
http://www.havering.gov.uk,London Borough of Havering,01/12/2010,785190001,6506.23,PLAYHOUSE PRE-SCHOOL  ,125162,LEARNING & ACHIEVEMENT,Supplies and Services,EEEE SOCIAL CARE & LEARNING,EEE2 LEARNING & ACHIEVEMENT
http://www.havering.gov.uk,London Borough of Havering,01/12/2010,785191001,6175.08,PLAYWAYS PLAYGROUP,110669,LEARNING & ACHIEVEMENT,Supplies and Services,EEEE SOCIAL CARE & LEARNING,EEE2 LEARNING & ACHIEVEMENT
http://www.havering.gov.uk,London Borough of Havering,01/12/2010,785192001,3923.75,BARKING HAVERING & REDBRIDGE HOSPITALS ,146420,LEARNING & ACHIEVEMENT,Supplies and Services,EEEE SOCIAL CARE & LEARNING,EEE2 LEARNING & ACHIEVEMENT
http://www.havering.gov.uk,London Borough of Havering,01/12/2010,785193001,1327.24,RAPHAEL INDEPENDENT SCHOOL,110671,LEARNING & ACHIEVEMENT,Supplies and Services,EEEE SOCIAL CARE & LEARNING,EEE2 LEARNING & ACHIEVEMENT
http://www.havering.gov.uk,London Borough of Havering,01/12/2010,785194001,3067.37,ROMFORD UNITED REFORMED CHURCH PLAYGROUP,110675,LEARNING & ACHIEVEMENT,Supplies and Services,EEEE SOCIAL CARE & LEARNING,EEE2 LEARNING & ACHIEVEMENT
http://www.havering.gov.uk,London Borough of Havering,01/12/2010,785195001,4741.88,RUSH GREEN PRE-SCHOOL,130204,LEARNING & ACHIEVEMENT,Supplies and Services,EEEE SOCIAL CARE & LEARNING,EEE2 LEARNING & ACHIEVEMENT
http://www.havering.gov.uk,London Borough of Havering,01/12/2010,785196001,2601.06,SCALLYWAGS ,154342,LEARNING & ACHIEVEMENT,Supplies and Services,EEEE SOCIAL CARE & LEARNING,EEE2 LEARNING & ACHIEVEMENT
http://www.havering.gov.uk,London Borough of Havering,01/12/2010,785197001,4577.14,SPRINGFIELD PLAYGROUP,110692,LEARNING & ACHIEVEMENT,Supplies and Services,EEEE SOCIAL CARE & LEARNING,EEE2 LEARNING & ACHIEVEMENT
http://www.havering.gov.uk,London Borough of Havering,01/12/2010,785198001,2009.19,ST EDWARDS RC PRE SCHOOL GROUP,110695,LEARNING & ACHIEVEMENT,Supplies and Services,EEEE SOCIAL CARE & LEARNING,EEE2 LEARNING & ACHIEVEMENT
http://www.havering.gov.uk,London Borough of Havering,01/12/2010,785199001,1113.67,ST JOHNS PLAYGROUP ,110698,LEARNING & ACHIEVEMENT,Supplies and Services,EEEE SOCIAL CARE & LEARNING,EEE2 LEARNING & ACHIEVEMENT
http://www.havering.gov.uk,London Borough of Havering,01/12/2010,785200001,3542.83,ST LAURENCE PLAYGROUP,110701,LEARNING & ACHIEVEMENT,Supplies and Services,EEEE SOCIAL CARE & LEARNING,EEE2 LEARNING & ACHIEVEMENT
http://www.havering.gov.uk,London Borough of Havering,01/12/2010,785201001,857.59,ST GEORGES PLAYGROUP,110696,LEARNING & ACHIEVEMENT,Supplies and Services,EEEE SOCIAL CARE & LEARNING,EEE2 LEARNING & ACHIEVEMENT
http://www.havering.gov.uk,London Borough of Havering,01/12/2010,785203001,6299.29,VAL ROBINSON T/A ST JOHNS PRE-SCHOOL,110699,LEARNING & ACHIEVEMENT,Supplies and Services,EEEE SOCIAL CARE & LEARNING,EEE2 LEARNING & ACHIEVEMENT
http://www.havering.gov.uk,London Borough of Havering,01/12/2010,785204001,6254.1,ST JOSEPHS PLAYGROUP ,110700,LEARNING & ACHIEVEMENT,Supplies and Services,EEEE SOCIAL CARE & LEARNING,EEE2 LEARNING & ACHIEVEMENT
http://www.havering.gov.uk,London Borough of Havering,01/12/2010,785205001,6706.86,ST MARYS HARE PARK SCHOOL,110702,LEARNING & ACHIEVEMENT,Supplies and Services,EEEE SOCIAL CARE & LEARNING,EEE2 LEARNING & ACHIEVEMENT
http://www.havering.gov.uk,London Borough of Havering,01/12/2010,785206001,2161.37,ST NICHOLAS CHURCH PLAYGROUP,110706,LEARNING & ACHIEVEMENT,Supplies and Services,EEEE SOCIAL CARE & LEARNING,EEE2 LEARNING & ACHIEVEMENT
http://www.havering.gov.uk,London Borough of Havering,01/12/2010,785207001,3213.3,STEPPING STONES DAY NURSERY,110639,LEARNING & ACHIEVEMENT,Supplies and Services,EEEE SOCIAL CARE & LEARNING,EEE2 LEARNING & ACHIEVEMENT
http://www.havering.gov.uk,London Borough of Havering,01/12/2010,785208001,11588.5,VAL ROBINSON T/A THE COTTAGE PRE SCHOOL,206264,LEARNING & ACHIEVEMENT,Supplies and Services,EEEE SOCIAL CARE & LEARNING,EEE2 LEARNING & ACHIEVEMENT
http://www.havering.gov.uk,London Borough of Havering,01/12/2010,785209001,4408.12,"OLD SCHOOL PLAYGROUP,THE",110710,LEARNING & ACHIEVEMENT,Supplies and Services,EEEE SOCIAL CARE & LEARNING,EEE2 LEARNING & ACHIEVEMENT
http://www.havering.gov.uk,London Borough of Havering,01/12/2010,785210001,3703,"WENDY HOUSE DAY NURSERY,THE",112360,LEARNING & ACHIEVEMENT,Supplies and Services,EEEE SOCIAL CARE & LEARNING,EEE2 LEARNING & ACHIEVEMENT
http://www.havering.gov.uk,London Borough of Havering,01/12/2010,785211001,2531.49,TIDDLYWINKS PLAYGROUP,154343,LEARNING & ACHIEVEMENT,Supplies and Services,EEEE SOCIAL CARE & LEARNING,EEE2 LEARNING & ACHIEVEMENT
http://www.havering.gov.uk,London Borough of Havering,01/12/2010,785212001,1551.3,TODDLE INN ,231440,LEARNING & ACHIEVEMENT,Supplies and Services,EEEE SOCIAL CARE & LEARNING,EEE2 LEARNING & ACHIEVEMENT
http://www.havering.gov.uk,London Borough of Havering,01/12/2010,785213001,1389.86,TINY TIGERS PLAYGROUP ,229828,LEARNING & ACHIEVEMENT,Supplies and Services,EEEE SOCIAL CARE & LEARNING,EEE2 LEARNING & ACHIEVEMENT
http://www.havering.gov.uk,London Borough of Havering,01/12/2010,785214001,5844.5,TOPSY TURVY PLAYGROUP,33956,LEARNING & ACHIEVEMENT,Supplies and Services,EEEE SOCIAL CARE & LEARNING,EEE2 LEARNING & ACHIEVEMENT
http://www.havering.gov.uk,London Borough of Havering,01/12/2010,785216001,9849.46,TRINITY PLAYGROUP,110715,LEARNING & ACHIEVEMENT,Supplies and Services,EEEE SOCIAL CARE & LEARNING,EEE2 LEARNING & ACHIEVEMENT
http://www.havering.gov.uk,London Borough of Havering,01/12/2010,785217001,1242.11,TRULY SCRUMPTIOUS EARLY YEARS NURSERY ,234615,LEARNING & ACHIEVEMENT,Supplies and Services,EEEE SOCIAL CARE & LEARNING,EEE2 LEARNING & ACHIEVEMENT
http://www.havering.gov.uk,London Borough of Havering,01/12/2010,785218001,2251.23,TWEEDWAY PRE-SCHOOL,110721,LEARNING & ACHIEVEMENT,Supplies and Services,EEEE SOCIAL CARE & LEARNING,EEE2 LEARNING & ACHIEVEMENT
http://www.havering.gov.uk,London Borough of Havering,01/12/2010,785219001,1851.69,FLEDGELINGS DAY NURSERY (HORNCHURCH),202345,LEARNING & ACHIEVEMENT,Supplies and Services,EEEE SOCIAL CARE & LEARNING,EEE2 LEARNING & ACHIEVEMENT
http://www.havering.gov.uk,London Borough of Havering,01/12/2010,785220001,3672.16,WINGLETYE II PRE SCHOOL,110724,LEARNING & ACHIEVEMENT,Supplies and Services,EEEE SOCIAL CARE & LEARNING,EEE2 LEARNING & ACHIEVEMENT
http://www.havering.gov.uk,London Borough of Havering,01/12/2010,785221001,5988.61,WINGLETYE PLAYGROUP,110726,LEARNING & ACHIEVEMENT,Supplies and Services,EEEE SOCIAL CARE & LEARNING,EEE2 LEARNING & ACHIEVEMENT
http://www.havering.gov.uk,London Borough of Havering,01/12/2010,785222001,576.7,ZEEBA DAY CARE ,233410,LEARNING & ACHIEVEMENT,Supplies and Services,EEEE SOCIAL CARE & LEARNING,EEE2 LEARNING & ACHIEVEMENT
http://www.havering.gov.uk,London Borough of Havering,02/12/2010,785256002,960,ALERE CARE LTD ,228706,CHILDREN & YOUNG PEOPLE,Premises-Related Expenditure,EEEE SOCIAL CARE & LEARNING,EEE3 CHILDREN & YOUNG PEOPLE
http://www.havering.gov.uk,London Borough of Havering,02/12/2010,785256003,160,ALERE CARE LTD ,228706,CHILDREN & YOUNG PEOPLE,Supplies and Services,EEEE SOCIAL CARE & LEARNING,EEE3 CHILDREN & YOUNG PEOPLE
http://www.havering.gov.uk,London Borough of Havering,02/12/2010,785260002,770,ALERE CARE LTD ,228706,CHILDREN & YOUNG PEOPLE,Supplies and Services,EEEE SOCIAL CARE & LEARNING,EEE3 CHILDREN & YOUNG PEOPLE
http://www.havering.gov.uk,London Borough of Havering,02/12/2010,785264002,1200,ALERE CARE LTD ,228706,CHILDREN & YOUNG PEOPLE,Premises-Related Expenditure,EEEE SOCIAL CARE & LEARNING,EEE3 CHILDREN & YOUNG PEOPLE
http://www.havering.gov.uk,London Borough of Havering,02/12/2010,785268002,1200,ALERE CARE LTD ,228706,CHILDREN & YOUNG PEOPLE,Premises-Related Expenditure,EEEE SOCIAL CARE & LEARNING,EEE3 CHILDREN & YOUNG PEOPLE
http://www.havering.gov.uk,London Borough of Havering,02/12/2010,785273002,900,ALERE CARE LTD ,228706,CHILDREN & YOUNG PEOPLE,Premises-Related Expenditure,EEEE SOCIAL CARE & LEARNING,EEE3 CHILDREN & YOUNG PEOPLE
http://www.havering.gov.uk,London Borough of Havering,02/12/2010,785275002,1240,ALERE CARE LTD ,228706,CHILDREN & YOUNG PEOPLE,Premises-Related Expenditure,EEEE SOCIAL CARE & LEARNING,EEE3 CHILDREN & YOUNG PEOPLE
http://www.havering.gov.uk,London Borough of Havering,02/12/2010,785277002,900,ALERE CARE LTD ,228706,CHILDREN & YOUNG PEOPLE,Premises-Related Expenditure,EEEE SOCIAL CARE & LEARNING,EEE3 CHILDREN & YOUNG PEOPLE
http://www.havering.gov.uk,London Borough of Havering,02/12/2010,785280002,900,ALERE CARE LTD ,228706,CHILDREN & YOUNG PEOPLE,Premises-Related Expenditure,EEEE SOCIAL CARE & LEARNING,EEE3 CHILDREN & YOUNG PEOPLE
http://www.havering.gov.uk,London Borough of Havering,02/12/2010,785280003,-900,ALERE CARE LTD ,228706,CHILDREN & YOUNG PEOPLE,Premises-Related Expenditure,EEEE SOCIAL CARE & LEARNING,EEE3 CHILDREN & YOUNG PEOPLE
http://www.havering.gov.uk,London Borough of Havering,02/12/2010,785280004,900,ALERE CARE LTD ,228706,CHILDREN & YOUNG PEOPLE,Premises-Related Expenditure,EEEE SOCIAL CARE & LEARNING,EEE3 CHILDREN & YOUNG PEOPLE
http://www.havering.gov.uk,London Borough of Havering,02/12/2010,785286002,1575,ALERE CARE LTD ,228706,CHILDREN & YOUNG PEOPLE,Supplies and Services,EEEE SOCIAL CARE & LEARNING,EEE3 CHILDREN & YOUNG PEOPLE
http://www.havering.gov.uk,London Borough of Havering,02/12/2010,785286003,792.33,ALERE CARE LTD ,228706,CHILDREN & YOUNG PEOPLE,Supplies and Services,EEEE SOCIAL CARE & LEARNING,EEE3 CHILDREN & YOUNG PEOPLE
http://www.havering.gov.uk,London Borough of Havering,02/12/2010,785327002,653.41,WILLIAM WHITE MEATS LTD,228083,COMMISSIONING,Supplies and Services,EEEE SOCIAL CARE & LEARNING,EEE4 COMMISSIONING
http://www.havering.gov.uk,London Borough of Havering,02/12/2010,785329002,900,ALERE CARE LTD ,228706,CHILDREN & YOUNG PEOPLE,Premises-Related Expenditure,EEEE SOCIAL CARE & LEARNING,EEE3 CHILDREN & YOUNG PEOPLE
http://www.havering.gov.uk,London Borough of Havering,02/12/2010,785331002,960,ALERE CARE LTD ,228706,CHILDREN & YOUNG PEOPLE,Premises-Related Expenditure,EEEE SOCIAL CARE & LEARNING,EEE3 CHILDREN & YOUNG PEOPLE
http://www.havering.gov.uk,London Borough of Havering,02/12/2010,785331003,160,ALERE CARE LTD ,228706,CHILDREN & YOUNG PEOPLE,Supplies and Services,EEEE SOCIAL CARE & LEARNING,EEE3 CHILDREN & YOUNG PEOPLE
http://www.havering.gov.uk,London Borough of Havering,02/12/2010,785333002,843.75,ALERE CARE LTD ,228706,CHILDREN & YOUNG PEOPLE,Premises-Related Expenditure,EEEE SOCIAL CARE & LEARNING,EEE3 CHILDREN & YOUNG PEOPLE
http://www.havering.gov.uk,London Borough of Havering,02/12/2010,785334002,960,ALERE CARE LTD ,228706,CHILDREN & YOUNG PEOPLE,Premises-Related Expenditure,EEEE SOCIAL CARE & LEARNING,EEE3 CHILDREN & YOUNG PEOPLE
http://www.havering.gov.uk,London Borough of Havering,02/12/2010,785334003,160,ALERE CARE LTD ,228706,CHILDREN & YOUNG PEOPLE,Supplies and Services,EEEE SOCIAL CARE & LEARNING,EEE3 CHILDREN & YOUNG PEOPLE
http://www.havering.gov.uk,London Borough of Havering,02/12/2010,785335002,4373.5,ACADEMY CATERING EQUIPMENT LTD,211479,COMMISSIONING,Supplies and Services,EEEE SOCIAL CARE & LEARNING,EEE4 COMMISSIONING
http://www.havering.gov.uk,London Borough of Havering,02/12/2010,785338002,1575,ALERE CARE LTD ,228706,CHILDREN & YOUNG PEOPLE,Supplies and Services,EEEE SOCIAL CARE & LEARNING,EEE3 CHILDREN & YOUNG PEOPLE
http://www.havering.gov.uk,London Borough of Havering,02/12/2010,785338003,368.04,ALERE CARE LTD ,228706,CHILDREN & YOUNG PEOPLE,Supplies and Services,EEEE SOCIAL CARE & LEARNING,EEE3 CHILDREN & YOUNG PEOPLE
http://www.havering.gov.uk,London Borough of Havering,02/12/2010,785342002,1200,ALERE CARE LTD ,228706,CHILDREN & YOUNG PEOPLE,Premises-Related Expenditure,EEEE SOCIAL CARE & LEARNING,EEE3 CHILDREN & YOUNG PEOPLE
http://www.havering.gov.uk,London Borough of Havering,02/12/2010,785342003,200,ALERE CARE LTD ,228706,CHILDREN & YOUNG PEOPLE,Supplies and Services,EEEE SOCIAL CARE & LEARNING,EEE3 CHILDREN & YOUNG PEOPLE
http://www.havering.gov.uk,London Borough of Havering,02/12/2010,785344002,1325,ALERE CARE LTD ,228706,CHILDREN & YOUNG PEOPLE,Premises-Related Expenditure,EEEE SOCIAL CARE & LEARNING,EEE3 CHILDREN & YOUNG PEOPLE
http://www.havering.gov.uk,London Borough of Havering,02/12/2010,785344003,2450,ALERE CARE LTD ,228706,CHILDREN & YOUNG PEOPLE,Supplies and Services,EEEE SOCIAL CARE & LEARNING,EEE3 CHILDREN & YOUNG PEOPLE
http://www.havering.gov.uk,London Borough of Havering,02/12/2010,785344004,7600,ALERE CARE LTD ,228706,CHILDREN & YOUNG PEOPLE,Supplies and Services,EEEE SOCIAL CARE & LEARNING,EEE3 CHILDREN & YOUNG PEOPLE
http://www.havering.gov.uk,London Borough of Havering,02/12/2010,785371002,250,FREEDOM HEALTHCARE SERVICES LTD,217722,ADULT SOCIAL CARE,Supplies and Services,EEEE SOCIAL CARE & LEARNING,EEE6 ADULT SOCIAL CARE
http://www.havering.gov.uk,London Borough of Havering,02/12/2010,785371003,432,FREEDOM HEALTHCARE SERVICES LTD,217722,ADULT SOCIAL CARE,Supplies and Services,EEEE SOCIAL CARE & LEARNING,EEE6 ADULT SOCIAL CARE
http://www.havering.gov.uk,London Borough of Havering,02/12/2010,785373002,250,FREEDOM HEALTHCARE SERVICES LTD,217722,ADULT SOCIAL CARE,Supplies and Services,EEEE SOCIAL CARE & LEARNING,EEE6 ADULT SOCIAL CARE
http://www.havering.gov.uk,London Borough of Havering,02/12/2010,785373003,438,FREEDOM HEALTHCARE SERVICES LTD,217722,ADULT SOCIAL CARE,Supplies and Services,EEEE SOCIAL CARE & LEARNING,EEE6 ADULT SOCIAL CARE
http://www.havering.gov.uk,London Borough of Havering,02/12/2010,785374002,44066.44,LONDON BOROUGH OF NEWHAM ,206303,PENSION ADMINISTRATION,Transfer Payments,PENF PENSION FUND,PENA PENSION ADMINISTRATION
http://www.havering.gov.uk,London Borough of Havering,02/12/2010,785376002,250,FREEDOM HEALTHCARE SERVICES LTD,217722,ADULT SOCIAL CARE,Supplies and Services,EEEE SOCIAL CARE & LEARNING,EEE6 ADULT SOCIAL CARE
http://www.havering.gov.uk,London Borough of Havering,02/12/2010,785376003,549,FREEDOM HEALTHCARE SERVICES LTD,217722,ADULT SOCIAL CARE,Supplies and Services,EEEE SOCIAL CARE & LEARNING,EEE6 ADULT SOCIAL CARE
http://www.havering.gov.uk,London Borough of Havering,02/12/2010,785379002,250,FREEDOM HEALTHCARE SERVICES LTD,217722,ADULT SOCIAL CARE,Supplies and Services,EEEE SOCIAL CARE & LEARNING,EEE6 ADULT SOCIAL CARE
http://www.havering.gov.uk,London Borough of Havering,02/12/2010,785379003,510,FREEDOM HEALTHCARE SERVICES LTD,217722,ADULT SOCIAL CARE,Supplies and Services,EEEE SOCIAL CARE & LEARNING,EEE6 ADULT SOCIAL CARE
http://www.havering.gov.uk,London Borough of Havering,02/12/2010,785381002,250,FREEDOM HEALTHCARE SERVICES LTD,217722,ADULT SOCIAL CARE,Supplies and Services,EEEE SOCIAL CARE & LEARNING,EEE6 ADULT SOCIAL CARE
http://www.havering.gov.uk,London Borough of Havering,02/12/2010,785381003,573,FREEDOM HEALTHCARE SERVICES LTD,217722,ADULT SOCIAL CARE,Supplies and Services,EEEE SOCIAL CARE & LEARNING,EEE6 ADULT SOCIAL CARE
http://www.havering.gov.uk,London Borough of Havering,02/12/2010,785383002,250,FREEDOM HEALTHCARE SERVICES LTD,217722,ADULT SOCIAL CARE,Supplies and Services,EEEE SOCIAL CARE & LEARNING,EEE6 ADULT SOCIAL CARE
http://www.havering.gov.uk,London Borough of Havering,02/12/2010,785383003,576,FREEDOM HEALTHCARE SERVICES LTD,217722,ADULT SOCIAL CARE,Supplies and Services,EEEE SOCIAL CARE & LEARNING,EEE6 ADULT SOCIAL CARE
http://www.havering.gov.uk,London Borough of Havering,02/12/2010,785390002,1152.69,**REDACTED PERSONAL DATA**,237277,PENSION ADMINISTRATION,Employees,PENF PENSION FUND,PENA PENSION ADMINISTRATION
http://www.havering.gov.uk,London Borough of Havering,02/12/2010,785390003,2.94,**REDACTED PERSONAL DATA**,237277,PENSION ADMINISTRATION,Capital Financing Costs,PENF PENSION FUND,PENA PENSION ADMINISTRATION
http://www.havering.gov.uk,London Borough of Havering,02/12/2010,785394002,524.16,ROSS BROWN COMPANY ,710,ASSET MANAGEMENT,Supplies and Services,FFFF FINANCE & COMMERCE,FFF7 ASSET MANAGEMENT
http://www.havering.gov.uk,London Borough of Havering,02/12/2010,785396002,560,MILLER BROS (ROMFORD) LTD  ,22651,STREETCARE,Supplies and Services,BBBB CULTURE & COMMUNITY,BBB5 STREETCARE
http://www.havering.gov.uk,London Borough of Havering,02/12/2010,785396003,467.09,MILLER BROS (ROMFORD) LTD  ,22651,STREETCARE,Supplies and Services,BBBB CULTURE & COMMUNITY,BBB5 STREETCARE
http://www.havering.gov.uk,London Borough of Havering,02/12/2010,785397002,23780.53,SKANDIA MULTIFIMDS ASSURANCE LTD ,237278,PENSION ADMINISTRATION,Transfer Payments,PENF PENSION FUND,PENA PENSION ADMINISTRATION
http://www.havering.gov.uk,London Borough of Havering,02/12/2010,785398002,22378.09,**REDACTED PERSONAL DATA**,237279,PENSION ADMINISTRATION,Employees,PENF PENSION FUND,PENA PENSION ADMINISTRATION
http://www.havering.gov.uk,London Borough of Havering,02/12/2010,785399002,486.04,**REDACTED PERSONAL DATA**,237280,PENSION ADMINISTRATION,Employees,PENF PENSION FUND,PENA PENSION ADMINISTRATION
http://www.havering.gov.uk,London Borough of Havering,02/12/2010,785399003,1264.63,**REDACTED PERSONAL DATA**,237280,PENSION ADMINISTRATION,Employees,PENF PENSION FUND,PENA PENSION ADMINISTRATION
http://www.havering.gov.uk,London Borough of Havering,02/12/2010,785401002,6000,MILLER BROS (ROMFORD) LTD  ,22651,STREETCARE,Supplies and Services,BBBB CULTURE & COMMUNITY,BBB5 STREETCARE
http://www.havering.gov.uk,London Borough of Havering,02/12/2010,785401003,9000,MILLER BROS (ROMFORD) LTD  ,22651,STREETCARE,Supplies and Services,BBBB CULTURE & COMMUNITY,BBB5 STREETCARE
http://www.havering.gov.uk,London Borough of Havering,02/12/2010,785402002,4000,MILLER BROS (ROMFORD) LTD  ,22651,STREETCARE,Supplies and Services,BBBB CULTURE & COMMUNITY,BBB5 STREETCARE
http://www.havering.gov.uk,London Borough of Havering,02/12/2010,785402003,6000,MILLER BROS (ROMFORD) LTD  ,22651,STREETCARE,Supplies and Services,BBBB CULTURE & COMMUNITY,BBB5 STREETCARE
http://www.havering.gov.uk,London Borough of Havering,02/12/2010,785407002,780,GDS ,149158,HOUSING (HRA),Employees,BBBB CULTURE & COMMUNITY,BBB8 HOUSING (HRA)
http://www.havering.gov.uk,London Borough of Havering,02/12/2010,785407003,378.5,GDS ,149158,HOUSING (HRA),Employees,BBBB CULTURE & COMMUNITY,BBB8 HOUSING (HRA)
http://www.havering.gov.uk,London Borough of Havering,02/12/2010,785408002,6000,GDS ,149158,ASSET MANAGEMENT,Capital Expenditure,FINANCE & COMMERCE,ASSET MANAGEMENT
http://www.havering.gov.uk,London Borough of Havering,02/12/2010,785408003,10440,GDS ,149158,ASSET MANAGEMENT,Capital Expenditure,FINANCE & COMMERCE,ASSET MANAGEMENT
http://www.havering.gov.uk,London Borough of Havering,02/12/2010,785409002,207534.68,RINGWAY INFRASTRUCTURE SERVICES LTD  ,4458,STREETCARE,Capital Expenditure,CULTURE & COMMUNITY,STREETCARE
http://www.havering.gov.uk,London Borough of Havering,02/12/2010,785409003,20000,RINGWAY INFRASTRUCTURE SERVICES LTD  ,4458,REGENERATION & STRATEGIC PLANNING,Capital Expenditure,CULTURE & COMMUNITY,REGENERATION & STRATEGIC PLANNING
http://www.havering.gov.uk,London Borough of Havering,02/12/2010,785409004,81409,RINGWAY INFRASTRUCTURE SERVICES LTD  ,4458,STREETCARE,Supplies and Services,BBBB CULTURE & COMMUNITY,BBB5 STREETCARE
http://www.havering.gov.uk,London Borough of Havering,02/12/2010,785409005,111966.37,RINGWAY INFRASTRUCTURE SERVICES LTD  ,4458,STREETCARE,Capital Expenditure,CULTURE & COMMUNITY,STREETCARE
http://www.havering.gov.uk,London Borough of Havering,02/12/2010,785409006,160309.48,RINGWAY INFRASTRUCTURE SERVICES LTD  ,4458,STREETCARE,Capital Expenditure,CULTURE & COMMUNITY,STREETCARE
http://www.havering.gov.uk,London Borough of Havering,02/12/2010,785409007,15227.79,RINGWAY INFRASTRUCTURE SERVICES LTD  ,4458,STREETCARE,Capital Expenditure,CULTURE & COMMUNITY,STREETCARE
http://www.havering.gov.uk,London Borough of Havering,02/12/2010,785438002,1134,S JOSEPH MANAGEMENT SERVICES LTD ,236511,COMMISSIONING,Employees,EEEE SOCIAL CARE & LEARNING,EEE4 COMMISSIONING
http://www.havering.gov.uk,London Borough of Havering,02/12/2010,785461002,536.25,POWERWASH SOLUTIONS LTD,155422,ASSET MANAGEMENT,Transport-Related Expenditure,FFFF FINANCE & COMMERCE,FFF7 ASSET MANAGEMENT
http://www.havering.gov.uk,London Borough of Havering,02/12/2010,785461003,20,POWERWASH SOLUTIONS LTD,155422,CULTURE & LEISURE,Supplies and Services,BBBB CULTURE & COMMUNITY,BBB1 CULTURE & LEISURE
http://www.havering.gov.uk,London Borough of Havering,02/12/2010,785462002,555.75,POWERWASH SOLUTIONS LTD,155422,ASSET MANAGEMENT,Transport-Related Expenditure,FFFF FINANCE & COMMERCE,FFF7 ASSET MANAGEMENT
http://www.havering.gov.uk,London Borough of Havering,02/12/2010,785462003,20,POWERWASH SOLUTIONS LTD,155422,CULTURE & LEISURE,Supplies and Services,BBBB CULTURE & COMMUNITY,BBB1 CULTURE & LEISURE
http://www.havering.gov.uk,London Borough of Havering,02/12/2010,785463002,536.25,POWERWASH SOLUTIONS LTD,155422,ASSET MANAGEMENT,Transport-Related Expenditure,FFFF FINANCE & COMMERCE,FFF7 ASSET MANAGEMENT
http://www.havering.gov.uk,London Borough of Havering,02/12/2010,785463003,20,POWERWASH SOLUTIONS LTD,155422,CULTURE & LEISURE,Supplies and Services,BBBB CULTURE & COMMUNITY,BBB1 CULTURE & LEISURE
http://www.havering.gov.uk,London Borough of Havering,03/12/2010,785467002,5850,HYMANS ROBERTSON LLP,224527,PENSION ADMINISTRATION,Supplies and Services,PENF PENSION FUND,PENA PENSION ADMINISTRATION
http://www.havering.gov.uk,London Borough of Havering,03/12/2010,785468002,25936.7,PRUDENTIAL CORPORATE PENSIONS ,136247,CONTROL & SUSPENSE,Non-Controllable,No Heirarchy,No Heirarchy
http://www.havering.gov.uk,London Borough of Havering,03/12/2010,785469002,2117.85,PRUDENTIAL CORPORATE PENSIONS ,136247,CONTROL & SUSPENSE,Non-Controllable,No Heirarchy,No Heirarchy
http://www.havering.gov.uk,London Borough of Havering,03/12/2010,785470002,2472.72,PRUDENTIAL CORPORATE PENSIONS ,136247,CONTROL & SUSPENSE,Non-Controllable,No Heirarchy,No Heirarchy
http://www.havering.gov.uk,London Borough of Havering,03/12/2010,785471002,1826.67,PRUDENTIAL CORPORATE PENSIONS ,136247,CONTROL & SUSPENSE,Non-Controllable,No Heirarchy,No Heirarchy
http://www.havering.gov.uk,London Borough of Havering,03/12/2010,785472002,6385.31,PRUDENTIAL LGAVC,18889,CONTROL & SUSPENSE,Non-Controllable,No Heirarchy,No Heirarchy
http://www.havering.gov.uk,London Borough of Havering,03/12/2010,785473002,2873.9,STANDARD LIFE CORPORATE PENSIONS ,214319,CONTROL & SUSPENSE,Non-Controllable,No Heirarchy,No Heirarchy
http://www.havering.gov.uk,London Borough of Havering,03/12/2010,785474002,1154154.1,TEACHERS PENSIONS ,108918,CONTROL & SUSPENSE,Non-Controllable,No Heirarchy,No Heirarchy
http://www.havering.gov.uk,London Borough of Havering,03/12/2010,785474003,242766.82,TEACHERS PENSIONS ,108918,CONTROL & SUSPENSE,Non-Controllable,No Heirarchy,No Heirarchy
http://www.havering.gov.uk,London Borough of Havering,03/12/2010,785476002,500,TELEIOS CONSULTING SOUTH EAST LTD,237255,TRANSFORMATION AGENDA,Supplies and Services,GGGG LEGAL & DEMOCRATIC SERVICES,GGG2 TRANSFORMATION AGENDA
http://www.havering.gov.uk,London Borough of Havering,03/12/2010,785477002,1277,FRC PREPARERS LEVY,222813,CORPORATE FINANCIAL MATTERS,Supplies and Services,FFFF FINANCE & COMMERCE,FFF4 CORPORATE FINANCIAL MATTERS
http://www.havering.gov.uk,London Borough of Havering,03/12/2010,785478002,635,HENSHALL CENTRE LTD,234737,COMMUNICATIONS,Employees,BBBB CULTURE & COMMUNITY,BBB6 COMMUNICATIONS
http://www.havering.gov.uk,London Borough of Havering,03/12/2010,785479002,1103,IN EQUILIBRIUM,237253,LEARNING & ACHIEVEMENT,Employees,EEEE SOCIAL CARE & LEARNING,EEE2 LEARNING & ACHIEVEMENT
http://www.havering.gov.uk,London Borough of Havering,03/12/2010,785485002,615,INSPIRED TECHNOLOGY SERVICES LTD,227831,BUSINESS SYSTEMS,Supplies and Services,FFFF FINANCE & COMMERCE,FFF6 BUSINESS SYSTEMS
http://www.havering.gov.uk,London Borough of Havering,03/12/2010,785487002,452,WALLGATE,237288,ASSET MANAGEMENT,Premises-Related Expenditure,FFFF FINANCE & COMMERCE,FFF7 ASSET MANAGEMENT
http://www.havering.gov.uk,London Borough of Havering,03/12/2010,785488002,575,SAMOSA KING LTD ,224640,CUSTOMER  & COMMUNITY ENGAGEMENT,Supplies and Services,BBBB CULTURE & COMMUNITY,BBB9 CUSTOMER  & COMMUNITY ENGAGEMENT
http://www.havering.gov.uk,London Borough of Havering,03/12/2010,785490002,900,**REDACTED PERSONAL DATA**,200866,CUSTOMER  & COMMUNITY ENGAGEMENT,Supplies and Services,BBBB CULTURE & COMMUNITY,BBB9 CUSTOMER  & COMMUNITY ENGAGEMENT
http://www.havering.gov.uk,London Borough of Havering,03/12/2010,785492002,19995,GLOBAL SECURE SYSTEMS LTD,231871,CONTROL & SUSPENSE,Non-Controllable,FINANCE & COMMERCE,BUSINESS SYSTEMS
http://www.havering.gov.uk,London Borough of Havering,03/12/2010,785495002,753.8,HAVERING CROSSROADS  ,7265,ADULT SOCIAL CARE,Third Party Payments,EEEE SOCIAL CARE & LEARNING,EEE6 ADULT SOCIAL CARE
http://www.havering.gov.uk,London Borough of Havering,03/12/2010,785496002,1100,CAPITA BUSINESS SERVICES LTD ,111117,CONTROL & SUSPENSE,Non-Controllable,FFFF FINANCE & COMMERCE,FFF6 BUSINESS SYSTEMS
http://www.havering.gov.uk,London Borough of Havering,03/12/2010,785497002,5975.59,HAVERING CROSSROADS  ,7265,ADULT SOCIAL CARE,Third Party Payments,EEEE SOCIAL CARE & LEARNING,EEE6 ADULT SOCIAL CARE
http://www.havering.gov.uk,London Borough of Havering,03/12/2010,785499002,3681.6,KINGDOM SECURITY LTD,233148,ASSET MANAGEMENT,Supplies and Services,FFFF FINANCE & COMMERCE,FFF7 ASSET MANAGEMENT
http://www.havering.gov.uk,London Borough of Havering,03/12/2010,785500002,34784.78,ORACLE CORPORATION UK LIMITED  ,15063,CONTROL & SUSPENSE,Non-Controllable,FFFF FINANCE & COMMERCE,FFF6 BUSINESS SYSTEMS
http://www.havering.gov.uk,London Borough of Havering,03/12/2010,785501002,2122.23,KINGDOM SECURITY LTD,233148,ASSET MANAGEMENT,Premises-Related Expenditure,FFFF FINANCE & COMMERCE,FFF7 ASSET MANAGEMENT
http://www.havering.gov.uk,London Borough of Havering,03/12/2010,785502002,2226.3,KINGDOM SECURITY LTD,233148,ASSET MANAGEMENT,Premises-Related Expenditure,FFFF FINANCE & COMMERCE,FFF7 ASSET MANAGEMENT
http://www.havering.gov.uk,London Borough of Havering,03/12/2010,785503002,3205.49,HAVERING CROSSROADS  ,7265,ADULT SOCIAL CARE,Third Party Payments,EEEE SOCIAL CARE & LEARNING,EEE6 ADULT SOCIAL CARE
http://www.havering.gov.uk,London Borough of Havering,03/12/2010,785504002,490,HAVERING BUILDING SPECIALISTS LTD,200832,ASSET MANAGEMENT,Premises-Related Expenditure,FFFF FINANCE & COMMERCE,FFF7 ASSET MANAGEMENT
http://www.havering.gov.uk,London Borough of Havering,03/12/2010,785508002,9583.15,**REDACTED PERSONAL DATA**,205515,HOUSING (HRA),Capital Expenditure,CULTURE & COMMUNITY,HOUSING (HRA)
http://www.havering.gov.uk,London Borough of Havering,03/12/2010,785526002,3950,**REDACTED PERSONAL DATA**,237293,HOUSING & PUBLIC PROTECTION,Capital Expenditure,CULTURE & COMMUNITY,HOUSING & PUBLIC PROTECTION
http://www.havering.gov.uk,London Borough of Havering,03/12/2010,785527002,1187.5,PROACTIVE CONSTRUCTION LTD,237292,HOUSING & PUBLIC PROTECTION,Capital Expenditure,CULTURE & COMMUNITY,HOUSING & PUBLIC PROTECTION
http://www.havering.gov.uk,London Borough of Havering,03/12/2010,785528002,1187.5,**REDACTED PERSONAL DATA**,237291,HOUSING & PUBLIC PROTECTION,Capital Expenditure,CULTURE & COMMUNITY,HOUSING & PUBLIC PROTECTION
http://www.havering.gov.uk,London Borough of Havering,03/12/2010,785530002,4995,1ST STEP MOBILITY LTD ,233610,HOUSING & PUBLIC PROTECTION,Capital Expenditure,CULTURE & COMMUNITY,HOUSING & PUBLIC PROTECTION
http://www.havering.gov.uk,London Borough of Havering,03/12/2010,785531002,2114.47,CHAFFORD SCHOOL ,125820,CHRIS SPICER,Non-Controllable,No Heirarchy,No Heirarchy
http://www.havering.gov.uk,London Borough of Havering,03/12/2010,785532002,771.52,FLEDGELINGS DAY NURSERY (ROMFORD),110612,SCHOOLS FOR THE FUTURE,Capital Expenditure,SOCIAL CARE & LEARNING,SCHOOLS FOR THE FUTURE
http://www.havering.gov.uk,London Borough of Havering,03/12/2010,785533002,1884,HANDICARE ACCESSIBILITY LTD,237076,HOUSING & PUBLIC PROTECTION,Capital Expenditure,CULTURE & COMMUNITY,HOUSING & PUBLIC PROTECTION
http://www.havering.gov.uk,London Borough of Havering,03/12/2010,785534002,663.65,FLEDGELINGS DAY NURSERY (ROMFORD),110612,LEARNING & ACHIEVEMENT,Supplies and Services,EEEE SOCIAL CARE & LEARNING,EEE2 LEARNING & ACHIEVEMENT
http://www.havering.gov.uk,London Borough of Havering,03/12/2010,785539002,3286.77,SLM LTD ,222623,CHRIS SPICER,Non-Controllable,No Heirarchy,No Heirarchy
http://www.havering.gov.uk,London Borough of Havering,03/12/2010,785547002,6172.46,HAVERING CENTRAL YOUTH COUNCIL ,227087,SCHOOLS FOR THE FUTURE,Capital Expenditure,SOCIAL CARE & LEARNING,CHILDREN & YOUNG PEOPLE
http://www.havering.gov.uk,London Borough of Havering,03/12/2010,785548002,4589,CRANHAM YOUTH SUPPORT GROUP,200333,SCHOOLS FOR THE FUTURE,Capital Expenditure,SOCIAL CARE & LEARNING,CHILDREN & YOUNG PEOPLE
http://www.havering.gov.uk,London Borough of Havering,03/12/2010,785561002,1287.9,**REDACTED PERSONAL DATA**,235287,ADULT SOCIAL CARE,Transfer Payments,EEEE SOCIAL CARE & LEARNING,EEE6 ADULT SOCIAL CARE
http://www.havering.gov.uk,London Borough of Havering,03/12/2010,785561003,-203.92,**REDACTED PERSONAL DATA**,235287,ADULT SOCIAL CARE,Income,EEEE SOCIAL CARE & LEARNING,EEE6 ADULT SOCIAL CARE
http://www.havering.gov.uk,London Borough of Havering,03/12/2010,785562002,500,**REDACTED PERSONAL DATA**,222138,EXCHEQUER SERVICES,Supplies and Services,FFFF FINANCE & COMMERCE,FFF2 EXCHEQUER SERVICES
http://www.havering.gov.uk,London Borough of Havering,03/12/2010,785563002,940.06,WESTCORNWALL PASTY CO,237295,CHRIS SPICER,Non-Controllable,No Heirarchy,No Heirarchy
http://www.havering.gov.uk,London Borough of Havering,03/12/2010,785564002,647.64,**REDACTED PERSONAL DATA**,235735,ADULT SOCIAL CARE,Transfer Payments,EEEE SOCIAL CARE & LEARNING,EEE6 ADULT SOCIAL CARE
http://www.havering.gov.uk,London Borough of Havering,03/12/2010,785566002,783.69,**REDACTED PERSONAL DATA**,229131,ADULT SOCIAL CARE,Transfer Payments,EEEE SOCIAL CARE & LEARNING,EEE6 ADULT SOCIAL CARE
http://www.havering.gov.uk,London Borough of Havering,03/12/2010,785569002,806,**REDACTED PERSONAL DATA**,236004,ADULT SOCIAL CARE,Transfer Payments,EEEE SOCIAL CARE & LEARNING,EEE6 ADULT SOCIAL CARE
http://www.havering.gov.uk,London Borough of Havering,03/12/2010,785573002,639,**REDACTED PERSONAL DATA**,232578,ADULT SOCIAL CARE,Transfer Payments,EEEE SOCIAL CARE & LEARNING,EEE6 ADULT SOCIAL CARE
http://www.havering.gov.uk,London Borough of Havering,03/12/2010,785576002,552.82,**REDACTED PERSONAL DATA**,224570,ADULT SOCIAL CARE,Transfer Payments,EEEE SOCIAL CARE & LEARNING,EEE6 ADULT SOCIAL CARE
http://www.havering.gov.uk,London Borough of Havering,03/12/2010,785582002,1131.3,**REDACTED PERSONAL DATA**,208899,ADULT SOCIAL CARE,Transfer Payments,EEEE SOCIAL CARE & LEARNING,EEE6 ADULT SOCIAL CARE
http://www.havering.gov.uk,London Borough of Havering,03/12/2010,785592002,841.6,**REDACTED PERSONAL DATA**,236481,ADULT SOCIAL CARE,Transfer Payments,EEEE SOCIAL CARE & LEARNING,EEE6 ADULT SOCIAL CARE
http://www.havering.gov.uk,London Borough of Havering,03/12/2010,785592003,-207.72,**REDACTED PERSONAL DATA**,236481,ADULT SOCIAL CARE,Income,EEEE SOCIAL CARE & LEARNING,EEE6 ADULT SOCIAL CARE
http://www.havering.gov.uk,London Borough of Havering,03/12/2010,785593002,720,**REDACTED PERSONAL DATA**,237307,EDUCATION GRANT FUNDING,Supplies and Services,EEEE SOCIAL CARE & LEARNING,EEE5 EDUCATION GRANT FUNDING
http://www.havering.gov.uk,London Borough of Havering,03/12/2010,785600002,1271.1,**REDACTED PERSONAL DATA**,236321,ADULT SOCIAL CARE,Transfer Payments,EEEE SOCIAL CARE & LEARNING,EEE6 ADULT SOCIAL CARE
http://www.havering.gov.uk,London Borough of Havering,03/12/2010,785600003,-111.2,**REDACTED PERSONAL DATA**,236321,ADULT SOCIAL CARE,Income,EEEE SOCIAL CARE & LEARNING,EEE6 ADULT SOCIAL CARE
http://www.havering.gov.uk,London Borough of Havering,03/12/2010,785601002,810,**REDACTED PERSONAL DATA**,234873,ADULT SOCIAL CARE,Transfer Payments,EEEE SOCIAL CARE & LEARNING,EEE6 ADULT SOCIAL CARE
http://www.havering.gov.uk,London Borough of Havering,03/12/2010,785603002,468,SOLUTIONS ACTION MANAGEMENT LTD ,215389,COMMISSIONING,Employees,EEEE SOCIAL CARE & LEARNING,EEE4 COMMISSIONING
http://www.havering.gov.uk,London Borough of Havering,03/12/2010,785604002,1161.64,**REDACTED PERSONAL DATA**,233478,ADULT SOCIAL CARE,Transfer Payments,EEEE SOCIAL CARE & LEARNING,EEE6 ADULT SOCIAL CARE
http://www.havering.gov.uk,London Borough of Havering,03/12/2010,785604003,-240.72,**REDACTED PERSONAL DATA**,233478,ADULT SOCIAL CARE,Income,EEEE SOCIAL CARE & LEARNING,EEE6 ADULT SOCIAL CARE
http://www.havering.gov.uk,London Borough of Havering,03/12/2010,785606002,610,**REDACTED PERSONAL DATA**,233122,ADULT SOCIAL CARE,Transfer Payments,EEEE SOCIAL CARE & LEARNING,EEE6 ADULT SOCIAL CARE
http://www.havering.gov.uk,London Borough of Havering,03/12/2010,785608002,2701.88,JOHN STANLEYS CARE AGENCY LTD ,5006,ADULT SOCIAL CARE,Supplies and Services,EEEE SOCIAL CARE & LEARNING,EEE6 ADULT SOCIAL CARE
http://www.havering.gov.uk,London Borough of Havering,03/12/2010,785625002,1978,BLACKMOOR KNIGHT LTD,237289,ASSET MANAGEMENT,Premises-Related Expenditure,FFFF FINANCE & COMMERCE,FFF7 ASSET MANAGEMENT
http://www.havering.gov.uk,London Borough of Havering,03/12/2010,785630002,1278.12,**REDACTED PERSONAL DATA**,235592,ADULT SOCIAL CARE,Transfer Payments,EEEE SOCIAL CARE & LEARNING,EEE6 ADULT SOCIAL CARE
http://www.havering.gov.uk,London Borough of Havering,03/12/2010,785630003,-155.16,**REDACTED PERSONAL DATA**,235592,ADULT SOCIAL CARE,Income,EEEE SOCIAL CARE & LEARNING,EEE6 ADULT SOCIAL CARE
http://www.havering.gov.uk,London Borough of Havering,03/12/2010,785631002,3853.62,**REDACTED PERSONAL DATA**,231354,ADULT SOCIAL CARE,Transfer Payments,EEEE SOCIAL CARE & LEARNING,EEE6 ADULT SOCIAL CARE
http://www.havering.gov.uk,London Borough of Havering,03/12/2010,785632002,72448.97,CAREWATCH (EAST LONDON) ,122380,ADULT SOCIAL CARE,Supplies and Services,EEEE SOCIAL CARE & LEARNING,EEE6 ADULT SOCIAL CARE
http://www.havering.gov.uk,London Borough of Havering,03/12/2010,785632003,5088.77,CAREWATCH (EAST LONDON) ,122380,ADULT SOCIAL CARE,Supplies and Services,EEEE SOCIAL CARE & LEARNING,EEE6 ADULT SOCIAL CARE
http://www.havering.gov.uk,London Borough of Havering,03/12/2010,785632004,662.98,CAREWATCH (EAST LONDON) ,122380,ADULT SOCIAL CARE,Supplies and Services,EEEE SOCIAL CARE & LEARNING,EEE6 ADULT SOCIAL CARE
http://www.havering.gov.uk,London Borough of Havering,03/12/2010,785633002,710.54,**REDACTED PERSONAL DATA**,236969,ADULT SOCIAL CARE,Transfer Payments,EEEE SOCIAL CARE & LEARNING,EEE6 ADULT SOCIAL CARE
http://www.havering.gov.uk,London Borough of Havering,03/12/2010,785633003,-50.4,**REDACTED PERSONAL DATA**,236969,ADULT SOCIAL CARE,Income,EEEE SOCIAL CARE & LEARNING,EEE6 ADULT SOCIAL CARE
http://www.havering.gov.uk,London Borough of Havering,03/12/2010,785634002,720,**REDACTED PERSONAL DATA**,234296,ADULT SOCIAL CARE,Transfer Payments,EEEE SOCIAL CARE & LEARNING,EEE6 ADULT SOCIAL CARE
http://www.havering.gov.uk,London Borough of Havering,03/12/2010,785634003,-150.6,**REDACTED PERSONAL DATA**,234296,ADULT SOCIAL CARE,Income,EEEE SOCIAL CARE & LEARNING,EEE6 ADULT SOCIAL CARE
http://www.havering.gov.uk,London Borough of Havering,03/12/2010,785636002,-8.68,**REDACTED PERSONAL DATA**,218095,ADULT SOCIAL CARE,Income,EEEE SOCIAL CARE & LEARNING,EEE6 ADULT SOCIAL CARE
http://www.havering.gov.uk,London Borough of Havering,03/12/2010,785636003,2692.31,**REDACTED PERSONAL DATA**,218095,ADULT SOCIAL CARE,Transfer Payments,EEEE SOCIAL CARE & LEARNING,EEE6 ADULT SOCIAL CARE
http://www.havering.gov.uk,London Borough of Havering,03/12/2010,785637002,1300.24,**REDACTED PERSONAL DATA**,236970,ADULT SOCIAL CARE,Transfer Payments,EEEE SOCIAL CARE & LEARNING,EEE6 ADULT SOCIAL CARE
http://www.havering.gov.uk,London Borough of Havering,03/12/2010,785637003,-156.92,**REDACTED PERSONAL DATA**,236970,ADULT SOCIAL CARE,Income,EEEE SOCIAL CARE & LEARNING,EEE6 ADULT SOCIAL CARE
http://www.havering.gov.uk,London Borough of Havering,03/12/2010,785640002,735.36,**REDACTED PERSONAL DATA**,236204,ADULT SOCIAL CARE,Transfer Payments,EEEE SOCIAL CARE & LEARNING,EEE6 ADULT SOCIAL CARE
http://www.havering.gov.uk,London Borough of Havering,03/12/2010,785641002,1383,**REDACTED PERSONAL DATA**,232119,ADULT SOCIAL CARE,Transfer Payments,EEEE SOCIAL CARE & LEARNING,EEE6 ADULT SOCIAL CARE
http://www.havering.gov.uk,London Borough of Havering,03/12/2010,785644002,712.6,**REDACTED PERSONAL DATA**,236653,ADULT SOCIAL CARE,Transfer Payments,EEEE SOCIAL CARE & LEARNING,EEE6 ADULT SOCIAL CARE
http://www.havering.gov.uk,London Borough of Havering,03/12/2010,785645002,709.52,**REDACTED PERSONAL DATA**,222110,ADULT SOCIAL CARE,Transfer Payments,EEEE SOCIAL CARE & LEARNING,EEE6 ADULT SOCIAL CARE
http://www.havering.gov.uk,London Borough of Havering,03/12/2010,785646002,1260,**REDACTED PERSONAL DATA**,237042,ADULT SOCIAL CARE,Transfer Payments,EEEE SOCIAL CARE & LEARNING,EEE6 ADULT SOCIAL CARE
http://www.havering.gov.uk,London Borough of Havering,03/12/2010,785647002,787.5,**REDACTED PERSONAL DATA**,215937,ADULT SOCIAL CARE,Transfer Payments,EEEE SOCIAL CARE & LEARNING,EEE6 ADULT SOCIAL CARE
http://www.havering.gov.uk,London Borough of Havering,03/12/2010,785648002,732,**REDACTED PERSONAL DATA**,234663,ADULT SOCIAL CARE,Transfer Payments,EEEE SOCIAL CARE & LEARNING,EEE6 ADULT SOCIAL CARE
http://www.havering.gov.uk,London Borough of Havering,03/12/2010,785649002,1596.42,**REDACTED PERSONAL DATA**,234627,ADULT SOCIAL CARE,Transfer Payments,EEEE SOCIAL CARE & LEARNING,EEE6 ADULT SOCIAL CARE
http://www.havering.gov.uk,London Borough of Havering,03/12/2010,785650002,900,**REDACTED PERSONAL DATA**,233865,ADULT SOCIAL CARE,Transfer Payments,EEEE SOCIAL CARE & LEARNING,EEE6 ADULT SOCIAL CARE
http://www.havering.gov.uk,London Borough of Havering,03/12/2010,785651002,765,**REDACTED PERSONAL DATA**,235431,ADULT SOCIAL CARE,Transfer Payments,EEEE SOCIAL CARE & LEARNING,EEE6 ADULT SOCIAL CARE
http://www.havering.gov.uk,London Borough of Havering,03/12/2010,785651003,-33,**REDACTED PERSONAL DATA**,235431,ADULT SOCIAL CARE,Income,EEEE SOCIAL CARE & LEARNING,EEE6 ADULT SOCIAL CARE
http://www.havering.gov.uk,London Borough of Havering,03/12/2010,785652002,1678.85,**REDACTED PERSONAL DATA**,228891,ADULT SOCIAL CARE,Transfer Payments,EEEE SOCIAL CARE & LEARNING,EEE6 ADULT SOCIAL CARE
http://www.havering.gov.uk,London Borough of Havering,03/12/2010,785654002,924.58,**REDACTED PERSONAL DATA**,236320,ADULT SOCIAL CARE,Transfer Payments,EEEE SOCIAL CARE & LEARNING,EEE6 ADULT SOCIAL CARE
http://www.havering.gov.uk,London Borough of Havering,03/12/2010,785654003,-23.48,**REDACTED PERSONAL DATA**,236320,ADULT SOCIAL CARE,Income,EEEE SOCIAL CARE & LEARNING,EEE6 ADULT SOCIAL CARE
http://www.havering.gov.uk,London Borough of Havering,03/12/2010,785655002,1077.01,**REDACTED PERSONAL DATA**,228368,ADULT SOCIAL CARE,Transfer Payments,EEEE SOCIAL CARE & LEARNING,EEE6 ADULT SOCIAL CARE
http://www.havering.gov.uk,London Borough of Havering,03/12/2010,785656002,1620,**REDACTED PERSONAL DATA**,224393,ADULT SOCIAL CARE,Transfer Payments,EEEE SOCIAL CARE & LEARNING,EEE6 ADULT SOCIAL CARE
http://www.havering.gov.uk,London Borough of Havering,03/12/2010,785656003,-131.52,**REDACTED PERSONAL DATA**,224393,ADULT SOCIAL CARE,Income,EEEE SOCIAL CARE & LEARNING,EEE6 ADULT SOCIAL CARE
http://www.havering.gov.uk,London Borough of Havering,03/12/2010,785657002,945,**REDACTED PERSONAL DATA**,236968,ADULT SOCIAL CARE,Transfer Payments,EEEE SOCIAL CARE & LEARNING,EEE6 ADULT SOCIAL CARE
http://www.havering.gov.uk,London Borough of Havering,03/12/2010,785660002,1565.08,**REDACTED PERSONAL DATA**,224877,ADULT SOCIAL CARE,Transfer Payments,EEEE SOCIAL CARE & LEARNING,EEE6 ADULT SOCIAL CARE
http://www.havering.gov.uk,London Borough of Havering,03/12/2010,785661002,658.77,**REDACTED PERSONAL DATA**,237128,ADULT SOCIAL CARE,Transfer Payments,EEEE SOCIAL CARE & LEARNING,EEE6 ADULT SOCIAL CARE
http://www.havering.gov.uk,London Borough of Havering,03/12/2010,785661003,-21.92,**REDACTED PERSONAL DATA**,237128,ADULT SOCIAL CARE,Income,EEEE SOCIAL CARE & LEARNING,EEE6 ADULT SOCIAL CARE
http://www.havering.gov.uk,London Borough of Havering,03/12/2010,785662002,585,**REDACTED PERSONAL DATA**,232285,ADULT SOCIAL CARE,Transfer Payments,EEEE SOCIAL CARE & LEARNING,EEE6 ADULT SOCIAL CARE
http://www.havering.gov.uk,London Borough of Havering,03/12/2010,785664002,607.46,**REDACTED PERSONAL DATA**,236232,ADULT SOCIAL CARE,Transfer Payments,EEEE SOCIAL CARE & LEARNING,EEE6 ADULT SOCIAL CARE
http://www.havering.gov.uk,London Borough of Havering,03/12/2010,785664003,-81.8,**REDACTED PERSONAL DATA**,236232,ADULT SOCIAL CARE,Income,EEEE SOCIAL CARE & LEARNING,EEE6 ADULT SOCIAL CARE
http://www.havering.gov.uk,London Borough of Havering,03/12/2010,785665002,817.31,**REDACTED PERSONAL DATA**,218479,ADULT SOCIAL CARE,Transfer Payments,EEEE SOCIAL CARE & LEARNING,EEE6 ADULT SOCIAL CARE
http://www.havering.gov.uk,London Borough of Havering,03/12/2010,785665003,-60.8,**REDACTED PERSONAL DATA**,218479,ADULT SOCIAL CARE,Income,EEEE SOCIAL CARE & LEARNING,EEE6 ADULT SOCIAL CARE
http://www.havering.gov.uk,London Borough of Havering,03/12/2010,785666002,540,**REDACTED PERSONAL DATA**,237127,ADULT SOCIAL CARE,Transfer Payments,EEEE SOCIAL CARE & LEARNING,EEE6 ADULT SOCIAL CARE
http://www.havering.gov.uk,London Borough of Havering,03/12/2010,785668002,1575,**REDACTED PERSONAL DATA**,236655,ADULT SOCIAL CARE,Transfer Payments,EEEE SOCIAL CARE & LEARNING,EEE6 ADULT SOCIAL CARE
http://www.havering.gov.uk,London Borough of Havering,03/12/2010,785669002,1848.88,**REDACTED PERSONAL DATA**,218958,ADULT SOCIAL CARE,Transfer Payments,EEEE SOCIAL CARE & LEARNING,EEE6 ADULT SOCIAL CARE
http://www.havering.gov.uk,London Borough of Havering,03/12/2010,785669003,-35,**REDACTED PERSONAL DATA**,218958,ADULT SOCIAL CARE,Income,EEEE SOCIAL CARE & LEARNING,EEE6 ADULT SOCIAL CARE
http://www.havering.gov.uk,London Borough of Havering,03/12/2010,785670002,2331.52,**REDACTED PERSONAL DATA**,202171,ADULT SOCIAL CARE,Transfer Payments,EEEE SOCIAL CARE & LEARNING,EEE6 ADULT SOCIAL CARE
http://www.havering.gov.uk,London Borough of Havering,03/12/2010,785672002,2419.23,**REDACTED PERSONAL DATA**,227969,ADULT SOCIAL CARE,Transfer Payments,EEEE SOCIAL CARE & LEARNING,EEE6 ADULT SOCIAL CARE
http://www.havering.gov.uk,London Borough of Havering,03/12/2010,785673002,585,**REDACTED PERSONAL DATA**,233332,ADULT SOCIAL CARE,Transfer Payments,EEEE SOCIAL CARE & LEARNING,EEE6 ADULT SOCIAL CARE
http://www.havering.gov.uk,London Borough of Havering,03/12/2010,785676002,2011.46,**REDACTED PERSONAL DATA**,212666,ADULT SOCIAL CARE,Transfer Payments,EEEE SOCIAL CARE & LEARNING,EEE6 ADULT SOCIAL CARE
http://www.havering.gov.uk,London Borough of Havering,03/12/2010,785677002,745,**REDACTED PERSONAL DATA**,235773,ADULT SOCIAL CARE,Transfer Payments,EEEE SOCIAL CARE & LEARNING,EEE6 ADULT SOCIAL CARE
http://www.havering.gov.uk,London Borough of Havering,03/12/2010,785678002,990,**REDACTED PERSONAL DATA**,236261,ADULT SOCIAL CARE,Transfer Payments,EEEE SOCIAL CARE & LEARNING,EEE6 ADULT SOCIAL CARE
http://www.havering.gov.uk,London Borough of Havering,03/12/2010,785678003,-30.48,**REDACTED PERSONAL DATA**,236261,ADULT SOCIAL CARE,Income,EEEE SOCIAL CARE & LEARNING,EEE6 ADULT SOCIAL CARE
http://www.havering.gov.uk,London Borough of Havering,03/12/2010,785680002,734.72,**REDACTED PERSONAL DATA**,230357,ADULT SOCIAL CARE,Transfer Payments,EEEE SOCIAL CARE & LEARNING,EEE6 ADULT SOCIAL CARE
http://www.havering.gov.uk,London Borough of Havering,03/12/2010,785683002,628,**REDACTED PERSONAL DATA**,236146,ADULT SOCIAL CARE,Transfer Payments,EEEE SOCIAL CARE & LEARNING,EEE6 ADULT SOCIAL CARE
http://www.havering.gov.uk,London Borough of Havering,03/12/2010,785688002,1490.38,**REDACTED PERSONAL DATA**,232354,ADULT SOCIAL CARE,Transfer Payments,EEEE SOCIAL CARE & LEARNING,EEE6 ADULT SOCIAL CARE
http://www.havering.gov.uk,London Borough of Havering,03/12/2010,785688003,-294.52,**REDACTED PERSONAL DATA**,232354,ADULT SOCIAL CARE,Income,EEEE SOCIAL CARE & LEARNING,EEE6 ADULT SOCIAL CARE
http://www.havering.gov.uk,London Borough of Havering,03/12/2010,785689002,913.46,**REDACTED PERSONAL DATA**,234297,ADULT SOCIAL CARE,Transfer Payments,EEEE SOCIAL CARE & LEARNING,EEE6 ADULT SOCIAL CARE
http://www.havering.gov.uk,London Borough of Havering,06/12/2010,785707002,187.85,MIX-N-LAY CONCRETE SUPPLIES (SOUTHERN) LTD ,3617,STREETCARE,Supplies and Services,BBBB CULTURE & COMMUNITY,BBB5 STREETCARE
http://www.havering.gov.uk,London Borough of Havering,06/12/2010,785707003,115.68,MIX-N-LAY CONCRETE SUPPLIES (SOUTHERN) LTD ,3617,STREETCARE,Supplies and Services,BBBB CULTURE & COMMUNITY,BBB5 STREETCARE
http://www.havering.gov.uk,London Borough of Havering,06/12/2010,785707004,115.68,MIX-N-LAY CONCRETE SUPPLIES (SOUTHERN) LTD ,3617,STREETCARE,Supplies and Services,BBBB CULTURE & COMMUNITY,BBB5 STREETCARE
http://www.havering.gov.uk,London Borough of Havering,06/12/2010,785707005,218.08,MIX-N-LAY CONCRETE SUPPLIES (SOUTHERN) LTD ,3617,STREETCARE,Supplies and Services,BBBB CULTURE & COMMUNITY,BBB5 STREETCARE
http://www.havering.gov.uk,London Borough of Havering,06/12/2010,785707006,110.5,MIX-N-LAY CONCRETE SUPPLIES (SOUTHERN) LTD ,3617,STREETCARE,Supplies and Services,BBBB CULTURE & COMMUNITY,BBB5 STREETCARE
http://www.havering.gov.uk,London Borough of Havering,06/12/2010,785707007,182.8,MIX-N-LAY CONCRETE SUPPLIES (SOUTHERN) LTD ,3617,STREETCARE,Supplies and Services,BBBB CULTURE & COMMUNITY,BBB5 STREETCARE
http://www.havering.gov.uk,London Borough of Havering,06/12/2010,785707008,166.7,MIX-N-LAY CONCRETE SUPPLIES (SOUTHERN) LTD ,3617,STREETCARE,Supplies and Services,BBBB CULTURE & COMMUNITY,BBB5 STREETCARE
http://www.havering.gov.uk,London Borough of Havering,06/12/2010,785707009,132.6,MIX-N-LAY CONCRETE SUPPLIES (SOUTHERN) LTD ,3617,STREETCARE,Supplies and Services,BBBB CULTURE & COMMUNITY,BBB5 STREETCARE
http://www.havering.gov.uk,London Borough of Havering,06/12/2010,785708001,524.22,"HOLT JACKSON BOOK CO LTD,THE ",2618,CULTURE & LEISURE,Supplies and Services,BBBB CULTURE & COMMUNITY,BBB1 CULTURE & LEISURE
http://www.havering.gov.uk,London Borough of Havering,06/12/2010,785741002,81.8,NEIL SULLIVAN & SONS ,225267,STREETCARE,Supplies and Services,BBBB CULTURE & COMMUNITY,BBB5 STREETCARE
http://www.havering.gov.uk,London Borough of Havering,06/12/2010,785741003,237.22,NEIL SULLIVAN & SONS ,225267,STREETCARE,Supplies and Services,BBBB CULTURE & COMMUNITY,BBB5 STREETCARE
http://www.havering.gov.uk,London Borough of Havering,06/12/2010,785741004,81.8,NEIL SULLIVAN & SONS ,225267,STREETCARE,Supplies and Services,BBBB CULTURE & COMMUNITY,BBB5 STREETCARE
http://www.havering.gov.uk,London Borough of Havering,06/12/2010,785741005,106.34,NEIL SULLIVAN & SONS ,225267,STREETCARE,Supplies and Services,BBBB CULTURE & COMMUNITY,BBB5 STREETCARE
http://www.havering.gov.uk,London Borough of Havering,06/12/2010,785837002,3516.06,SIGNWAY SUPPLIES (DATCHET) LTD ,235923,STREETCARE,Supplies and Services,BBBB CULTURE & COMMUNITY,BBB5 STREETCARE
http://www.havering.gov.uk,London Borough of Havering,06/12/2010,785840001,110738.63,CAPGEMINI UK PLC ,234582,CONTROL & SUSPENSE,Non-Controllable,FINANCE & COMMERCE,BUSINESS SYSTEMS
http://www.havering.gov.uk,London Borough of Havering,06/12/2010,785841001,11210,CAPGEMINI UK PLC ,234582,CONTROL & SUSPENSE,Non-Controllable,GGGG LEGAL & DEMOCRATIC SERVICES,GGG2 TRANSFORMATION AGENDA
http://www.havering.gov.uk,London Borough of Havering,06/12/2010,785841002,12740,CAPGEMINI UK PLC ,234582,CONTROL & SUSPENSE,Non-Controllable,GGGG LEGAL & DEMOCRATIC SERVICES,GGG2 TRANSFORMATION AGENDA
http://www.havering.gov.uk,London Borough of Havering,06/12/2010,785841003,17290,CAPGEMINI UK PLC ,234582,CONTROL & SUSPENSE,Non-Controllable,GGGG LEGAL & DEMOCRATIC SERVICES,GGG2 TRANSFORMATION AGENDA
http://www.havering.gov.uk,London Borough of Havering,06/12/2010,785842001,714.6,OFFICE DEPOT UK LTD ,220619,CONTROL & SUSPENSE,Non-Controllable,FFFF FINANCE & COMMERCE,FFF7 ASSET MANAGEMENT
http://www.havering.gov.uk,London Borough of Havering,06/12/2010,785886002,74235,"ARDLEIGH GREEN INFANTS SCHOOL ,LBH ",131393,EDUCATION,Non-Controllable,No Heirarchy,No Heirarchy
http://www.havering.gov.uk,London Borough of Havering,06/12/2010,785887002,99710,"ARDLEIGH GREEN JNR SCH,LBH ",141395,EDUCATION,Non-Controllable,No Heirarchy,No Heirarchy
http://www.havering.gov.uk,London Borough of Havering,06/12/2010,785888002,69576,SCARGILL INFANTS SCHOOL  ,4652,EDUCATION,Non-Controllable,No Heirarchy,No Heirarchy
http://www.havering.gov.uk,London Borough of Havering,06/12/2010,785889002,90202,BENHURST PRIMARY SCHOOL,140777,EDUCATION,Non-Controllable,No Heirarchy,No Heirarchy
http://www.havering.gov.uk,London Borough of Havering,06/12/2010,785890002,64072,BRADY JMI SCHOOL ,125805,EDUCATION,Non-Controllable,No Heirarchy,No Heirarchy
http://www.havering.gov.uk,London Borough of Havering,06/12/2010,785891002,122615,BRANFIL PRIMARY SCHOOL,140779,EDUCATION,Non-Controllable,No Heirarchy,No Heirarchy
http://www.havering.gov.uk,London Borough of Havering,06/12/2010,785892002,81309,SCARGILL JUNIOR SCHOOL LBH ,17471,EDUCATION,Non-Controllable,No Heirarchy,No Heirarchy
http://www.havering.gov.uk,London Borough of Havering,06/12/2010,785893002,123924,BROADFORD PRIMARY SCHOOL,34561,EDUCATION,Non-Controllable,No Heirarchy,No Heirarchy
http://www.havering.gov.uk,London Borough of Havering,06/12/2010,785894002,81387,BROOKSIDE INFANTS SCHOOL,140780,EDUCATION,Non-Controllable,No Heirarchy,No Heirarchy
http://www.havering.gov.uk,London Borough of Havering,06/12/2010,785895002,67097,SCOTTS JMI SCHOOL ,125815,EDUCATION,Non-Controllable,No Heirarchy,No Heirarchy
http://www.havering.gov.uk,London Borough of Havering,06/12/2010,785896002,89603,LBH BROOKSIDE JUNIOR SCHOOL,140782,EDUCATION,Non-Controllable,No Heirarchy,No Heirarchy
http://www.havering.gov.uk,London Borough of Havering,06/12/2010,785897002,195645,"CLOCKHOUSE PRIMARY SCHOOL,LBH ",130454,EDUCATION,Non-Controllable,No Heirarchy,No Heirarchy
http://www.havering.gov.uk,London Borough of Havering,06/12/2010,785898002,171403,"CROWLANDS PRIMARY SCHOOL,LBH ",134580,EDUCATION,Non-Controllable,No Heirarchy,No Heirarchy
http://www.havering.gov.uk,London Borough of Havering,06/12/2010,785899002,78010,CROWNFIELD INFANT SCHOOL ,125806,EDUCATION,Non-Controllable,No Heirarchy,No Heirarchy
http://www.havering.gov.uk,London Borough of Havering,06/12/2010,785900002,90785,CROWNFIELD JUNIOR SCHOOL ,125807,EDUCATION,Non-Controllable,No Heirarchy,No Heirarchy
http://www.havering.gov.uk,London Borough of Havering,06/12/2010,785901002,41699,DAME TIPPING PRIMARY SCHOOL ,133181,EDUCATION,Non-Controllable,No Heirarchy,No Heirarchy
http://www.havering.gov.uk,London Borough of Havering,06/12/2010,785902002,72397,LBH SQUIRRELS HEATH INFANT SCHOOL,7039,EDUCATION,Non-Controllable,No Heirarchy,No Heirarchy
http://www.havering.gov.uk,London Borough of Havering,06/12/2010,785903002,147072,ELM PARK PRIMARY,6984,EDUCATION,Non-Controllable,No Heirarchy,No Heirarchy
http://www.havering.gov.uk,London Borough of Havering,06/12/2010,785904002,173213,ENGAYNE PRIMARY SCHOOL ,144868,EDUCATION,Non-Controllable,No Heirarchy,No Heirarchy
http://www.havering.gov.uk,London Borough of Havering,06/12/2010,785905002,95377,LBH SQUIRRELS HEATH JUNIOR SCHOOL,108380,EDUCATION,Non-Controllable,No Heirarchy,No Heirarchy
http://www.havering.gov.uk,London Borough of Havering,06/12/2010,785906002,68799,ST ALBANS RC PRIMARY SCHOOL ,116277,EDUCATION,Non-Controllable,No Heirarchy,No Heirarchy
http://www.havering.gov.uk,London Borough of Havering,06/12/2010,785907002,187945,ST EDWARDS CE PRIMARY SCHOOL ,16362,EDUCATION,Non-Controllable,No Heirarchy,No Heirarchy
http://www.havering.gov.uk,London Borough of Havering,06/12/2010,785908002,114709,"ST JOSEPHS RC PRIMARY SCH,LBH ",134228,EDUCATION,Non-Controllable,No Heirarchy,No Heirarchy
http://www.havering.gov.uk,London Borough of Havering,06/12/2010,785909002,128009,"ST MARYS RC PRIMARY SCH,LBH ",116279,EDUCATION,Non-Controllable,No Heirarchy,No Heirarchy
http://www.havering.gov.uk,London Borough of Havering,06/12/2010,785926002,95030,ST PATRICKS RC PRIMARY,116281,EDUCATION,Non-Controllable,No Heirarchy,No Heirarchy
http://www.havering.gov.uk,London Borough of Havering,06/12/2010,785927002,95214,"GIDEA PARK SCHOOL,LBH ",153908,EDUCATION,Non-Controllable,No Heirarchy,No Heirarchy
http://www.havering.gov.uk,London Borough of Havering,06/12/2010,785928002,64917,"ST PETERS CATHOLIC PRIMARY SCH,LBH ",16363,EDUCATION,Non-Controllable,No Heirarchy,No Heirarchy
http://www.havering.gov.uk,London Borough of Havering,06/12/2010,785929002,145966,LBH HACTON PRIMARY SCHOOL,140784,EDUCATION,Non-Controllable,No Heirarchy,No Heirarchy
http://www.havering.gov.uk,London Borough of Havering,06/12/2010,785930002,90888,HAROLD COURT SCHOOL,39924,EDUCATION,Non-Controllable,No Heirarchy,No Heirarchy
http://www.havering.gov.uk,London Borough of Havering,06/12/2010,785931002,73396,"ST URSULAS RC INFANT SCHOOL,LBH ",121155,EDUCATION,Non-Controllable,No Heirarchy,No Heirarchy
http://www.havering.gov.uk,London Borough of Havering,06/12/2010,785932002,98222,"HAROLD WOOD PRIMARY SCHOOL,LBH ",140786,EDUCATION,Non-Controllable,No Heirarchy,No Heirarchy
http://www.havering.gov.uk,London Borough of Havering,06/12/2010,785933002,231663,HILLDENE PRIMARY SCHOOL ,125808,EDUCATION,Non-Controllable,No Heirarchy,No Heirarchy
http://www.havering.gov.uk,London Borough of Havering,06/12/2010,785934002,141565,HYLANDS PRIMARY SCHOOL,16340,EDUCATION,Non-Controllable,No Heirarchy,No Heirarchy
http://www.havering.gov.uk,London Borough of Havering,06/12/2010,785935002,67374,LA SALETTE R C PRIMARY SCHOOL ,116031,EDUCATION,Non-Controllable,No Heirarchy,No Heirarchy
http://www.havering.gov.uk,London Borough of Havering,06/12/2010,785936002,83115,ST URSULA'S RC JNR SCHOOL LBH ,6014,EDUCATION,Non-Controllable,No Heirarchy,No Heirarchy
http://www.havering.gov.uk,London Borough of Havering,06/12/2010,785937002,72244,LANGTONS INFANTS SCHOOL ,26267,EDUCATION,Non-Controllable,No Heirarchy,No Heirarchy
http://www.havering.gov.uk,London Borough of Havering,06/12/2010,785938002,65116,"SUTTONS PRIMARY SCHOOL, LBH",5136,EDUCATION,Non-Controllable,No Heirarchy,No Heirarchy
http://www.havering.gov.uk,London Borough of Havering,06/12/2010,785939002,94985,JAMES OGLETHORPE PRIMARY SCHOOL ,125809,EDUCATION,Non-Controllable,No Heirarchy,No Heirarchy
http://www.havering.gov.uk,London Borough of Havering,06/12/2010,785940002,93199,LANGTONS JUNIOR SCHOOL ,133072,EDUCATION,Non-Controllable,No Heirarchy,No Heirarchy
http://www.havering.gov.uk,London Borough of Havering,06/12/2010,785941002,73365,"MAWNEY FOUNDATION SCHOOL,LBH THE ",137561,EDUCATION,Non-Controllable,No Heirarchy,No Heirarchy
http://www.havering.gov.uk,London Borough of Havering,06/12/2010,785942002,164588,MEAD JMI SCHOOL ,16352,EDUCATION,Non-Controllable,No Heirarchy,No Heirarchy
http://www.havering.gov.uk,London Borough of Havering,06/12/2010,785943002,71803,"R J MITCHELL PRIMARY SCHOOL,THE",140794,EDUCATION,Non-Controllable,No Heirarchy,No Heirarchy
http://www.havering.gov.uk,London Borough of Havering,06/12/2010,785944002,116909,NELMES PRIMARY SCHOOL,140789,EDUCATION,Non-Controllable,No Heirarchy,No Heirarchy
http://www.havering.gov.uk,London Borough of Havering,06/12/2010,785945002,55872,TOWERS INFANT SCHOOL LBH  ,7041,EDUCATION,Non-Controllable,No Heirarchy,No Heirarchy
http://www.havering.gov.uk,London Borough of Havering,06/12/2010,785946002,109439,NEWTONS PRIMARY SCHOOL ,32406,EDUCATION,Non-Controllable,No Heirarchy,No Heirarchy
http://www.havering.gov.uk,London Borough of Havering,06/12/2010,785947002,69586,TOWERS JUNIOR SCHOOL LBH  ,7043,EDUCATION,Non-Controllable,No Heirarchy,No Heirarchy
http://www.havering.gov.uk,London Borough of Havering,06/12/2010,785948002,121748,PARKLANDS INFANT SCHOOL ,125810,EDUCATION,Non-Controllable,No Heirarchy,No Heirarchy
http://www.havering.gov.uk,London Borough of Havering,06/12/2010,785949002,75102,UPMINSTER INFANT SCHOOL ,125818,EDUCATION,Non-Controllable,No Heirarchy,No Heirarchy
http://www.havering.gov.uk,London Borough of Havering,06/12/2010,785950002,136395,PARKLANDS JUNIOR SCHOOL ,125811,EDUCATION,Non-Controllable,No Heirarchy,No Heirarchy
http://www.havering.gov.uk,London Borough of Havering,06/12/2010,785951002,123587,PARSONAGE FARM PRIMARY SCHOOL ,126163,EDUCATION,Non-Controllable,No Heirarchy,No Heirarchy
http://www.havering.gov.uk,London Borough of Havering,06/12/2010,785952002,102442,UPMINSTER JUNIOR SCHOOL ,125819,EDUCATION,Non-Controllable,No Heirarchy,No Heirarchy
http://www.havering.gov.uk,London Borough of Havering,06/12/2010,785953002,83951,"PINEWOOD PRIMARY SCH,LBH ",7364,EDUCATION,Non-Controllable,No Heirarchy,No Heirarchy
http://www.havering.gov.uk,London Borough of Havering,06/12/2010,785954002,121272,PYRGO PRIORY SCHOOL,140791,EDUCATION,Non-Controllable,No Heirarchy,No Heirarchy
http://www.havering.gov.uk,London Borough of Havering,06/12/2010,785955002,54208,WHYBRIDGE INFANT SCHOOL ,139695,EDUCATION,Non-Controllable,No Heirarchy,No Heirarchy
http://www.havering.gov.uk,London Borough of Havering,06/12/2010,785956002,110415,RAINHAM VILLAGE PRIMARY SCHOOL ,101147,EDUCATION,Non-Controllable,No Heirarchy,No Heirarchy
http://www.havering.gov.uk,London Borough of Havering,06/12/2010,785957002,65957,"WHYBRIDGE JNR SCHOOL,LBH ",4842,EDUCATION,Non-Controllable,No Heirarchy,No Heirarchy
http://www.havering.gov.uk,London Borough of Havering,06/12/2010,785958002,57038,"RISE PARK INFANT SCHOOL,LBH ",140792,EDUCATION,Non-Controllable,No Heirarchy,No Heirarchy
http://www.havering.gov.uk,London Borough of Havering,06/12/2010,785959002,123292,WYKEHAM PRIMARY SCHOOL,16372,EDUCATION,Non-Controllable,No Heirarchy,No Heirarchy
http://www.havering.gov.uk,London Borough of Havering,06/12/2010,785960002,74100,RISE PARK JUNIOR SCHOOL ,125813,EDUCATION,Non-Controllable,No Heirarchy,No Heirarchy
http://www.havering.gov.uk,London Borough of Havering,06/12/2010,785961002,390403,"BOWER PARK SCHOOL,LBH ",120538,EDUCATION,Non-Controllable,No Heirarchy,No Heirarchy
http://www.havering.gov.uk,London Borough of Havering,06/12/2010,785962002,487291,"BRITTONS SCHOOL & TECHNOLOGY COLLEGE,LBH ",130049,EDUCATION,Non-Controllable,No Heirarchy,No Heirarchy
http://www.havering.gov.uk,London Borough of Havering,06/12/2010,785963002,394324,EMERSON PARK SCHOOL,6978,EDUCATION,Non-Controllable,No Heirarchy,No Heirarchy
http://www.havering.gov.uk,London Borough of Havering,06/12/2010,785964002,384395,GAYNES SCHOOL LANGUAGE COLLEGE ,125821,EDUCATION,Non-Controllable,No Heirarchy,No Heirarchy
http://www.havering.gov.uk,London Borough of Havering,06/12/2010,785965002,404379,HALL MEAD SCHOOL,16322,EDUCATION,Non-Controllable,No Heirarchy,No Heirarchy
http://www.havering.gov.uk,London Borough of Havering,06/12/2010,785966002,355473,MARSHALLS PARK SCHOOL,7851,EDUCATION,Non-Controllable,No Heirarchy,No Heirarchy
http://www.havering.gov.uk,London Borough of Havering,06/12/2010,785967002,327465,REDDEN COURT SCHOOL ,6981,EDUCATION,Non-Controllable,No Heirarchy,No Heirarchy
http://www.havering.gov.uk,London Borough of Havering,06/12/2010,785968002,572508,ST EDWARD'S CE SCH & SIXTH FORM COLL  ,6983,EDUCATION,Non-Controllable,No Heirarchy,No Heirarchy
http://www.havering.gov.uk,London Borough of Havering,06/12/2010,785969002,370561,ALBANY SCHOOL ,6974,EDUCATION,Non-Controllable,No Heirarchy,No Heirarchy
http://www.havering.gov.uk,London Borough of Havering,06/12/2010,785970002,442834,CAMPION SCHOOL LBH  ,6975,EDUCATION,Non-Controllable,No Heirarchy,No Heirarchy
http://www.havering.gov.uk,London Borough of Havering,06/12/2010,785972002,251115,"ROYAL LIBERTY SCHOOL,LBH ",16324,EDUCATION,Non-Controllable,No Heirarchy,No Heirarchy
http://www.havering.gov.uk,London Borough of Havering,06/12/2010,785976002,411509,SANDERS DRAPERS SCHOOL,16326,EDUCATION,Non-Controllable,No Heirarchy,No Heirarchy
http://www.havering.gov.uk,London Borough of Havering,06/12/2010,785977002,147225,CORBETS TEY SCHOOL ,7046,EDUCATION,Non-Controllable,No Heirarchy,No Heirarchy
http://www.havering.gov.uk,London Borough of Havering,06/12/2010,785978002,103305,DYCORTS SCHOOL ,144873,EDUCATION,Non-Controllable,No Heirarchy,No Heirarchy
http://www.havering.gov.uk,London Borough of Havering,06/12/2010,785979002,159880,LBH RAVENSBOURNE SCHOOL,16375,EDUCATION,Non-Controllable,No Heirarchy,No Heirarchy
http://www.havering.gov.uk,London Borough of Havering,06/12/2010,785980002,17161,CENTRAL RAINHAM LOCALITY GROUP,220419,EDUCATION,Non-Controllable,No Heirarchy,No Heirarchy
http://www.havering.gov.uk,London Borough of Havering,06/12/2010,785981002,8940,LBH UPM EXTENDED SCH LOCALITY GRP ,221807,EDUCATION,Non-Controllable,No Heirarchy,No Heirarchy
http://www.havering.gov.uk,London Borough of Havering,06/12/2010,785982002,23181,"HAROLD HILL LOCALITY GROUP,LBH",223109,EDUCATION,Non-Controllable,No Heirarchy,No Heirarchy
http://www.havering.gov.uk,London Borough of Havering,06/12/2010,785983002,21972,LBH RE ST EDWARDS C OF E COMP SCH ROMFORD LOCAILTY GRP (EXT SCH) ,221934,EDUCATION,Non-Controllable,No Heirarchy,No Heirarchy
http://www.havering.gov.uk,London Borough of Havering,06/12/2010,785984002,3188,NORTH ROMFORD CONSORTIUM ,143092,EDUCATION,Non-Controllable,No Heirarchy,No Heirarchy
http://www.havering.gov.uk,London Borough of Havering,06/12/2010,785985002,16331,HORNCHURCH LOCALITY GROUP LBH,220533,EDUCATION,Non-Controllable,No Heirarchy,No Heirarchy
http://www.havering.gov.uk,London Borough of Havering,06/12/2010,785986002,511.97,**REDACTED PERSONAL DATA**,235521,ADULT SOCIAL CARE,Transfer Payments,EEEE SOCIAL CARE & LEARNING,EEE6 ADULT SOCIAL CARE
http://www.havering.gov.uk,London Borough of Havering,06/12/2010,785988002,1549.15,**REDACTED PERSONAL DATA**,236316,ADULT SOCIAL CARE,Transfer Payments,EEEE SOCIAL CARE & LEARNING,EEE6 ADULT SOCIAL CARE
http://www.havering.gov.uk,London Borough of Havering,06/12/2010,785990002,675,**REDACTED PERSONAL DATA**,217076,ADULT SOCIAL CARE,Transfer Payments,EEEE SOCIAL CARE & LEARNING,EEE6 ADULT SOCIAL CARE
http://www.havering.gov.uk,London Borough of Havering,06/12/2010,785995002,720,**REDACTED PERSONAL DATA**,235430,ADULT SOCIAL CARE,Transfer Payments,EEEE SOCIAL CARE & LEARNING,EEE6 ADULT SOCIAL CARE
http://www.havering.gov.uk,London Borough of Havering,06/12/2010,785995003,-158,**REDACTED PERSONAL DATA**,235430,ADULT SOCIAL CARE,Income,EEEE SOCIAL CARE & LEARNING,EEE6 ADULT SOCIAL CARE
http://www.havering.gov.uk,London Borough of Havering,06/12/2010,785998002,560,HELLABYS LTD ,109369,ASSET MANAGEMENT,Supplies and Services,FFFF FINANCE & COMMERCE,FFF7 ASSET MANAGEMENT
http://www.havering.gov.uk,London Borough of Havering,06/12/2010,785999002,2036,**REDACTED PERSONAL DATA**,237282,ADULT SOCIAL CARE,Transfer Payments,EEEE SOCIAL CARE & LEARNING,EEE6 ADULT SOCIAL CARE
http://www.havering.gov.uk,London Borough of Havering,06/12/2010,786000002,1769,**REDACTED PERSONAL DATA**,215563,ADULT SOCIAL CARE,Transfer Payments,EEEE SOCIAL CARE & LEARNING,EEE6 ADULT SOCIAL CARE
http://www.havering.gov.uk,London Borough of Havering,06/12/2010,786002002,585,**REDACTED PERSONAL DATA**,233877,ADULT SOCIAL CARE,Transfer Payments,EEEE SOCIAL CARE & LEARNING,EEE6 ADULT SOCIAL CARE
http://www.havering.gov.uk,London Borough of Havering,06/12/2010,786004002,1257.5,**REDACTED PERSONAL DATA**,232352,ADULT SOCIAL CARE,Transfer Payments,EEEE SOCIAL CARE & LEARNING,EEE6 ADULT SOCIAL CARE
http://www.havering.gov.uk,London Borough of Havering,06/12/2010,786005002,1360,HELLABYS LTD ,109369,ASSET MANAGEMENT,Supplies and Services,FFFF FINANCE & COMMERCE,FFF7 ASSET MANAGEMENT
http://www.havering.gov.uk,London Borough of Havering,06/12/2010,786006002,769.23,**REDACTED PERSONAL DATA**,207606,ADULT SOCIAL CARE,Transfer Payments,EEEE SOCIAL CARE & LEARNING,EEE6 ADULT SOCIAL CARE
http://www.havering.gov.uk,London Borough of Havering,06/12/2010,786006003,-15.76,**REDACTED PERSONAL DATA**,207606,ADULT SOCIAL CARE,Income,EEEE SOCIAL CARE & LEARNING,EEE6 ADULT SOCIAL CARE
http://www.havering.gov.uk,London Borough of Havering,06/12/2010,786007002,915,HELLABYS LTD ,109369,ASSET MANAGEMENT,Supplies and Services,FFFF FINANCE & COMMERCE,FFF7 ASSET MANAGEMENT
http://www.havering.gov.uk,London Borough of Havering,06/12/2010,786009002,2314.68,**REDACTED PERSONAL DATA**,235665,ADULT SOCIAL CARE,Transfer Payments,EEEE SOCIAL CARE & LEARNING,EEE6 ADULT SOCIAL CARE
http://www.havering.gov.uk,London Borough of Havering,06/12/2010,786012002,1969.31,**REDACTED PERSONAL DATA**,224729,ADULT SOCIAL CARE,Transfer Payments,EEEE SOCIAL CARE & LEARNING,EEE6 ADULT SOCIAL CARE
http://www.havering.gov.uk,London Borough of Havering,06/12/2010,786013002,585,**REDACTED PERSONAL DATA**,233857,ADULT SOCIAL CARE,Transfer Payments,EEEE SOCIAL CARE & LEARNING,EEE6 ADULT SOCIAL CARE
http://www.havering.gov.uk,London Borough of Havering,06/12/2010,786016002,2025,**REDACTED PERSONAL DATA**,235667,ADULT SOCIAL CARE,Transfer Payments,EEEE SOCIAL CARE & LEARNING,EEE6 ADULT SOCIAL CARE
http://www.havering.gov.uk,London Borough of Havering,06/12/2010,786018002,715.31,**REDACTED PERSONAL DATA**,236561,ADULT SOCIAL CARE,Transfer Payments,EEEE SOCIAL CARE & LEARNING,EEE6 ADULT SOCIAL CARE
http://www.havering.gov.uk,London Borough of Havering,06/12/2010,786023002,2792.51,**REDACTED PERSONAL DATA**,221362,ADULT SOCIAL CARE,Transfer Payments,EEEE SOCIAL CARE & LEARNING,EEE6 ADULT SOCIAL CARE
http://www.havering.gov.uk,London Borough of Havering,06/12/2010,786026002,2214.24,**REDACTED PERSONAL DATA**,218303,ADULT SOCIAL CARE,Transfer Payments,EEEE SOCIAL CARE & LEARNING,EEE6 ADULT SOCIAL CARE
http://www.havering.gov.uk,London Borough of Havering,06/12/2010,786027002,608.15,**REDACTED PERSONAL DATA**,226640,ADULT SOCIAL CARE,Transfer Payments,EEEE SOCIAL CARE & LEARNING,EEE6 ADULT SOCIAL CARE
http://www.havering.gov.uk,London Borough of Havering,06/12/2010,786027003,-42.16,**REDACTED PERSONAL DATA**,226640,ADULT SOCIAL CARE,Income,EEEE SOCIAL CARE & LEARNING,EEE6 ADULT SOCIAL CARE
http://www.havering.gov.uk,London Borough of Havering,06/12/2010,786049002,3912.15,VIGLEN LTD ,231672,CONTROL & SUSPENSE,Non-Controllable,FFFF FINANCE & COMMERCE,FFF6 BUSINESS SYSTEMS
http://www.havering.gov.uk,London Borough of Havering,06/12/2010,786053002,359880,ABBS CROSS SCHOOL ,125695,EDUCATION,Non-Controllable,No Heirarchy,No Heirarchy
http://www.havering.gov.uk,London Borough of Havering,06/12/2010,786054002,511485,FRANCES BARDSLEY SCHOOL FOR GIRLS ,125698,EDUCATION,Non-Controllable,No Heirarchy,No Heirarchy
http://www.havering.gov.uk,London Borough of Havering,06/12/2010,786088002,1419.04,**REDACTED PERSONAL DATA**,218228,ADULT SOCIAL CARE,Transfer Payments,EEEE SOCIAL CARE & LEARNING,EEE6 ADULT SOCIAL CARE
http://www.havering.gov.uk,London Borough of Havering,06/12/2010,786091002,939.85,**REDACTED PERSONAL DATA**,233104,ADULT SOCIAL CARE,Transfer Payments,EEEE SOCIAL CARE & LEARNING,EEE6 ADULT SOCIAL CARE
http://www.havering.gov.uk,London Borough of Havering,06/12/2010,786091003,-72.16,**REDACTED PERSONAL DATA**,233104,ADULT SOCIAL CARE,Income,EEEE SOCIAL CARE & LEARNING,EEE6 ADULT SOCIAL CARE
http://www.havering.gov.uk,London Borough of Havering,06/12/2010,786092002,1080,**REDACTED PERSONAL DATA**,234752,ADULT SOCIAL CARE,Transfer Payments,EEEE SOCIAL CARE & LEARNING,EEE6 ADULT SOCIAL CARE
http://www.havering.gov.uk,London Borough of Havering,06/12/2010,786092003,-74.68,**REDACTED PERSONAL DATA**,234752,ADULT SOCIAL CARE,Income,EEEE SOCIAL CARE & LEARNING,EEE6 ADULT SOCIAL CARE
http://www.havering.gov.uk,London Borough of Havering,06/12/2010,786093002,866.25,**REDACTED PERSONAL DATA**,217989,ADULT SOCIAL CARE,Transfer Payments,EEEE SOCIAL CARE & LEARNING,EEE6 ADULT SOCIAL CARE
http://www.havering.gov.uk,London Borough of Havering,06/12/2010,786094002,1130,**REDACTED PERSONAL DATA**,227579,ADULT SOCIAL CARE,Transfer Payments,EEEE SOCIAL CARE & LEARNING,EEE6 ADULT SOCIAL CARE
http://www.havering.gov.uk,London Borough of Havering,06/12/2010,786094003,-191.32,**REDACTED PERSONAL DATA**,227579,ADULT SOCIAL CARE,Income,EEEE SOCIAL CARE & LEARNING,EEE6 ADULT SOCIAL CARE
http://www.havering.gov.uk,London Borough of Havering,06/12/2010,786107002,676.99,ARVAL PHH ,144430,ASSET MANAGEMENT,Supplies and Services,FFFF FINANCE & COMMERCE,FFF7 ASSET MANAGEMENT
http://www.havering.gov.uk,London Borough of Havering,07/12/2010,786148001,1202.6,**REDACTED PERSONAL DATA**,147489,CHILDREN & YOUNG PEOPLE,Supplies and Services,EEEE SOCIAL CARE & LEARNING,EEE3 CHILDREN & YOUNG PEOPLE
http://www.havering.gov.uk,London Borough of Havering,07/12/2010,786148002,1202.6,**REDACTED PERSONAL DATA**,147489,CHILDREN & YOUNG PEOPLE,Supplies and Services,EEEE SOCIAL CARE & LEARNING,EEE3 CHILDREN & YOUNG PEOPLE
http://www.havering.gov.uk,London Borough of Havering,07/12/2010,786148003,1202.6,**REDACTED PERSONAL DATA**,147489,CHILDREN & YOUNG PEOPLE,Supplies and Services,EEEE SOCIAL CARE & LEARNING,EEE3 CHILDREN & YOUNG PEOPLE
http://www.havering.gov.uk,London Borough of Havering,07/12/2010,786148004,1288.64,**REDACTED PERSONAL DATA**,147489,CHILDREN & YOUNG PEOPLE,Supplies and Services,EEEE SOCIAL CARE & LEARNING,EEE3 CHILDREN & YOUNG PEOPLE
http://www.havering.gov.uk,London Borough of Havering,07/12/2010,786148005,1288.64,**REDACTED PERSONAL DATA**,147489,CHILDREN & YOUNG PEOPLE,Supplies and Services,EEEE SOCIAL CARE & LEARNING,EEE3 CHILDREN & YOUNG PEOPLE
http://www.havering.gov.uk,London Borough of Havering,07/12/2010,786149001,1202.6,**REDACTED PERSONAL DATA**,152932,CHILDREN & YOUNG PEOPLE,Supplies and Services,EEEE SOCIAL CARE & LEARNING,EEE3 CHILDREN & YOUNG PEOPLE
http://www.havering.gov.uk,London Borough of Havering,07/12/2010,786149002,1202.6,**REDACTED PERSONAL DATA**,152932,CHILDREN & YOUNG PEOPLE,Supplies and Services,EEEE SOCIAL CARE & LEARNING,EEE3 CHILDREN & YOUNG PEOPLE
http://www.havering.gov.uk,London Borough of Havering,07/12/2010,786149003,1288.64,**REDACTED PERSONAL DATA**,152932,CHILDREN & YOUNG PEOPLE,Supplies and Services,EEEE SOCIAL CARE & LEARNING,EEE3 CHILDREN & YOUNG PEOPLE
http://www.havering.gov.uk,London Borough of Havering,07/12/2010,786149004,1796.2,**REDACTED PERSONAL DATA**,152932,CHILDREN & YOUNG PEOPLE,Supplies and Services,EEEE SOCIAL CARE & LEARNING,EEE3 CHILDREN & YOUNG PEOPLE
http://www.havering.gov.uk,London Borough of Havering,07/12/2010,786150001,1202.6,**REDACTED PERSONAL DATA**,112838,CHILDREN & YOUNG PEOPLE,Supplies and Services,EEEE SOCIAL CARE & LEARNING,EEE3 CHILDREN & YOUNG PEOPLE
http://www.havering.gov.uk,London Borough of Havering,07/12/2010,786150002,1288.64,**REDACTED PERSONAL DATA**,112838,CHILDREN & YOUNG PEOPLE,Supplies and Services,EEEE SOCIAL CARE & LEARNING,EEE3 CHILDREN & YOUNG PEOPLE
http://www.havering.gov.uk,London Borough of Havering,07/12/2010,786150003,1288.64,**REDACTED PERSONAL DATA**,112838,CHILDREN & YOUNG PEOPLE,Supplies and Services,EEEE SOCIAL CARE & LEARNING,EEE3 CHILDREN & YOUNG PEOPLE
http://www.havering.gov.uk,London Borough of Havering,07/12/2010,786150004,1643.12,**REDACTED PERSONAL DATA**,112838,CHILDREN & YOUNG PEOPLE,Supplies and Services,EEEE SOCIAL CARE & LEARNING,EEE3 CHILDREN & YOUNG PEOPLE
http://www.havering.gov.uk,London Borough of Havering,07/12/2010,786151001,1356.72,**REDACTED PERSONAL DATA**,221769,CHILDREN & YOUNG PEOPLE,Supplies and Services,EEEE SOCIAL CARE & LEARNING,EEE3 CHILDREN & YOUNG PEOPLE
http://www.havering.gov.uk,London Borough of Havering,07/12/2010,786151002,1816,**REDACTED PERSONAL DATA**,221769,CHILDREN & YOUNG PEOPLE,Supplies and Services,EEEE SOCIAL CARE & LEARNING,EEE3 CHILDREN & YOUNG PEOPLE
http://www.havering.gov.uk,London Borough of Havering,07/12/2010,786151003,1816,**REDACTED PERSONAL DATA**,221769,CHILDREN & YOUNG PEOPLE,Supplies and Services,EEEE SOCIAL CARE & LEARNING,EEE3 CHILDREN & YOUNG PEOPLE
http://www.havering.gov.uk,London Borough of Havering,07/12/2010,786152001,1456.72,**REDACTED PERSONAL DATA**,125979,CHILDREN & YOUNG PEOPLE,Supplies and Services,EEEE SOCIAL CARE & LEARNING,EEE3 CHILDREN & YOUNG PEOPLE
http://www.havering.gov.uk,London Borough of Havering,07/12/2010,786152002,1456.72,**REDACTED PERSONAL DATA**,125979,CHILDREN & YOUNG PEOPLE,Supplies and Services,EEEE SOCIAL CARE & LEARNING,EEE3 CHILDREN & YOUNG PEOPLE
http://www.havering.gov.uk,London Borough of Havering,07/12/2010,786152003,2058.48,**REDACTED PERSONAL DATA**,125979,CHILDREN & YOUNG PEOPLE,Supplies and Services,EEEE SOCIAL CARE & LEARNING,EEE3 CHILDREN & YOUNG PEOPLE
http://www.havering.gov.uk,London Borough of Havering,07/12/2010,786153001,753.68,**REDACTED PERSONAL DATA**,155898,CHILDREN & YOUNG PEOPLE,Supplies and Services,EEEE SOCIAL CARE & LEARNING,EEE3 CHILDREN & YOUNG PEOPLE
http://www.havering.gov.uk,London Borough of Havering,07/12/2010,786153002,753.68,**REDACTED PERSONAL DATA**,155898,CHILDREN & YOUNG PEOPLE,Supplies and Services,EEEE SOCIAL CARE & LEARNING,EEE3 CHILDREN & YOUNG PEOPLE
http://www.havering.gov.uk,London Borough of Havering,07/12/2010,786153003,932.4,**REDACTED PERSONAL DATA**,155898,CHILDREN & YOUNG PEOPLE,Supplies and Services,EEEE SOCIAL CARE & LEARNING,EEE3 CHILDREN & YOUNG PEOPLE
http://www.havering.gov.uk,London Borough of Havering,07/12/2010,786153004,1202.6,**REDACTED PERSONAL DATA**,155898,CHILDREN & YOUNG PEOPLE,Supplies and Services,EEEE SOCIAL CARE & LEARNING,EEE3 CHILDREN & YOUNG PEOPLE
http://www.havering.gov.uk,London Borough of Havering,07/12/2010,786153005,1202.6,**REDACTED PERSONAL DATA**,155898,CHILDREN & YOUNG PEOPLE,Supplies and Services,EEEE SOCIAL CARE & LEARNING,EEE3 CHILDREN & YOUNG PEOPLE
http://www.havering.gov.uk,London Borough of Havering,07/12/2010,786154001,1356.72,**REDACTED PERSONAL DATA**,11986,CHILDREN & YOUNG PEOPLE,Supplies and Services,EEEE SOCIAL CARE & LEARNING,EEE3 CHILDREN & YOUNG PEOPLE
http://www.havering.gov.uk,London Borough of Havering,07/12/2010,786154002,1415.48,**REDACTED PERSONAL DATA**,11986,CHILDREN & YOUNG PEOPLE,Supplies and Services,EEEE SOCIAL CARE & LEARNING,EEE3 CHILDREN & YOUNG PEOPLE
http://www.havering.gov.uk,London Borough of Havering,07/12/2010,786154003,1543.12,**REDACTED PERSONAL DATA**,11986,CHILDREN & YOUNG PEOPLE,Supplies and Services,EEEE SOCIAL CARE & LEARNING,EEE3 CHILDREN & YOUNG PEOPLE
http://www.havering.gov.uk,London Borough of Havering,07/12/2010,786155001,1288.64,**REDACTED PERSONAL DATA**,211685,CHILDREN & YOUNG PEOPLE,Supplies and Services,EEEE SOCIAL CARE & LEARNING,EEE3 CHILDREN & YOUNG PEOPLE
http://www.havering.gov.uk,London Borough of Havering,07/12/2010,786155002,1456.72,**REDACTED PERSONAL DATA**,211685,CHILDREN & YOUNG PEOPLE,Supplies and Services,EEEE SOCIAL CARE & LEARNING,EEE3 CHILDREN & YOUNG PEOPLE
http://www.havering.gov.uk,London Borough of Havering,07/12/2010,786155003,1456.72,**REDACTED PERSONAL DATA**,211685,CHILDREN & YOUNG PEOPLE,Supplies and Services,EEEE SOCIAL CARE & LEARNING,EEE3 CHILDREN & YOUNG PEOPLE
http://www.havering.gov.uk,London Borough of Havering,07/12/2010,786156001,1188.64,**REDACTED PERSONAL DATA**,225993,CHILDREN & YOUNG PEOPLE,Supplies and Services,EEEE SOCIAL CARE & LEARNING,EEE3 CHILDREN & YOUNG PEOPLE
http://www.havering.gov.uk,London Borough of Havering,07/12/2010,786156002,1356.72,**REDACTED PERSONAL DATA**,225993,CHILDREN & YOUNG PEOPLE,Supplies and Services,EEEE SOCIAL CARE & LEARNING,EEE3 CHILDREN & YOUNG PEOPLE
http://www.havering.gov.uk,London Borough of Havering,07/12/2010,786156003,1643.12,**REDACTED PERSONAL DATA**,225993,CHILDREN & YOUNG PEOPLE,Supplies and Services,EEEE SOCIAL CARE & LEARNING,EEE3 CHILDREN & YOUNG PEOPLE
http://www.havering.gov.uk,London Borough of Havering,07/12/2010,786157001,1202.6,**REDACTED PERSONAL DATA**,100004,CHILDREN & YOUNG PEOPLE,Supplies and Services,EEEE SOCIAL CARE & LEARNING,EEE3 CHILDREN & YOUNG PEOPLE
http://www.havering.gov.uk,London Borough of Havering,07/12/2010,786157002,1288.64,**REDACTED PERSONAL DATA**,100004,CHILDREN & YOUNG PEOPLE,Supplies and Services,EEEE SOCIAL CARE & LEARNING,EEE3 CHILDREN & YOUNG PEOPLE
http://www.havering.gov.uk,London Borough of Havering,07/12/2010,786157003,1288.64,**REDACTED PERSONAL DATA**,100004,CHILDREN & YOUNG PEOPLE,Supplies and Services,EEEE SOCIAL CARE & LEARNING,EEE3 CHILDREN & YOUNG PEOPLE
http://www.havering.gov.uk,London Borough of Havering,07/12/2010,786158001,988,**REDACTED PERSONAL DATA**,12063,CHILDREN & YOUNG PEOPLE,Supplies and Services,EEEE SOCIAL CARE & LEARNING,EEE3 CHILDREN & YOUNG PEOPLE
http://www.havering.gov.uk,London Borough of Havering,07/12/2010,786158002,1288.64,**REDACTED PERSONAL DATA**,12063,CHILDREN & YOUNG PEOPLE,Supplies and Services,EEEE SOCIAL CARE & LEARNING,EEE3 CHILDREN & YOUNG PEOPLE
http://www.havering.gov.uk,London Borough of Havering,07/12/2010,786158003,1456.72,**REDACTED PERSONAL DATA**,12063,CHILDREN & YOUNG PEOPLE,Supplies and Services,EEEE SOCIAL CARE & LEARNING,EEE3 CHILDREN & YOUNG PEOPLE
http://www.havering.gov.uk,London Borough of Havering,07/12/2010,786159001,1102.6,**REDACTED PERSONAL DATA**,230970,CHILDREN & YOUNG PEOPLE,Supplies and Services,EEEE SOCIAL CARE & LEARNING,EEE3 CHILDREN & YOUNG PEOPLE
http://www.havering.gov.uk,London Borough of Havering,07/12/2010,786159002,1188.64,**REDACTED PERSONAL DATA**,230970,CHILDREN & YOUNG PEOPLE,Supplies and Services,EEEE SOCIAL CARE & LEARNING,EEE3 CHILDREN & YOUNG PEOPLE
http://www.havering.gov.uk,London Borough of Havering,07/12/2010,786159003,1188.64,**REDACTED PERSONAL DATA**,230970,CHILDREN & YOUNG PEOPLE,Supplies and Services,EEEE SOCIAL CARE & LEARNING,EEE3 CHILDREN & YOUNG PEOPLE
http://www.havering.gov.uk,London Borough of Havering,07/12/2010,786160001,1102.6,**REDACTED PERSONAL DATA**,223886,CHILDREN & YOUNG PEOPLE,Supplies and Services,EEEE SOCIAL CARE & LEARNING,EEE3 CHILDREN & YOUNG PEOPLE
http://www.havering.gov.uk,London Borough of Havering,07/12/2010,786160002,1102.6,**REDACTED PERSONAL DATA**,223886,CHILDREN & YOUNG PEOPLE,Supplies and Services,EEEE SOCIAL CARE & LEARNING,EEE3 CHILDREN & YOUNG PEOPLE
http://www.havering.gov.uk,London Borough of Havering,07/12/2010,786160003,1188.64,**REDACTED PERSONAL DATA**,223886,CHILDREN & YOUNG PEOPLE,Supplies and Services,EEEE SOCIAL CARE & LEARNING,EEE3 CHILDREN & YOUNG PEOPLE
http://www.havering.gov.uk,London Borough of Havering,07/12/2010,786161001,419.28,**REDACTED PERSONAL DATA**,133466,CHILDREN & YOUNG PEOPLE,Supplies and Services,EEEE SOCIAL CARE & LEARNING,EEE3 CHILDREN & YOUNG PEOPLE
http://www.havering.gov.uk,London Borough of Havering,07/12/2010,786161002,515.28,**REDACTED PERSONAL DATA**,133466,CHILDREN & YOUNG PEOPLE,Supplies and Services,EEEE SOCIAL CARE & LEARNING,EEE3 CHILDREN & YOUNG PEOPLE
http://www.havering.gov.uk,London Borough of Havering,07/12/2010,786161003,1202.6,**REDACTED PERSONAL DATA**,133466,CHILDREN & YOUNG PEOPLE,Supplies and Services,EEEE SOCIAL CARE & LEARNING,EEE3 CHILDREN & YOUNG PEOPLE
http://www.havering.gov.uk,London Borough of Havering,07/12/2010,786161004,1202.6,**REDACTED PERSONAL DATA**,133466,CHILDREN & YOUNG PEOPLE,Supplies and Services,EEEE SOCIAL CARE & LEARNING,EEE3 CHILDREN & YOUNG PEOPLE
http://www.havering.gov.uk,London Borough of Havering,07/12/2010,786162001,1456.72,**REDACTED PERSONAL DATA**,124578,CHILDREN & YOUNG PEOPLE,Supplies and Services,EEEE SOCIAL CARE & LEARNING,EEE3 CHILDREN & YOUNG PEOPLE
http://www.havering.gov.uk,London Borough of Havering,07/12/2010,786162002,1456.72,**REDACTED PERSONAL DATA**,124578,CHILDREN & YOUNG PEOPLE,Supplies and Services,EEEE SOCIAL CARE & LEARNING,EEE3 CHILDREN & YOUNG PEOPLE
http://www.havering.gov.uk,London Borough of Havering,07/12/2010,786163001,1356.72,**REDACTED PERSONAL DATA**,19127,CHILDREN & YOUNG PEOPLE,Supplies and Services,EEEE SOCIAL CARE & LEARNING,EEE3 CHILDREN & YOUNG PEOPLE
http://www.havering.gov.uk,London Borough of Havering,07/12/2010,786163002,1543.12,**REDACTED PERSONAL DATA**,19127,CHILDREN & YOUNG PEOPLE,Supplies and Services,EEEE SOCIAL CARE & LEARNING,EEE3 CHILDREN & YOUNG PEOPLE
http://www.havering.gov.uk,London Borough of Havering,07/12/2010,786164001,1057.68,**REDACTED PERSONAL DATA**,133559,CHILDREN & YOUNG PEOPLE,Supplies and Services,EEEE SOCIAL CARE & LEARNING,EEE3 CHILDREN & YOUNG PEOPLE
http://www.havering.gov.uk,London Borough of Havering,07/12/2010,786164002,1643.12,**REDACTED PERSONAL DATA**,133559,CHILDREN & YOUNG PEOPLE,Supplies and Services,EEEE SOCIAL CARE & LEARNING,EEE3 CHILDREN & YOUNG PEOPLE
http://www.havering.gov.uk,London Borough of Havering,07/12/2010,786165001,833.68,**REDACTED PERSONAL DATA**,213749,CHILDREN & YOUNG PEOPLE,Supplies and Services,EEEE SOCIAL CARE & LEARNING,EEE3 CHILDREN & YOUNG PEOPLE
http://www.havering.gov.uk,London Borough of Havering,07/12/2010,786165002,833.68,**REDACTED PERSONAL DATA**,213749,CHILDREN & YOUNG PEOPLE,Supplies and Services,EEEE SOCIAL CARE & LEARNING,EEE3 CHILDREN & YOUNG PEOPLE
http://www.havering.gov.uk,London Borough of Havering,07/12/2010,786165003,1012.4,**REDACTED PERSONAL DATA**,213749,CHILDREN & YOUNG PEOPLE,Supplies and Services,EEEE SOCIAL CARE & LEARNING,EEE3 CHILDREN & YOUNG PEOPLE
http://www.havering.gov.uk,London Borough of Havering,07/12/2010,786166001,1288.64,**REDACTED PERSONAL DATA**,161152,CHILDREN & YOUNG PEOPLE,Supplies and Services,EEEE SOCIAL CARE & LEARNING,EEE3 CHILDREN & YOUNG PEOPLE
http://www.havering.gov.uk,London Borough of Havering,07/12/2010,786166002,1288.64,**REDACTED PERSONAL DATA**,161152,CHILDREN & YOUNG PEOPLE,Supplies and Services,EEEE SOCIAL CARE & LEARNING,EEE3 CHILDREN & YOUNG PEOPLE
http://www.havering.gov.uk,London Borough of Havering,07/12/2010,786167001,740,**REDACTED PERSONAL DATA**,154904,CHILDREN & YOUNG PEOPLE,Supplies and Services,EEEE SOCIAL CARE & LEARNING,EEE3 CHILDREN & YOUNG PEOPLE
http://www.havering.gov.uk,London Borough of Havering,07/12/2010,786167002,740,**REDACTED PERSONAL DATA**,154904,CHILDREN & YOUNG PEOPLE,Supplies and Services,EEEE SOCIAL CARE & LEARNING,EEE3 CHILDREN & YOUNG PEOPLE
http://www.havering.gov.uk,London Borough of Havering,07/12/2010,786167003,988,**REDACTED PERSONAL DATA**,154904,CHILDREN & YOUNG PEOPLE,Supplies and Services,EEEE SOCIAL CARE & LEARNING,EEE3 CHILDREN & YOUNG PEOPLE
http://www.havering.gov.uk,London Borough of Havering,07/12/2010,786168001,587.24,**REDACTED PERSONAL DATA**,236657,CHILDREN & YOUNG PEOPLE,Supplies and Services,EEEE SOCIAL CARE & LEARNING,EEE3 CHILDREN & YOUNG PEOPLE
http://www.havering.gov.uk,London Borough of Havering,07/12/2010,786168002,587.24,**REDACTED PERSONAL DATA**,236657,CHILDREN & YOUNG PEOPLE,Supplies and Services,EEEE SOCIAL CARE & LEARNING,EEE3 CHILDREN & YOUNG PEOPLE
http://www.havering.gov.uk,London Borough of Havering,07/12/2010,786168003,587.24,**REDACTED PERSONAL DATA**,236657,CHILDREN & YOUNG PEOPLE,Supplies and Services,EEEE SOCIAL CARE & LEARNING,EEE3 CHILDREN & YOUNG PEOPLE
http://www.havering.gov.uk,London Borough of Havering,07/12/2010,786168004,669.44,**REDACTED PERSONAL DATA**,236657,CHILDREN & YOUNG PEOPLE,Supplies and Services,EEEE SOCIAL CARE & LEARNING,EEE3 CHILDREN & YOUNG PEOPLE
http://www.havering.gov.uk,London Borough of Havering,07/12/2010,786169001,1188.64,**REDACTED PERSONAL DATA**,200913,CHILDREN & YOUNG PEOPLE,Supplies and Services,EEEE SOCIAL CARE & LEARNING,EEE3 CHILDREN & YOUNG PEOPLE
http://www.havering.gov.uk,London Borough of Havering,07/12/2010,786169002,1188.64,**REDACTED PERSONAL DATA**,200913,CHILDREN & YOUNG PEOPLE,Supplies and Services,EEEE SOCIAL CARE & LEARNING,EEE3 CHILDREN & YOUNG PEOPLE
http://www.havering.gov.uk,London Borough of Havering,07/12/2010,786170001,1088.64,**REDACTED PERSONAL DATA**,234842,CHILDREN & YOUNG PEOPLE,Supplies and Services,EEEE SOCIAL CARE & LEARNING,EEE3 CHILDREN & YOUNG PEOPLE
http://www.havering.gov.uk,London Borough of Havering,07/12/2010,786170002,1256.72,**REDACTED PERSONAL DATA**,234842,CHILDREN & YOUNG PEOPLE,Supplies and Services,EEEE SOCIAL CARE & LEARNING,EEE3 CHILDREN & YOUNG PEOPLE
http://www.havering.gov.uk,London Borough of Havering,07/12/2010,786171001,1102.6,**REDACTED PERSONAL DATA**,230420,CHILDREN & YOUNG PEOPLE,Supplies and Services,EEEE SOCIAL CARE & LEARNING,EEE3 CHILDREN & YOUNG PEOPLE
http://www.havering.gov.uk,London Borough of Havering,07/12/2010,786171002,1188.64,**REDACTED PERSONAL DATA**,230420,CHILDREN & YOUNG PEOPLE,Supplies and Services,EEEE SOCIAL CARE & LEARNING,EEE3 CHILDREN & YOUNG PEOPLE
http://www.havering.gov.uk,London Borough of Havering,07/12/2010,786172001,589.44,**REDACTED PERSONAL DATA**,138483,CHILDREN & YOUNG PEOPLE,Supplies and Services,EEEE SOCIAL CARE & LEARNING,EEE3 CHILDREN & YOUNG PEOPLE
http://www.havering.gov.uk,London Borough of Havering,07/12/2010,786172002,753.68,**REDACTED PERSONAL DATA**,138483,CHILDREN & YOUNG PEOPLE,Supplies and Services,EEEE SOCIAL CARE & LEARNING,EEE3 CHILDREN & YOUNG PEOPLE
http://www.havering.gov.uk,London Borough of Havering,07/12/2010,786172003,932.4,**REDACTED PERSONAL DATA**,138483,CHILDREN & YOUNG PEOPLE,Supplies and Services,EEEE SOCIAL CARE & LEARNING,EEE3 CHILDREN & YOUNG PEOPLE
http://www.havering.gov.uk,London Borough of Havering,07/12/2010,786173001,1102.6,**REDACTED PERSONAL DATA**,156893,CHILDREN & YOUNG PEOPLE,Supplies and Services,EEEE SOCIAL CARE & LEARNING,EEE3 CHILDREN & YOUNG PEOPLE
http://www.havering.gov.uk,London Borough of Havering,07/12/2010,786173002,1102.6,**REDACTED PERSONAL DATA**,156893,CHILDREN & YOUNG PEOPLE,Supplies and Services,EEEE SOCIAL CARE & LEARNING,EEE3 CHILDREN & YOUNG PEOPLE
http://www.havering.gov.uk,London Borough of Havering,07/12/2010,786174001,1102.6,**REDACTED PERSONAL DATA**,228574,CHILDREN & YOUNG PEOPLE,Supplies and Services,EEEE SOCIAL CARE & LEARNING,EEE3 CHILDREN & YOUNG PEOPLE
http://www.havering.gov.uk,London Borough of Havering,07/12/2010,786174002,1102.6,**REDACTED PERSONAL DATA**,228574,CHILDREN & YOUNG PEOPLE,Supplies and Services,EEEE SOCIAL CARE & LEARNING,EEE3 CHILDREN & YOUNG PEOPLE
http://www.havering.gov.uk,London Borough of Havering,07/12/2010,786175001,1102.6,**REDACTED PERSONAL DATA**,226292,CHILDREN & YOUNG PEOPLE,Supplies and Services,EEEE SOCIAL CARE & LEARNING,EEE3 CHILDREN & YOUNG PEOPLE
http://www.havering.gov.uk,London Borough of Havering,07/12/2010,786175002,1102.6,**REDACTED PERSONAL DATA**,226292,CHILDREN & YOUNG PEOPLE,Supplies and Services,EEEE SOCIAL CARE & LEARNING,EEE3 CHILDREN & YOUNG PEOPLE
http://www.havering.gov.uk,London Borough of Havering,07/12/2010,786176001,477.16,**REDACTED PERSONAL DATA**,215426,CHILDREN & YOUNG PEOPLE,Supplies and Services,EEEE SOCIAL CARE & LEARNING,EEE3 CHILDREN & YOUNG PEOPLE
http://www.havering.gov.uk,London Borough of Havering,07/12/2010,786176002,641.4,**REDACTED PERSONAL DATA**,215426,CHILDREN & YOUNG PEOPLE,Supplies and Services,EEEE SOCIAL CARE & LEARNING,EEE3 CHILDREN & YOUNG PEOPLE
http://www.havering.gov.uk,London Borough of Havering,07/12/2010,786176003,820.12,**REDACTED PERSONAL DATA**,215426,CHILDREN & YOUNG PEOPLE,Supplies and Services,EEEE SOCIAL CARE & LEARNING,EEE3 CHILDREN & YOUNG PEOPLE
http://www.havering.gov.uk,London Borough of Havering,07/12/2010,786177001,780.92,**REDACTED PERSONAL DATA**,143176,CHILDREN & YOUNG PEOPLE,Supplies and Services,EEEE SOCIAL CARE & LEARNING,EEE3 CHILDREN & YOUNG PEOPLE
http://www.havering.gov.uk,London Borough of Havering,07/12/2010,786177002,1012.4,**REDACTED PERSONAL DATA**,143176,CHILDREN & YOUNG PEOPLE,Supplies and Services,EEEE SOCIAL CARE & LEARNING,EEE3 CHILDREN & YOUNG PEOPLE
http://www.havering.gov.uk,London Borough of Havering,07/12/2010,786178001,589.44,**REDACTED PERSONAL DATA**,231713,CHILDREN & YOUNG PEOPLE,Supplies and Services,EEEE SOCIAL CARE & LEARNING,EEE3 CHILDREN & YOUNG PEOPLE
http://www.havering.gov.uk,London Borough of Havering,07/12/2010,786178002,589.44,**REDACTED PERSONAL DATA**,231713,CHILDREN & YOUNG PEOPLE,Supplies and Services,EEEE SOCIAL CARE & LEARNING,EEE3 CHILDREN & YOUNG PEOPLE
http://www.havering.gov.uk,London Borough of Havering,07/12/2010,786178003,589.44,**REDACTED PERSONAL DATA**,231713,CHILDREN & YOUNG PEOPLE,Supplies and Services,EEEE SOCIAL CARE & LEARNING,EEE3 CHILDREN & YOUNG PEOPLE
http://www.havering.gov.uk,London Borough of Havering,07/12/2010,786179001,1643.12,**REDACTED PERSONAL DATA**,26715,CHILDREN & YOUNG PEOPLE,Supplies and Services,EEEE SOCIAL CARE & LEARNING,EEE3 CHILDREN & YOUNG PEOPLE
http://www.havering.gov.uk,London Borough of Havering,07/12/2010,786180001,1643.12,**REDACTED PERSONAL DATA**,231558,CHILDREN & YOUNG PEOPLE,Supplies and Services,EEEE SOCIAL CARE & LEARNING,EEE3 CHILDREN & YOUNG PEOPLE
http://www.havering.gov.uk,London Borough of Havering,07/12/2010,786181001,780.92,**REDACTED PERSONAL DATA**,215712,CHILDREN & YOUNG PEOPLE,Premises-Related Expenditure,EEEE SOCIAL CARE & LEARNING,EEE3 CHILDREN & YOUNG PEOPLE
http://www.havering.gov.uk,London Borough of Havering,07/12/2010,786181002,780.92,**REDACTED PERSONAL DATA**,215712,CHILDREN & YOUNG PEOPLE,Premises-Related Expenditure,EEEE SOCIAL CARE & LEARNING,EEE3 CHILDREN & YOUNG PEOPLE
http://www.havering.gov.uk,London Borough of Havering,07/12/2010,786183001,502.44,**REDACTED PERSONAL DATA**,205251,CHILDREN & YOUNG PEOPLE,Supplies and Services,EEEE SOCIAL CARE & LEARNING,EEE3 CHILDREN & YOUNG PEOPLE
http://www.havering.gov.uk,London Borough of Havering,07/12/2010,786183002,502.44,**REDACTED PERSONAL DATA**,205251,CHILDREN & YOUNG PEOPLE,Supplies and Services,EEEE SOCIAL CARE & LEARNING,EEE3 CHILDREN & YOUNG PEOPLE
http://www.havering.gov.uk,London Borough of Havering,07/12/2010,786183003,502.44,**REDACTED PERSONAL DATA**,205251,CHILDREN & YOUNG PEOPLE,Supplies and Services,EEEE SOCIAL CARE & LEARNING,EEE3 CHILDREN & YOUNG PEOPLE
http://www.havering.gov.uk,London Borough of Havering,07/12/2010,786184001,669.44,**REDACTED PERSONAL DATA**,215114,CHILDREN & YOUNG PEOPLE,Supplies and Services,EEEE SOCIAL CARE & LEARNING,EEE3 CHILDREN & YOUNG PEOPLE
http://www.havering.gov.uk,London Borough of Havering,07/12/2010,786184002,833.68,**REDACTED PERSONAL DATA**,215114,CHILDREN & YOUNG PEOPLE,Supplies and Services,EEEE SOCIAL CARE & LEARNING,EEE3 CHILDREN & YOUNG PEOPLE
http://www.havering.gov.uk,London Borough of Havering,07/12/2010,786185001,1496.2,**REDACTED PERSONAL DATA**,235997,CHILDREN & YOUNG PEOPLE,Supplies and Services,EEEE SOCIAL CARE & LEARNING,EEE3 CHILDREN & YOUNG PEOPLE
http://www.havering.gov.uk,London Borough of Havering,07/12/2010,786186001,740,**REDACTED PERSONAL DATA**,143095,CHILDREN & YOUNG PEOPLE,Supplies and Services,EEEE SOCIAL CARE & LEARNING,EEE3 CHILDREN & YOUNG PEOPLE
http://www.havering.gov.uk,London Borough of Havering,07/12/2010,786186002,740,**REDACTED PERSONAL DATA**,143095,CHILDREN & YOUNG PEOPLE,Supplies and Services,EEEE SOCIAL CARE & LEARNING,EEE3 CHILDREN & YOUNG PEOPLE
http://www.havering.gov.uk,London Borough of Havering,07/12/2010,786187001,740,**REDACTED PERSONAL DATA**,130271,CHILDREN & YOUNG PEOPLE,Supplies and Services,EEEE SOCIAL CARE & LEARNING,EEE3 CHILDREN & YOUNG PEOPLE
http://www.havering.gov.uk,London Borough of Havering,07/12/2010,786187002,740,**REDACTED PERSONAL DATA**,130271,CHILDREN & YOUNG PEOPLE,Supplies and Services,EEEE SOCIAL CARE & LEARNING,EEE3 CHILDREN & YOUNG PEOPLE
http://www.havering.gov.uk,London Borough of Havering,07/12/2010,786188001,1456.72,**REDACTED PERSONAL DATA**,229175,CHILDREN & YOUNG PEOPLE,Supplies and Services,EEEE SOCIAL CARE & LEARNING,EEE3 CHILDREN & YOUNG PEOPLE
http://www.havering.gov.uk,London Borough of Havering,07/12/2010,786189001,693.48,**REDACTED PERSONAL DATA**,227842,CHILDREN & YOUNG PEOPLE,Supplies and Services,EEEE SOCIAL CARE & LEARNING,EEE3 CHILDREN & YOUNG PEOPLE
http://www.havering.gov.uk,London Borough of Havering,07/12/2010,786189002,693.48,**REDACTED PERSONAL DATA**,227842,CHILDREN & YOUNG PEOPLE,Supplies and Services,EEEE SOCIAL CARE & LEARNING,EEE3 CHILDREN & YOUNG PEOPLE
http://www.havering.gov.uk,London Borough of Havering,07/12/2010,786190001,1356.72,**REDACTED PERSONAL DATA**,230664,CHILDREN & YOUNG PEOPLE,Supplies and Services,EEEE SOCIAL CARE & LEARNING,EEE3 CHILDREN & YOUNG PEOPLE
http://www.havering.gov.uk,London Borough of Havering,07/12/2010,786191001,1356.72,**REDACTED PERSONAL DATA**,228687,CHILDREN & YOUNG PEOPLE,Supplies and Services,EEEE SOCIAL CARE & LEARNING,EEE3 CHILDREN & YOUNG PEOPLE
http://www.havering.gov.uk,London Borough of Havering,07/12/2010,786192001,1356.72,**REDACTED PERSONAL DATA**,228009,CHILDREN & YOUNG PEOPLE,Supplies and Services,EEEE SOCIAL CARE & LEARNING,EEE3 CHILDREN & YOUNG PEOPLE
http://www.havering.gov.uk,London Borough of Havering,07/12/2010,786193001,669.44,**REDACTED PERSONAL DATA**,227934,CHILDREN & YOUNG PEOPLE,Supplies and Services,EEEE SOCIAL CARE & LEARNING,EEE3 CHILDREN & YOUNG PEOPLE
http://www.havering.gov.uk,London Borough of Havering,07/12/2010,786193002,687.04,**REDACTED PERSONAL DATA**,227934,CHILDREN & YOUNG PEOPLE,Supplies and Services,EEEE SOCIAL CARE & LEARNING,EEE3 CHILDREN & YOUNG PEOPLE
http://www.havering.gov.uk,London Borough of Havering,07/12/2010,786194001,589.44,**REDACTED PERSONAL DATA**,233832,CHILDREN & YOUNG PEOPLE,Supplies and Services,EEEE SOCIAL CARE & LEARNING,EEE3 CHILDREN & YOUNG PEOPLE
http://www.havering.gov.uk,London Borough of Havering,07/12/2010,786194002,753.68,**REDACTED PERSONAL DATA**,233832,CHILDREN & YOUNG PEOPLE,Supplies and Services,EEEE SOCIAL CARE & LEARNING,EEE3 CHILDREN & YOUNG PEOPLE
http://www.havering.gov.uk,London Borough of Havering,07/12/2010,786195001,589.44,**REDACTED PERSONAL DATA**,141617,CHILDREN & YOUNG PEOPLE,Supplies and Services,EEEE SOCIAL CARE & LEARNING,EEE3 CHILDREN & YOUNG PEOPLE
http://www.havering.gov.uk,London Borough of Havering,07/12/2010,786195002,753.68,**REDACTED PERSONAL DATA**,141617,CHILDREN & YOUNG PEOPLE,Supplies and Services,EEEE SOCIAL CARE & LEARNING,EEE3 CHILDREN & YOUNG PEOPLE
http://www.havering.gov.uk,London Borough of Havering,07/12/2010,786196001,589.44,**REDACTED PERSONAL DATA**,220536,CHILDREN & YOUNG PEOPLE,Supplies and Services,EEEE SOCIAL CARE & LEARNING,EEE3 CHILDREN & YOUNG PEOPLE
http://www.havering.gov.uk,London Borough of Havering,07/12/2010,786196002,753.68,**REDACTED PERSONAL DATA**,220536,CHILDREN & YOUNG PEOPLE,Supplies and Services,EEEE SOCIAL CARE & LEARNING,EEE3 CHILDREN & YOUNG PEOPLE
http://www.havering.gov.uk,London Borough of Havering,07/12/2010,786197001,589.44,**REDACTED PERSONAL DATA**,218765,CHILDREN & YOUNG PEOPLE,Supplies and Services,EEEE SOCIAL CARE & LEARNING,EEE3 CHILDREN & YOUNG PEOPLE
http://www.havering.gov.uk,London Borough of Havering,07/12/2010,786197002,753.68,**REDACTED PERSONAL DATA**,218765,CHILDREN & YOUNG PEOPLE,Supplies and Services,EEEE SOCIAL CARE & LEARNING,EEE3 CHILDREN & YOUNG PEOPLE
http://www.havering.gov.uk,London Borough of Havering,07/12/2010,786198001,650.04,**REDACTED PERSONAL DATA**,227614,CHILDREN & YOUNG PEOPLE,Supplies and Services,EEEE SOCIAL CARE & LEARNING,EEE3 CHILDREN & YOUNG PEOPLE
http://www.havering.gov.uk,London Borough of Havering,07/12/2010,786198002,650.04,**REDACTED PERSONAL DATA**,227614,CHILDREN & YOUNG PEOPLE,Supplies and Services,EEEE SOCIAL CARE & LEARNING,EEE3 CHILDREN & YOUNG PEOPLE
http://www.havering.gov.uk,London Borough of Havering,07/12/2010,786199001,1288.64,**REDACTED PERSONAL DATA**,217559,CHILDREN & YOUNG PEOPLE,Supplies and Services,EEEE SOCIAL CARE & LEARNING,EEE3 CHILDREN & YOUNG PEOPLE
http://www.havering.gov.uk,London Borough of Havering,07/12/2010,786200001,1288.64,**REDACTED PERSONAL DATA**,1457,CHILDREN & YOUNG PEOPLE,Supplies and Services,EEEE SOCIAL CARE & LEARNING,EEE3 CHILDREN & YOUNG PEOPLE
http://www.havering.gov.uk,London Borough of Havering,07/12/2010,786201001,507.24,**REDACTED PERSONAL DATA**,228690,CHILDREN & YOUNG PEOPLE,Supplies and Services,EEEE SOCIAL CARE & LEARNING,EEE3 CHILDREN & YOUNG PEOPLE
http://www.havering.gov.uk,London Borough of Havering,07/12/2010,786201002,753.68,**REDACTED PERSONAL DATA**,228690,CHILDREN & YOUNG PEOPLE,Supplies and Services,EEEE SOCIAL CARE & LEARNING,EEE3 CHILDREN & YOUNG PEOPLE
http://www.havering.gov.uk,London Borough of Havering,07/12/2010,786202001,1256.72,**REDACTED PERSONAL DATA**,236733,CHILDREN & YOUNG PEOPLE,Supplies and Services,EEEE SOCIAL CARE & LEARNING,EEE3 CHILDREN & YOUNG PEOPLE
http://www.havering.gov.uk,London Borough of Havering,07/12/2010,786203001,1256.72,**REDACTED PERSONAL DATA**,233880,CHILDREN & YOUNG PEOPLE,Supplies and Services,EEEE SOCIAL CARE & LEARNING,EEE3 CHILDREN & YOUNG PEOPLE
http://www.havering.gov.uk,London Borough of Havering,07/12/2010,786204001,1202.6,**REDACTED PERSONAL DATA**,128821,CHILDREN & YOUNG PEOPLE,Supplies and Services,EEEE SOCIAL CARE & LEARNING,EEE3 CHILDREN & YOUNG PEOPLE
http://www.havering.gov.uk,London Borough of Havering,07/12/2010,786205001,1188.64,**REDACTED PERSONAL DATA**,224087,CHILDREN & YOUNG PEOPLE,Supplies and Services,EEEE SOCIAL CARE & LEARNING,EEE3 CHILDREN & YOUNG PEOPLE
http://www.havering.gov.uk,London Borough of Havering,07/12/2010,786206001,1188.64,**REDACTED PERSONAL DATA**,227293,CHILDREN & YOUNG PEOPLE,Supplies and Services,EEEE SOCIAL CARE & LEARNING,EEE3 CHILDREN & YOUNG PEOPLE
http://www.havering.gov.uk,London Borough of Havering,07/12/2010,786207001,589.44,**REDACTED PERSONAL DATA**,210249,CHILDREN & YOUNG PEOPLE,Supplies and Services,EEEE SOCIAL CARE & LEARNING,EEE3 CHILDREN & YOUNG PEOPLE
http://www.havering.gov.uk,London Borough of Havering,07/12/2010,786207002,589.44,**REDACTED PERSONAL DATA**,210249,CHILDREN & YOUNG PEOPLE,Supplies and Services,EEEE SOCIAL CARE & LEARNING,EEE3 CHILDREN & YOUNG PEOPLE
http://www.havering.gov.uk,London Borough of Havering,07/12/2010,786208001,589.44,**REDACTED PERSONAL DATA**,211687,CHILDREN & YOUNG PEOPLE,Supplies and Services,EEEE SOCIAL CARE & LEARNING,EEE3 CHILDREN & YOUNG PEOPLE
http://www.havering.gov.uk,London Borough of Havering,07/12/2010,786208002,589.44,**REDACTED PERSONAL DATA**,211687,CHILDREN & YOUNG PEOPLE,Supplies and Services,EEEE SOCIAL CARE & LEARNING,EEE3 CHILDREN & YOUNG PEOPLE
http://www.havering.gov.uk,London Borough of Havering,07/12/2010,786209001,1102.6,**REDACTED PERSONAL DATA**,229156,CHILDREN & YOUNG PEOPLE,Supplies and Services,EEEE SOCIAL CARE & LEARNING,EEE3 CHILDREN & YOUNG PEOPLE
http://www.havering.gov.uk,London Borough of Havering,07/12/2010,786210001,1102.6,**REDACTED PERSONAL DATA**,228008,CHILDREN & YOUNG PEOPLE,Supplies and Services,EEEE SOCIAL CARE & LEARNING,EEE3 CHILDREN & YOUNG PEOPLE
http://www.havering.gov.uk,London Borough of Havering,07/12/2010,786211001,507.24,**REDACTED PERSONAL DATA**,234363,CHILDREN & YOUNG PEOPLE,Supplies and Services,EEEE SOCIAL CARE & LEARNING,EEE3 CHILDREN & YOUNG PEOPLE
http://www.havering.gov.uk,London Borough of Havering,07/12/2010,786211002,589.44,**REDACTED PERSONAL DATA**,234363,CHILDREN & YOUNG PEOPLE,Supplies and Services,EEEE SOCIAL CARE & LEARNING,EEE3 CHILDREN & YOUNG PEOPLE
http://www.havering.gov.uk,London Borough of Havering,07/12/2010,786212001,1088.64,**REDACTED PERSONAL DATA**,233489,CHILDREN & YOUNG PEOPLE,Supplies and Services,EEEE SOCIAL CARE & LEARNING,EEE3 CHILDREN & YOUNG PEOPLE
http://www.havering.gov.uk,London Borough of Havering,07/12/2010,786213001,1012.4,**REDACTED PERSONAL DATA**,233559,CHILDREN & YOUNG PEOPLE,Supplies and Services,EEEE SOCIAL CARE & LEARNING,EEE3 CHILDREN & YOUNG PEOPLE
http://www.havering.gov.uk,London Borough of Havering,07/12/2010,786214001,1012.4,**REDACTED PERSONAL DATA**,104381,CHILDREN & YOUNG PEOPLE,Supplies and Services,EEEE SOCIAL CARE & LEARNING,EEE3 CHILDREN & YOUNG PEOPLE
http://www.havering.gov.uk,London Borough of Havering,07/12/2010,786215001,1012.4,**REDACTED PERSONAL DATA**,104153,CHILDREN & YOUNG PEOPLE,Supplies and Services,EEEE SOCIAL CARE & LEARNING,EEE3 CHILDREN & YOUNG PEOPLE
http://www.havering.gov.uk,London Borough of Havering,07/12/2010,786216001,988,**REDACTED PERSONAL DATA**,38733,CHILDREN & YOUNG PEOPLE,Supplies and Services,EEEE SOCIAL CARE & LEARNING,EEE3 CHILDREN & YOUNG PEOPLE
http://www.havering.gov.uk,London Borough of Havering,07/12/2010,786217001,988,**REDACTED PERSONAL DATA**,24692,CHILDREN & YOUNG PEOPLE,Supplies and Services,EEEE SOCIAL CARE & LEARNING,EEE3 CHILDREN & YOUNG PEOPLE
http://www.havering.gov.uk,London Borough of Havering,07/12/2010,786218001,988,**REDACTED PERSONAL DATA**,144644,CHILDREN & YOUNG PEOPLE,Supplies and Services,EEEE SOCIAL CARE & LEARNING,EEE3 CHILDREN & YOUNG PEOPLE
http://www.havering.gov.uk,London Borough of Havering,07/12/2010,786219001,972.4,**REDACTED PERSONAL DATA**,222501,CHILDREN & YOUNG PEOPLE,Supplies and Services,EEEE SOCIAL CARE & LEARNING,EEE3 CHILDREN & YOUNG PEOPLE
http://www.havering.gov.uk,London Borough of Havering,07/12/2010,786220001,932.4,**REDACTED PERSONAL DATA**,152526,CHILDREN & YOUNG PEOPLE,Supplies and Services,EEEE SOCIAL CARE & LEARNING,EEE3 CHILDREN & YOUNG PEOPLE
http://www.havering.gov.uk,London Borough of Havering,07/12/2010,786221001,455.96,**REDACTED PERSONAL DATA**,205281,CHILDREN & YOUNG PEOPLE,Supplies and Services,EEEE SOCIAL CARE & LEARNING,EEE3 CHILDREN & YOUNG PEOPLE
http://www.havering.gov.uk,London Borough of Havering,07/12/2010,786221002,455.96,**REDACTED PERSONAL DATA**,205281,CHILDREN & YOUNG PEOPLE,Supplies and Services,EEEE SOCIAL CARE & LEARNING,EEE3 CHILDREN & YOUNG PEOPLE
http://www.havering.gov.uk,London Borough of Havering,07/12/2010,786222001,392.72,**REDACTED PERSONAL DATA**,157732,CHILDREN & YOUNG PEOPLE,Supplies and Services,EEEE SOCIAL CARE & LEARNING,EEE3 CHILDREN & YOUNG PEOPLE
http://www.havering.gov.uk,London Borough of Havering,07/12/2010,786222002,488.72,**REDACTED PERSONAL DATA**,157732,CHILDREN & YOUNG PEOPLE,Supplies and Services,EEEE SOCIAL CARE & LEARNING,EEE3 CHILDREN & YOUNG PEOPLE
http://www.havering.gov.uk,London Borough of Havering,07/12/2010,786223001,833.68,**REDACTED PERSONAL DATA**,235738,CHILDREN & YOUNG PEOPLE,Supplies and Services,EEEE SOCIAL CARE & LEARNING,EEE3 CHILDREN & YOUNG PEOPLE
http://www.havering.gov.uk,London Borough of Havering,07/12/2010,786224001,833.68,**REDACTED PERSONAL DATA**,224767,CHILDREN & YOUNG PEOPLE,Supplies and Services,EEEE SOCIAL CARE & LEARNING,EEE3 CHILDREN & YOUNG PEOPLE
http://www.havering.gov.uk,London Borough of Havering,07/12/2010,786225001,833.68,**REDACTED PERSONAL DATA**,235325,CHILDREN & YOUNG PEOPLE,Supplies and Services,EEEE SOCIAL CARE & LEARNING,EEE3 CHILDREN & YOUNG PEOPLE
http://www.havering.gov.uk,London Borough of Havering,07/12/2010,786226001,780.92,**REDACTED PERSONAL DATA**,106544,CHILDREN & YOUNG PEOPLE,Premises-Related Expenditure,EEEE SOCIAL CARE & LEARNING,EEE3 CHILDREN & YOUNG PEOPLE
http://www.havering.gov.uk,London Borough of Havering,07/12/2010,786227001,753.68,**REDACTED PERSONAL DATA**,224060,CHILDREN & YOUNG PEOPLE,Supplies and Services,EEEE SOCIAL CARE & LEARNING,EEE3 CHILDREN & YOUNG PEOPLE
http://www.havering.gov.uk,London Borough of Havering,07/12/2010,786228001,753.68,**REDACTED PERSONAL DATA**,126787,CHILDREN & YOUNG PEOPLE,Supplies and Services,EEEE SOCIAL CARE & LEARNING,EEE3 CHILDREN & YOUNG PEOPLE
http://www.havering.gov.uk,London Borough of Havering,07/12/2010,786229001,753.68,**REDACTED PERSONAL DATA**,222129,CHILDREN & YOUNG PEOPLE,Supplies and Services,EEEE SOCIAL CARE & LEARNING,EEE3 CHILDREN & YOUNG PEOPLE
http://www.havering.gov.uk,London Borough of Havering,07/12/2010,786230001,740,**REDACTED PERSONAL DATA**,126248,CHILDREN & YOUNG PEOPLE,Supplies and Services,EEEE SOCIAL CARE & LEARNING,EEE3 CHILDREN & YOUNG PEOPLE
http://www.havering.gov.uk,London Borough of Havering,07/12/2010,786231001,740,**REDACTED PERSONAL DATA**,150147,CHILDREN & YOUNG PEOPLE,Supplies and Services,EEEE SOCIAL CARE & LEARNING,EEE3 CHILDREN & YOUNG PEOPLE
http://www.havering.gov.uk,London Borough of Havering,07/12/2010,786232001,740,**REDACTED PERSONAL DATA**,152120,CHILDREN & YOUNG PEOPLE,Supplies and Services,EEEE SOCIAL CARE & LEARNING,EEE3 CHILDREN & YOUNG PEOPLE
http://www.havering.gov.uk,London Borough of Havering,07/12/2010,786233001,740,**REDACTED PERSONAL DATA**,203855,CHILDREN & YOUNG PEOPLE,Supplies and Services,EEEE SOCIAL CARE & LEARNING,EEE3 CHILDREN & YOUNG PEOPLE
http://www.havering.gov.uk,London Borough of Havering,07/12/2010,786234001,693.48,**REDACTED PERSONAL DATA**,227933,CHILDREN & YOUNG PEOPLE,Supplies and Services,EEEE SOCIAL CARE & LEARNING,EEE3 CHILDREN & YOUNG PEOPLE
http://www.havering.gov.uk,London Borough of Havering,07/12/2010,786235001,693.48,**REDACTED PERSONAL DATA**,220363,CHILDREN & YOUNG PEOPLE,Supplies and Services,EEEE SOCIAL CARE & LEARNING,EEE3 CHILDREN & YOUNG PEOPLE
http://www.havering.gov.uk,London Borough of Havering,07/12/2010,786236001,685.24,**REDACTED PERSONAL DATA**,12155,CHILDREN & YOUNG PEOPLE,Supplies and Services,EEEE SOCIAL CARE & LEARNING,EEE3 CHILDREN & YOUNG PEOPLE
http://www.havering.gov.uk,London Borough of Havering,07/12/2010,786237001,669.44,**REDACTED PERSONAL DATA**,236210,CHILDREN & YOUNG PEOPLE,Supplies and Services,EEEE SOCIAL CARE & LEARNING,EEE3 CHILDREN & YOUNG PEOPLE
http://www.havering.gov.uk,London Borough of Havering,07/12/2010,786238001,592.8,**REDACTED PERSONAL DATA**,158463,CHILDREN & YOUNG PEOPLE,Supplies and Services,EEEE SOCIAL CARE & LEARNING,EEE3 CHILDREN & YOUNG PEOPLE
http://www.havering.gov.uk,London Borough of Havering,07/12/2010,786239001,589.44,**REDACTED PERSONAL DATA**,154418,CHILDREN & YOUNG PEOPLE,Supplies and Services,EEEE SOCIAL CARE & LEARNING,EEE3 CHILDREN & YOUNG PEOPLE
http://www.havering.gov.uk,London Borough of Havering,07/12/2010,786240001,589.44,**REDACTED PERSONAL DATA**,206192,CHILDREN & YOUNG PEOPLE,Supplies and Services,EEEE SOCIAL CARE & LEARNING,EEE3 CHILDREN & YOUNG PEOPLE
http://www.havering.gov.uk,London Borough of Havering,07/12/2010,786241001,589.44,**REDACTED PERSONAL DATA**,135457,CHILDREN & YOUNG PEOPLE,Supplies and Services,EEEE SOCIAL CARE & LEARNING,EEE3 CHILDREN & YOUNG PEOPLE
http://www.havering.gov.uk,London Borough of Havering,07/12/2010,786242001,589.44,**REDACTED PERSONAL DATA**,211165,CHILDREN & YOUNG PEOPLE,Supplies and Services,EEEE SOCIAL CARE & LEARNING,EEE3 CHILDREN & YOUNG PEOPLE
http://www.havering.gov.uk,London Borough of Havering,07/12/2010,786243001,589.44,**REDACTED PERSONAL DATA**,217500,CHILDREN & YOUNG PEOPLE,Supplies and Services,EEEE SOCIAL CARE & LEARNING,EEE3 CHILDREN & YOUNG PEOPLE
http://www.havering.gov.uk,London Borough of Havering,07/12/2010,786244001,589.44,**REDACTED PERSONAL DATA**,224671,CHILDREN & YOUNG PEOPLE,Supplies and Services,EEEE SOCIAL CARE & LEARNING,EEE3 CHILDREN & YOUNG PEOPLE
http://www.havering.gov.uk,London Borough of Havering,07/12/2010,786245001,589.44,**REDACTED PERSONAL DATA**,144177,CHILDREN & YOUNG PEOPLE,Supplies and Services,EEEE SOCIAL CARE & LEARNING,EEE3 CHILDREN & YOUNG PEOPLE
http://www.havering.gov.uk,London Borough of Havering,07/12/2010,786246001,589.44,**REDACTED PERSONAL DATA**,225374,CHILDREN & YOUNG PEOPLE,Supplies and Services,EEEE SOCIAL CARE & LEARNING,EEE3 CHILDREN & YOUNG PEOPLE
http://www.havering.gov.uk,London Borough of Havering,07/12/2010,786247001,589.44,**REDACTED PERSONAL DATA**,227219,CHILDREN & YOUNG PEOPLE,Supplies and Services,EEEE SOCIAL CARE & LEARNING,EEE3 CHILDREN & YOUNG PEOPLE
http://www.havering.gov.uk,London Borough of Havering,07/12/2010,786248001,589.44,**REDACTED PERSONAL DATA**,227266,CHILDREN & YOUNG PEOPLE,Supplies and Services,EEEE SOCIAL CARE & LEARNING,EEE3 CHILDREN & YOUNG PEOPLE
http://www.havering.gov.uk,London Borough of Havering,07/12/2010,786249001,587.24,**REDACTED PERSONAL DATA**,236018,CHILDREN & YOUNG PEOPLE,Supplies and Services,EEEE SOCIAL CARE & LEARNING,EEE3 CHILDREN & YOUNG PEOPLE
http://www.havering.gov.uk,London Borough of Havering,07/12/2010,786250001,587.24,**REDACTED PERSONAL DATA**,228268,CHILDREN & YOUNG PEOPLE,Supplies and Services,EEEE SOCIAL CARE & LEARNING,EEE3 CHILDREN & YOUNG PEOPLE
http://www.havering.gov.uk,London Borough of Havering,07/12/2010,786251001,587.24,**REDACTED PERSONAL DATA**,236944,CHILDREN & YOUNG PEOPLE,Supplies and Services,EEEE SOCIAL CARE & LEARNING,EEE3 CHILDREN & YOUNG PEOPLE
http://www.havering.gov.uk,London Borough of Havering,07/12/2010,786252001,587.24,**REDACTED PERSONAL DATA**,236656,CHILDREN & YOUNG PEOPLE,Supplies and Services,EEEE SOCIAL CARE & LEARNING,EEE3 CHILDREN & YOUNG PEOPLE
http://www.havering.gov.uk,London Borough of Havering,07/12/2010,786253001,587.24,**REDACTED PERSONAL DATA**,204871,CHILDREN & YOUNG PEOPLE,Supplies and Services,EEEE SOCIAL CARE & LEARNING,EEE3 CHILDREN & YOUNG PEOPLE
http://www.havering.gov.uk,London Borough of Havering,07/12/2010,786254001,579.3,**REDACTED PERSONAL DATA**,237074,CHILDREN & YOUNG PEOPLE,Supplies and Services,EEEE SOCIAL CARE & LEARNING,EEE3 CHILDREN & YOUNG PEOPLE
http://www.havering.gov.uk,London Borough of Havering,07/12/2010,786255001,528.29,**REDACTED PERSONAL DATA**,151198,CHILDREN & YOUNG PEOPLE,Supplies and Services,EEEE SOCIAL CARE & LEARNING,EEE3 CHILDREN & YOUNG PEOPLE
